Workbook

Sheet New Table (hidden)
B1: RUSLE Calculations
B6: Drawing Code:
B7: 1 | C7: 2 | D7: 3 | E7: 4 | F7: 5 | G7: 6 | H7: 7 | I7: 8 | J7: 9 | K7: 10 | L7: 11 | M7: 12 | N7: 13 | O7: 14 | P7: 15
O8: Site Erosion Potential
B9: Drainage Area Identifier | C9: LS Identifier | D9: LS Area Size (In Ha) | E9: Slope (%) | F9: Slope Length (m) | G9: Description of Controls and Practices | H9: R-Value | I9: K-Value | J9: LS-Value | K9: C-Value(s) | L9: P-Value(s) | M9: Slope Alone With No Controls | N9: A-Value Tonnes/ha*yr Must be at or below 2 tonnes/ha*yr | O9: Soil Loss With Controls and Practices Tonnes/yr | P9: Soil Loss Without Controls and Practices Tonnes/yr | Q9: q (deg) | R9: q (rad) | S9: SINq/0.0896 | T9: 3sinq0.8 + .56 | U9: b0 | V9: b Factor | W9: b | X9: m | Z9: Slope Length Ft | AA9: λ | AB9: λ - ps category | AD9: L(1) | AE9: S3(1) | AF9: S15(1) | AG9: S(1) | AH9: LS(1) | AI9: L(2) | AJ9: S3(2) | AK9: S15(2) | AL9: S(2) | AM9: LS(2) | AN9: L(3) | AO9: S3(3) | AP9: S15(3) | AQ9: S(3) | AR9: LS(3) | AS9: L(4) | AT9: S3(4) | AU9: S15(4) | AV9: S(4) | AW9: LS(4) | AX9: 1 | AY9: 2 | AZ9: 3 | BA9: 4
B10: Area # 1 | C10: LS21 | D10: 0.5 | E10: 20 | F10: 50 | G10: Sediment Pond - 0.5 ; Mulch, tackifer, seed - 0.1 | H10: 320 | I10: 0.048 | J10: =IF(NOT(AND(ISNUMBER(E10),ISNUMBER(F10))),"",INDEX(AX10:BA10,1,MATCH(AB10,$AX$9:$BA$9))) -> 5.196912212 | K10: 0.01 | L10: 0.1 | M10: =IFERROR(H10*I10*J10,"") -> 79.82457157 | N10: =IFERROR(H10*I10*J10*K10*L10,"") -> 0.07982457157 | O10: =IFERROR(N10*D10,"") -> 0.03991228579 | P10: =IFERROR(H10*I10*J10*D10,"") -> 39.91228579 | Q10: =DEGREES(ATAN(E10/100)) -> 11.30993247 | R10: =(ATAN(E10/100)) -> 0.1973955598 | S10: =(SIN(R10))/0.0896 -> 2.188796151 | T10: =(((SIN(R10))^0.8)*3)+ 0.56 -> 1.374951785 | U10: =+S10/T10 -> 1.591907567 | V10: 2 | W10: =+V10*U10 -> 3.183815134 | X10: =+W10/(W10+1) -> 0.7609837031 | Z10: =F10*3.2808399 -> 164.041995 | AA10: =IF(Z10>=3,Z10,3) -> 164.041995 | AB10: =IF(AND(AA10>=15, E10<9),1,IF(AND(AA10>=15, E10>=9),2,IF(AND(AA10<15, E10<9),3,IF(AND(AA10<15, E10>=9),4,0)))) -> 2 | AD10: =(Z10/72.6)^X10 -> 1.859525976 | AG10: =((SIN(R10))*10.8) + 0.03 -> 2.148054259 | AI10: =(Z10/72.6)^X10 -> 1.859525976 | AL10: =((SIN(R10))*16.8) - 0.5 -> 2.79475107 | AN10: =(15/72.6)^X10 -> 0.3011922832 | AQ10: =((SIN(R10))*10.8) + 0.03 -> 2.148054259 | AS10: =(15/72.6)^X10 -> 0.3011922832 | AT10: =(((SIN(R10))^0.8)*3)+ 0.56 -> 1.374951785 | AU10: =((SIN(R10))*16.8) - 0.5 -> 2.79475107 | AX10: =AD10*AG10 -> 3.994362693 | AY10: =AI10*AL10 -> 5.196912212 | AZ10: =AN10*AQ10 -> 0.6469773668 | BA10: =10^(LOG10(AS10*AT10)+(LOG10(AA10)-LOG10(3))*(LOG10(AS10*AU10)-LOG10(AS10*AT10))/0.699) -> 2.415519105
J11: =IF(NOT(AND(ISNUMBER(E11),ISNUMBER(F11))),"",INDEX(AX11:BA11,1,MATCH(AB11,$AX$9:$BA$9))) ->  | M11: =IFERROR(H11*I11*J11,"") ->  | Q11: =DEGREES(ATAN(E11/100)) -> 0 | R11: =(ATAN(E11/100)) -> 0 | S11: =(SIN(R11))/0.0896 -> 0 | T11: =(((SIN(R11))^0.8)*3)+ 0.56 -> 0.56 | U11: =+S11/T11 -> 0 | V11: 2 | W11: =+V11*U11 -> 0 | X11: =+W11/(W11+1) -> 0 | Z11: =F11*3.2808399 -> 0 | AA11: =IF(Z11>=3,Z11,3) -> 3 | AB11: =IF(AND(AA11>=15, E11<9),1,IF(AND(AA11>=15, E11>=9),2,IF(AND(AA11<15, E11<9),3,IF(AND(AA11<15, E11>=9),4,0)))) -> 3 | AD11: =(Z11/72.6)^X11 ->  | AG11: =((SIN(R11))*10.8) + 0.03 -> 0.03 | AI11: =(Z11/72.6)^X11 ->  | AL11: =((SIN(R11))*16.8) - 0.5 -> -0.5 | AN11: =(15/72.6)^X11 -> 1 | AQ11: =((SIN(R11))*10.8) + 0.03 -> 0.03 | AS11: =(15/72.6)^X11 -> 1 | AT11: =(((SIN(R11))^0.8)*3)+ 0.56 -> 0.56 | AU11: =((SIN(R11))*16.8) - 0.5 -> -0.5 | AX11: =AD11*AG11 ->  | AY11: =AI11*AL11 ->  | AZ11: =AN11*AQ11 -> 0.03 | BA11: =10^(LOG10(AS11*AT11)+(LOG10(AA11)-LOG10(3))*(LOG10(AS11*AU11)-LOG10(AS11*AT11))/0.699) -> 
B12: =IF(AND(ISNUMBER(B11),isvisible(B11)), B11+1,"") ->  | C12: =IF(AND(ISNUMBER(C11),isvisible(C11)), C11+1,"") ->  | H12: =IF(H11 = "","",H11) ->  | J12: =IF(NOT(AND(ISNUMBER(E12),ISNUMBER(F12))),"",INDEX(AX12:BA12,1,MATCH(AB12,$AX$9:$BA$9))) ->  | M12: =IFERROR(H12*I12*J12,"") ->  | N12: =IFERROR(H12*I12*J12*K12*L12,"") ->  | Q12: =DEGREES(ATAN(E12/100)) -> 0 | R12: =(ATAN(E12/100)) -> 0 | S12: =(SIN(R12))/0.0896 -> 0 | T12: =(((SIN(R12))^0.8)*3)+ 0.56 -> 0.56 | U12: =+S12/T12 -> 0 | V12: 2 | W12: =+V12*U12 -> 0 | X12: =+W12/(W12+1) -> 0 | Z12: =F12*3.2808399 -> 0 | AA12: =IF(Z12>=3,Z12,3) -> 3 | AB12: =IF(AND(AA12>=15, E12<9),1,IF(AND(AA12>=15, E12>=9),2,IF(AND(AA12<15, E12<9),3,IF(AND(AA12<15, E12>=9),4,0)))) -> 3 | AD12: =(Z12/72.6)^X12 ->  | AG12: =((SIN(R12))*10.8) + 0.03 -> 0.03 | AI12: =(Z12/72.6)^X12 ->  | AL12: =((SIN(R12))*16.8) - 0.5 -> -0.5 | AN12: =(15/72.6)^X12 -> 1 | AQ12: =((SIN(R12))*10.8) + 0.03 -> 0.03 | AS12: =(15/72.6)^X12 -> 1 | AT12: =(((SIN(R12))^0.8)*3)+ 0.56 -> 0.56 | AU12: =((SIN(R12))*16.8) - 0.5 -> -0.5 | AX12: =AD12*AG12 ->  | AY12: =AI12*AL12 ->  | AZ12: =AN12*AQ12 -> 0.03 | BA12: =10^(LOG10(AS12*AT12)+(LOG10(AA12)-LOG10(3))*(LOG10(AS12*AU12)-LOG10(AS12*AT12))/0.699) -> 
B13: =IF(AND(ISNUMBER(B12),isvisible(B12)), B12+1,"") ->  | C13: =IF(AND(ISNUMBER(C12),isvisible(C12)), C12+1,"") ->  | H13: =IF(H12 = "","",H12) ->  | J13: =IF(NOT(AND(ISNUMBER(E13),ISNUMBER(F13))),"",INDEX(AX13:BA13,1,MATCH(AB13,$AX$9:$BA$9))) ->  | N13: =IFERROR(H13*I13*J13*K13*L13,"") ->  | O13: =IFERROR(N13*D13,"") ->  | P13: =IFERROR(H13*I13*J13*D13,"") ->  | Q13: 0 | R13: 0 | S13: 0 | T13: 0.56 | U13: 0 | V13: 2 | W13: 0 | X13: 0 | Z13: 0 | AA13: 3 | AB13: 3 | AG13: 0.03 | AL13: -0.5 | AN13: 1 | AQ13: 0.03 | AS13: 1 | AT13: 0.56 | AU13: -0.5 | AZ13: 0.03
B14: =IF(AND(ISNUMBER(B13),isvisible(B13)), B13+1,"") ->  | C14: =IF(AND(ISNUMBER(C13),isvisible(C13)), C13+1,"") ->  | N14: =IFERROR(H14*I14*J14*K14*L14,"") ->  | O14: =IFERROR(N14*D14,"") ->  | P14: =IFERROR(H14*I14*J14*D14,"") ->  | Q14: 0 | R14: 0 | S14: 0 | T14: 0.56 | U14: 0 | V14: 2 | W14: 0 | X14: 0 | Z14: 0 | AA14: 3 | AB14: 3 | AG14: 0.03 | AL14: -0.5 | AN14: 1 | AQ14: 0.03 | AS14: 1 | AT14: 0.56 | AU14: -0.5 | AZ14: 0.03
B15: =IF(AND(ISNUMBER(B14),isvisible(B14)), B14+1,"") ->  | C15: =IF(AND(ISNUMBER(C14),isvisible(C14)), C14+1,"") ->  | Q15: 0 | R15: 0 | S15: 0 | T15: 0.56 | U15: 0 | V15: 2 | W15: 0 | X15: 0 | Z15: 0 | AA15: 3 | AB15: 3 | AG15: 0.03 | AL15: -0.5 | AN15: 1 | AQ15: 0.03 | AS15: 1 | AT15: 0.56 | AU15: -0.5 | AZ15: 0.03
B16: =IF(AND(ISNUMBER(B15),isvisible(B15)), B15+1,"") ->  | C16: =IF(AND(ISNUMBER(C15),isvisible(C15)), C15+1,"") ->  | J16: =IF(NOT(AND(ISNUMBER(E16),ISNUMBER(F16))),"",INDEX(AX16:BA16,1,MATCH(AB16,$AX$9:$BA$9))) ->  | N16: =IFERROR(H16*I16*J16*K16*L16,"") ->  | O16: =IFERROR(N16*D16,"") ->  | P16: =IFERROR(H16*I16*J16*D16,"") ->  | Q16: =DEGREES(ATAN(E16/100)) -> 0 | R16: =(ATAN(E16/100)) -> 0 | S16: 0 | T16: =(((SIN(R16))^0.8)*3)+ 0.56 -> 0.56 | U16: =+S16/T16 -> 0 | V16: 2 | W16: =+V16*U16 -> 0 | X16: 0 | Z16: =F16*3.2808399 -> 0 | AA16: 3 | AB16: =IF(AND(AA16>=15, E16<9),1,IF(AND(AA16>=15, E16>=9),2,IF(AND(AA16<15, E16<9),3,IF(AND(AA16<15, E16>=9),4,0)))) -> 3 | AD16: =(Z16/72.6)^X16 ->  | AG16: =((SIN(R16))*10.8) + 0.03 -> 0.03 | AI16: =(Z16/72.6)^X16 ->  | AL16: =((SIN(R16))*16.8) - 0.5 -> -0.5 | AN16: =(15/72.6)^X16 -> 1 | AQ16: =((SIN(R16))*10.8) + 0.03 -> 0.03 | AS16: =(15/72.6)^X16 -> 1 | AT16: =(((SIN(R16))^0.8)*3)+ 0.56 -> 0.56 | AU16: =((SIN(R16))*16.8) - 0.5 -> -0.5 | AX16: =AD16*AG16 ->  | AY16: =AI16*AL16 ->  | AZ16: =AN16*AQ16 -> 0.03 | BA16: =10^(LOG10(AS16*AT16)+(LOG10(AA16)-LOG10(3))*(LOG10(AS16*AU16)-LOG10(AS16*AT16))/0.699) -> 
B17: =IF(AND(ISNUMBER(B16),isvisible(B16)), B16+1,"") ->  | C17: =IF(AND(ISNUMBER(C16),isvisible(C16)), C16+1,"") ->  | Q17: 0 | R17: 0 | S17: 0 | T17: 0.56 | U17: 0 | V17: 2 | W17: 0 | X17: 0 | Z17: 0 | AA17: 3 | AB17: 3 | AG17: 0.03 | AL17: -0.5 | AN17: 1 | AQ17: 0.03 | AS17: 1 | AT17: 0.56 | AU17: -0.5 | AZ17: 0.03
B18: =IF(AND(ISNUMBER(B17),isvisible(B17)), B17+1,"") ->  | C18: =IF(AND(ISNUMBER(C17),isvisible(C17)), C17+1,"") ->  | Q18: 0 | R18: 0 | S18: 0 | T18: 0.56 | U18: 0 | V18: 2 | W18: 0 | X18: 0 | Z18: 0 | AA18: 3 | AB18: 3 | AG18: 0.03 | AL18: -0.5 | AN18: 1 | AQ18: 0.03 | AS18: 1 | AT18: 0.56 | AU18: -0.5 | AZ18: 0.03
B19: =IF(AND(ISNUMBER(B18),isvisible(B18)), B18+1,"") ->  | C19: =IF(AND(ISNUMBER(C18),isvisible(C18)), C18+1,"") ->  | Q19: 0 | R19: 0 | S19: 0 | T19: 0.56 | U19: 0 | V19: 2 | W19: 0 | X19: 0 | Z19: 0 | AA19: 3 | AB19: 3 | AG19: 0.03 | AL19: -0.5 | AN19: 1 | AQ19: 0.03 | AS19: 1 | AT19: 0.56 | AU19: -0.5 | AZ19: 0.03
B20: =IF(AND(ISNUMBER(B19),isvisible(B19)), B19+1,"") ->  | C20: =IF(AND(ISNUMBER(C19),isvisible(C19)), C19+1,"") ->  | Q20: 0 | R20: 0 | S20: 0 | T20: 0.56 | U20: 0 | V20: 2 | W20: 0 | X20: 0 | Z20: 0 | AA20: 3 | AB20: 3 | AG20: 0.03 | AL20: -0.5 | AN20: 1 | AQ20: 0.03 | AS20: 1 | AT20: 0.56 | AU20: -0.5 | AZ20: 0.03
B21: =IF(AND(ISNUMBER(B20),isvisible(B20)), B20+1,"") ->  | C21: =IF(AND(ISNUMBER(C20),isvisible(C20)), C20+1,"") ->  | Q21: 0 | R21: 0 | S21: 0 | T21: 0.56 | U21: 0 | V21: 2 | W21: 0 | X21: 0 | Z21: 0 | AA21: 3 | AB21: 3 | AG21: 0.03 | AL21: -0.5 | AN21: 1 | AQ21: 0.03 | AS21: 1 | AT21: 0.56 | AU21: -0.5 | AZ21: 0.03
B22: =IF(AND(ISNUMBER(B21),isvisible(B21)), B21+1,"") ->  | C22: =IF(AND(ISNUMBER(C21),isvisible(C21)), C21+1,"") ->  | Q22: 0 | R22: 0 | S22: 0 | T22: 0.56 | U22: 0 | V22: 2 | W22: 0 | X22: 0 | Z22: 0 | AA22: 3 | AB22: 3 | AG22: 0.03 | AL22: -0.5 | AN22: 1 | AQ22: 0.03 | AS22: 1 | AT22: 0.56 | AU22: -0.5 | AZ22: 0.03
B23: =IF(AND(ISNUMBER(B22),isvisible(B22)), B22+1,"") ->  | C23: =IF(AND(ISNUMBER(C22),isvisible(C22)), C22+1,"") ->  | Q23: 0 | R23: 0 | S23: 0 | T23: 0.56 | U23: 0 | V23: 2 | W23: 0 | X23: 0 | Z23: 0 | AA23: 3 | AB23: 3 | AG23: 0.03 | AL23: -0.5 | AN23: 1 | AQ23: 0.03 | AS23: 1 | AT23: 0.56 | AU23: -0.5 | AZ23: 0.03
B24: =IF(AND(ISNUMBER(B23),isvisible(B23)), B23+1,"") ->  | C24: =IF(AND(ISNUMBER(C23),isvisible(C23)), C23+1,"") ->  | Q24: 0 | R24: 0 | S24: 0 | T24: 0.56 | U24: 0 | V24: 2 | W24: 0 | X24: 0 | Z24: 0 | AA24: 3 | AB24: 3 | AG24: 0.03 | AL24: -0.5 | AN24: 1 | AQ24: 0.03 | AS24: 1 | AT24: 0.56 | AU24: -0.5 | AZ24: 0.03
B25: =IF(AND(ISNUMBER(B24),isvisible(B24)), B24+1,"") ->  | C25: =IF(AND(ISNUMBER(C24),isvisible(C24)), C24+1,"") ->  | Q25: 0 | R25: 0 | S25: 0 | T25: 0.56 | U25: 0 | V25: 2 | W25: 0 | X25: 0 | Z25: 0 | AA25: 3 | AB25: 3 | AG25: 0.03 | AL25: -0.5 | AN25: 1 | AQ25: 0.03 | AS25: 1 | AT25: 0.56 | AU25: -0.5 | AZ25: 0.03
B26: =IF(AND(ISNUMBER(B25),isvisible(B25)), B25+1,"") ->  | C26: =IF(AND(ISNUMBER(C25),isvisible(C25)), C25+1,"") ->  | Q26: 0 | R26: 0 | S26: 0 | T26: 0.56 | U26: 0 | V26: 2 | W26: 0 | X26: 0 | Z26: 0 | AA26: 3 | AB26: 3 | AG26: 0.03 | AL26: -0.5 | AN26: 1 | AQ26: 0.03 | AS26: 1 | AT26: 0.56 | AU26: -0.5 | AZ26: 0.03
B27: =IF(AND(ISNUMBER(B26),isvisible(B26)), B26+1,"") ->  | C27: =IF(AND(ISNUMBER(C26),isvisible(C26)), C26+1,"") ->  | Q27: 0 | R27: 0 | S27: 0 | T27: 0.56 | U27: 0 | V27: 2 | W27: 0 | X27: 0 | Z27: 0 | AA27: 3 | AB27: 3 | AG27: 0.03 | AL27: -0.5 | AN27: 1 | AQ27: 0.03 | AS27: 1 | AT27: 0.56 | AU27: -0.5 | AZ27: 0.03
B28: =IF(AND(ISNUMBER(B27),isvisible(B27)), B27+1,"") ->  | C28: =IF(AND(ISNUMBER(C27),isvisible(C27)), C27+1,"") ->  | Q28: 0 | R28: 0 | S28: 0 | T28: 0.56 | U28: 0 | V28: 2 | W28: 0 | X28: 0 | Z28: 0 | AA28: 3 | AB28: 3 | AG28: 0.03 | AL28: -0.5 | AN28: 1 | AQ28: 0.03 | AS28: 1 | AT28: 0.56 | AU28: -0.5 | AZ28: 0.03
B29: =IF(AND(ISNUMBER(B28),isvisible(B28)), B28+1,"") ->  | C29: =IF(AND(ISNUMBER(C28),isvisible(C28)), C28+1,"") ->  | Q29: 0 | R29: 0 | S29: 0 | T29: 0.56 | U29: 0 | V29: 2 | W29: 0 | X29: 0 | Z29: 0 | AA29: 3 | AB29: 3 | AG29: 0.03 | AL29: -0.5 | AN29: 1 | AQ29: 0.03 | AS29: 1 | AT29: 0.56 | AU29: -0.5 | AZ29: 0.03
B30: =IF(AND(ISNUMBER(B29),isvisible(B29)), B29+1,"") ->  | C30: =IF(AND(ISNUMBER(C29),isvisible(C29)), C29+1,"") ->  | Q30: 0 | R30: 0 | S30: 0 | T30: 0.56 | U30: 0 | V30: 2 | W30: 0 | X30: 0 | Z30: 0 | AA30: 3 | AB30: 3 | AG30: 0.03 | AL30: -0.5 | AN30: 1 | AQ30: 0.03 | AS30: 1 | AT30: 0.56 | AU30: -0.5 | AZ30: 0.03
B31: =IF(AND(ISNUMBER(B30),isvisible(B30)), B30+1,"") ->  | C31: =IF(AND(ISNUMBER(C30),isvisible(C30)), C30+1,"") ->  | Q31: 0 | R31: 0 | S31: 0 | T31: 0.56 | U31: 0 | V31: 2 | W31: 0 | X31: 0 | Z31: 0 | AA31: 3 | AB31: 3 | AG31: 0.03 | AL31: -0.5 | AN31: 1 | AQ31: 0.03 | AS31: 1 | AT31: 0.56 | AU31: -0.5 | AZ31: 0.03
B32: =IF(AND(ISNUMBER(B31),isvisible(B31)), B31+1,"") ->  | C32: =IF(AND(ISNUMBER(C31),isvisible(C31)), C31+1,"") ->  | Q32: 0 | R32: 0 | S32: 0 | T32: 0.56 | U32: 0 | V32: 2 | W32: 0 | X32: 0 | Z32: 0 | AA32: 3 | AB32: 3 | AG32: 0.03 | AL32: -0.5 | AN32: 1 | AQ32: 0.03 | AS32: 1 | AT32: 0.56 | AU32: -0.5 | AZ32: 0.03
B33: =IF(AND(ISNUMBER(B32),isvisible(B32)), B32+1,"") ->  | C33: =IF(AND(ISNUMBER(C32),isvisible(C32)), C32+1,"") ->  | Q33: 0 | R33: 0 | S33: 0 | T33: 0.56 | U33: 0 | V33: 2 | W33: 0 | X33: 0 | Z33: 0 | AA33: 3 | AB33: 3 | AG33: 0.03 | AL33: -0.5 | AN33: 1 | AQ33: 0.03 | AS33: 1 | AT33: 0.56 | AU33: -0.5 | AZ33: 0.03
B34: =IF(AND(ISNUMBER(B33),isvisible(B33)), B33+1,"") ->  | C34: =IF(AND(ISNUMBER(C33),isvisible(C33)), C33+1,"") ->  | Q34: 0 | R34: 0 | S34: 0 | T34: 0.56 | U34: 0 | V34: 2 | W34: 0 | X34: 0 | Z34: 0 | AA34: 3 | AB34: 3 | AG34: 0.03 | AL34: -0.5 | AN34: 1 | AQ34: 0.03 | AS34: 1 | AT34: 0.56 | AU34: -0.5 | AZ34: 0.03
B35: =IF(AND(ISNUMBER(B34),isvisible(B34)), B34+1,"") ->  | C35: =IF(AND(ISNUMBER(C34),isvisible(C34)), C34+1,"") ->  | Q35: 0 | R35: 0 | S35: 0 | T35: 0.56 | U35: 0 | V35: 2 | W35: 0 | X35: 0 | Z35: 0 | AA35: 3 | AB35: 3 | AG35: 0.03 | AL35: -0.5 | AN35: 1 | AQ35: 0.03 | AS35: 1 | AT35: 0.56 | AU35: -0.5 | AZ35: 0.03
B36: =IF(AND(ISNUMBER(B35),isvisible(B35)), B35+1,"") ->  | C36: =IF(AND(ISNUMBER(C35),isvisible(C35)), C35+1,"") ->  | Q36: 0 | R36: 0 | S36: 0 | T36: 0.56 | U36: 0 | V36: 2 | W36: 0 | X36: 0 | Z36: 0 | AA36: 3 | AB36: 3 | AG36: 0.03 | AL36: -0.5 | AN36: 1 | AQ36: 0.03 | AS36: 1 | AT36: 0.56 | AU36: -0.5 | AZ36: 0.03
B37: =IF(AND(ISNUMBER(B36),isvisible(B36)), B36+1,"") ->  | C37: =IF(AND(ISNUMBER(C36),isvisible(C36)), C36+1,"") ->  | Q37: 0 | R37: 0 | S37: 0 | T37: 0.56 | U37: 0 | V37: 2 | W37: 0 | X37: 0 | Z37: 0 | AA37: 3 | AB37: 3 | AG37: 0.03 | AL37: -0.5 | AN37: 1 | AQ37: 0.03 | AS37: 1 | AT37: 0.56 | AU37: -0.5 | AZ37: 0.03
B38: =IF(AND(ISNUMBER(B37),isvisible(B37)), B37+1,"") ->  | C38: =IF(AND(ISNUMBER(C37),isvisible(C37)), C37+1,"") ->  | Q38: 0 | R38: 0 | S38: 0 | T38: 0.56 | U38: 0 | V38: 2 | W38: 0 | X38: 0 | Z38: 0 | AA38: 3 | AB38: 3 | AG38: 0.03 | AL38: -0.5 | AN38: 1 | AQ38: 0.03 | AS38: 1 | AT38: 0.56 | AU38: -0.5 | AZ38: 0.03
B39: =IF(AND(ISNUMBER(B38),isvisible(B38)), B38+1,"") ->  | C39: =IF(AND(ISNUMBER(C38),isvisible(C38)), C38+1,"") ->  | Q39: 0 | R39: 0 | S39: 0 | T39: 0.56 | U39: 0 | V39: 2 | W39: 0 | X39: 0 | Z39: 0 | AA39: 3 | AB39: 3 | AG39: 0.03 | AL39: -0.5 | AN39: 1 | AQ39: 0.03 | AS39: 1 | AT39: 0.56 | AU39: -0.5 | AZ39: 0.03
B40: =IF(AND(ISNUMBER(B39),isvisible(B39)), B39+1,"") ->  | C40: =IF(AND(ISNUMBER(C39),isvisible(C39)), C39+1,"") ->  | Q40: 0 | R40: 0 | S40: 0 | T40: 0.56 | U40: 0 | V40: 2 | W40: 0 | X40: 0 | Z40: 0 | AA40: 3 | AB40: 3 | AG40: 0.03 | AL40: -0.5 | AN40: 1 | AQ40: 0.03 | AS40: 1 | AT40: 0.56 | AU40: -0.5 | AZ40: 0.03
B41: =IF(AND(ISNUMBER(B40),isvisible(B40)), B40+1,"") ->  | C41: =IF(AND(ISNUMBER(C40),isvisible(C40)), C40+1,"") ->  | Q41: 0 | R41: 0 | S41: 0 | T41: 0.56 | U41: 0 | V41: 2 | W41: 0 | X41: 0 | Z41: 0 | AA41: 3 | AB41: 3 | AG41: 0.03 | AL41: -0.5 | AN41: 1 | AQ41: 0.03 | AS41: 1 | AT41: 0.56 | AU41: -0.5 | AZ41: 0.03
B42: =IF(AND(ISNUMBER(B41),isvisible(B41)), B41+1,"") ->  | C42: =IF(AND(ISNUMBER(C41),isvisible(C41)), C41+1,"") ->  | Q42: 0 | R42: 0 | S42: 0 | T42: 0.56 | U42: 0 | V42: 2 | W42: 0 | X42: 0 | Z42: 0 | AA42: 3 | AB42: 3 | AG42: 0.03 | AL42: -0.5 | AN42: 1 | AQ42: 0.03 | AS42: 1 | AT42: 0.56 | AU42: -0.5 | AZ42: 0.03
B43: =IF(AND(ISNUMBER(B42),isvisible(B42)), B42+1,"") ->  | C43: =IF(AND(ISNUMBER(C42),isvisible(C42)), C42+1,"") ->  | Q43: 0 | R43: 0 | S43: 0 | T43: 0.56 | U43: 0 | V43: 2 | W43: 0 | X43: 0 | Z43: 0 | AA43: 3 | AB43: 3 | AG43: 0.03 | AL43: -0.5 | AN43: 1 | AQ43: 0.03 | AS43: 1 | AT43: 0.56 | AU43: -0.5 | AZ43: 0.03
B44: =IF(AND(ISNUMBER(B43),isvisible(B43)), B43+1,"") ->  | C44: =IF(AND(ISNUMBER(C43),isvisible(C43)), C43+1,"") ->  | Q44: 0 | R44: 0 | S44: 0 | T44: 0.56 | U44: 0 | V44: 2 | W44: 0 | X44: 0 | Z44: 0 | AA44: 3 | AB44: 3 | AG44: 0.03 | AL44: -0.5 | AN44: 1 | AQ44: 0.03 | AS44: 1 | AT44: 0.56 | AU44: -0.5 | AZ44: 0.03
B45: =IF(AND(ISNUMBER(B44),isvisible(B44)), B44+1,"") ->  | C45: =IF(AND(ISNUMBER(C44),isvisible(C44)), C44+1,"") ->  | Q45: 0 | R45: 0 | S45: 0 | T45: 0.56 | U45: 0 | V45: 2 | W45: 0 | X45: 0 | Z45: 0 | AA45: 3 | AB45: 3 | AG45: 0.03 | AL45: -0.5 | AN45: 1 | AQ45: 0.03 | AS45: 1 | AT45: 0.56 | AU45: -0.5 | AZ45: 0.03
B46: =IF(AND(ISNUMBER(B45),isvisible(B45)), B45+1,"") ->  | C46: =IF(AND(ISNUMBER(C45),isvisible(C45)), C45+1,"") ->  | Q46: 0 | R46: 0 | S46: 0 | T46: 0.56 | U46: 0 | V46: 2 | W46: 0 | X46: 0 | Z46: 0 | AA46: 3 | AB46: 3 | AG46: 0.03 | AL46: -0.5 | AN46: 1 | AQ46: 0.03 | AS46: 1 | AT46: 0.56 | AU46: -0.5 | AZ46: 0.03
B47: =IF(AND(ISNUMBER(B46),isvisible(B46)), B46+1,"") ->  | C47: =IF(AND(ISNUMBER(C46),isvisible(C46)), C46+1,"") ->  | Q47: 0 | R47: 0 | S47: 0 | T47: 0.56 | U47: 0 | V47: 2 | W47: 0 | X47: 0 | Z47: 0 | AA47: 3 | AB47: 3 | AG47: 0.03 | AL47: -0.5 | AN47: 1 | AQ47: 0.03 | AS47: 1 | AT47: 0.56 | AU47: -0.5 | AZ47: 0.03
B48: =IF(AND(ISNUMBER(B47),isvisible(B47)), B47+1,"") ->  | C48: =IF(AND(ISNUMBER(C47),isvisible(C47)), C47+1,"") ->  | Q48: 0 | R48: 0 | S48: 0 | T48: 0.56 | U48: 0 | V48: 2 | W48: 0 | X48: 0 | Z48: 0 | AA48: 3 | AB48: 3 | AG48: 0.03 | AL48: -0.5 | AN48: 1 | AQ48: 0.03 | AS48: 1 | AT48: 0.56 | AU48: -0.5 | AZ48: 0.03
B49: =IF(AND(ISNUMBER(B48),isvisible(B48)), B48+1,"") ->  | C49: =IF(AND(ISNUMBER(C48),isvisible(C48)), C48+1,"") ->  | Q49: 0 | R49: 0 | S49: 0 | T49: 0.56 | U49: 0 | V49: 2 | W49: 0 | X49: 0 | Z49: 0 | AA49: 3 | AB49: 3 | AG49: 0.03 | AL49: -0.5 | AN49: 1 | AQ49: 0.03 | AS49: 1 | AT49: 0.56 | AU49: -0.5 | AZ49: 0.03
B50: =IF(AND(ISNUMBER(B49),isvisible(B49)), B49+1,"") ->  | C50: =IF(AND(ISNUMBER(C49),isvisible(C49)), C49+1,"") ->  | Q50: 0 | R50: 0 | S50: 0 | T50: 0.56 | U50: 0 | V50: 2 | W50: 0 | X50: 0 | Z50: 0 | AA50: 3 | AB50: 3 | AG50: 0.03 | AL50: -0.5 | AN50: 1 | AQ50: 0.03 | AS50: 1 | AT50: 0.56 | AU50: -0.5 | AZ50: 0.03
B51: =IF(AND(ISNUMBER(B50),isvisible(B50)), B50+1,"") ->  | C51: =IF(AND(ISNUMBER(C50),isvisible(C50)), C50+1,"") ->  | Q51: 0 | R51: 0 | S51: 0 | T51: 0.56 | U51: 0 | V51: 2 | W51: 0 | X51: 0 | Z51: 0 | AA51: 3 | AB51: 3 | AG51: 0.03 | AL51: -0.5 | AN51: 1 | AQ51: 0.03 | AS51: 1 | AT51: 0.56 | AU51: -0.5 | AZ51: 0.03
B52: =IF(AND(ISNUMBER(B51),isvisible(B51)), B51+1,"") ->  | C52: =IF(AND(ISNUMBER(C51),isvisible(C51)), C51+1,"") ->  | Q52: 0 | R52: 0 | S52: 0 | T52: 0.56 | U52: 0 | V52: 2 | W52: 0 | X52: 0 | Z52: 0 | AA52: 3 | AB52: 3 | AG52: 0.03 | AL52: -0.5 | AN52: 1 | AQ52: 0.03 | AS52: 1 | AT52: 0.56 | AU52: -0.5 | AZ52: 0.03
B53: =IF(AND(ISNUMBER(B52),isvisible(B52)), B52+1,"") ->  | C53: =IF(AND(ISNUMBER(C52),isvisible(C52)), C52+1,"") ->  | Q53: 0 | R53: 0 | S53: 0 | T53: 0.56 | U53: 0 | V53: 2 | W53: 0 | X53: 0 | Z53: 0 | AA53: 3 | AB53: 3 | AG53: 0.03 | AL53: -0.5 | AN53: 1 | AQ53: 0.03 | AS53: 1 | AT53: 0.56 | AU53: -0.5 | AZ53: 0.03
B54: =IF(AND(ISNUMBER(B53),isvisible(B53)), B53+1,"") ->  | C54: =IF(AND(ISNUMBER(C53),isvisible(C53)), C53+1,"") ->  | Q54: 0 | R54: 0 | S54: 0 | T54: 0.56 | U54: 0 | V54: 2 | W54: 0 | X54: 0 | Z54: 0 | AA54: 3 | AB54: 3 | AG54: 0.03 | AL54: -0.5 | AN54: 1 | AQ54: 0.03 | AS54: 1 | AT54: 0.56 | AU54: -0.5 | AZ54: 0.03
B55: =IF(AND(ISNUMBER(B54),isvisible(B54)), B54+1,"") ->  | C55: =IF(AND(ISNUMBER(C54),isvisible(C54)), C54+1,"") ->  | Q55: 0 | R55: 0 | S55: 0 | T55: 0.56 | U55: 0 | V55: 2 | W55: 0 | X55: 0 | Z55: 0 | AA55: 3 | AB55: 3 | AG55: 0.03 | AL55: -0.5 | AN55: 1 | AQ55: 0.03 | AS55: 1 | AT55: 0.56 | AU55: -0.5 | AZ55: 0.03
B56: =IF(AND(ISNUMBER(B55),isvisible(B55)), B55+1,"") ->  | C56: =IF(AND(ISNUMBER(C55),isvisible(C55)), C55+1,"") ->  | Q56: 0 | R56: 0 | S56: 0 | T56: 0.56 | U56: 0 | V56: 2 | W56: 0 | X56: 0 | Z56: 0 | AA56: 3 | AB56: 3 | AG56: 0.03 | AL56: -0.5 | AN56: 1 | AQ56: 0.03 | AS56: 1 | AT56: 0.56 | AU56: -0.5 | AZ56: 0.03
B57: =IF(AND(ISNUMBER(B56),isvisible(B56)), B56+1,"") ->  | C57: =IF(AND(ISNUMBER(C56),isvisible(C56)), C56+1,"") ->  | Q57: 0 | R57: 0 | S57: 0 | T57: 0.56 | U57: 0 | V57: 2 | W57: 0 | X57: 0 | Z57: 0 | AA57: 3 | AB57: 3 | AG57: 0.03 | AL57: -0.5 | AN57: 1 | AQ57: 0.03 | AS57: 1 | AT57: 0.56 | AU57: -0.5 | AZ57: 0.03
B58: =IF(AND(ISNUMBER(B57),isvisible(B57)), B57+1,"") ->  | C58: =IF(AND(ISNUMBER(C57),isvisible(C57)), C57+1,"") ->  | Q58: 0 | R58: 0 | S58: 0 | T58: 0.56 | U58: 0 | V58: 2 | W58: 0 | X58: 0 | Z58: 0 | AA58: 3 | AB58: 3 | AG58: 0.03 | AL58: -0.5 | AN58: 1 | AQ58: 0.03 | AS58: 1 | AT58: 0.56 | AU58: -0.5 | AZ58: 0.03
B59: =IF(AND(ISNUMBER(B58),isvisible(B58)), B58+1,"") ->  | C59: =IF(AND(ISNUMBER(C58),isvisible(C58)), C58+1,"") ->  | Q59: 0 | R59: 0 | S59: 0 | T59: 0.56 | U59: 0 | V59: 2 | W59: 0 | X59: 0 | Z59: 0 | AA59: 3 | AB59: 3 | AG59: 0.03 | AL59: -0.5 | AN59: 1 | AQ59: 0.03 | AS59: 1 | AT59: 0.56 | AU59: -0.5 | AZ59: 0.03
B60: =IF(AND(ISNUMBER(B59),isvisible(B59)), B59+1,"") ->  | C60: =IF(AND(ISNUMBER(C59),isvisible(C59)), C59+1,"") ->  | Q60: 0 | R60: 0 | S60: 0 | T60: 0.56 | U60: 0 | V60: 2 | W60: 0 | X60: 0 | Z60: 0 | AA60: 3 | AB60: 3 | AG60: 0.03 | AL60: -0.5 | AN60: 1 | AQ60: 0.03 | AS60: 1 | AT60: 0.56 | AU60: -0.5 | AZ60: 0.03
B61: =IF(AND(ISNUMBER(B60),isvisible(B60)), B60+1,"") ->  | C61: =IF(AND(ISNUMBER(C60),isvisible(C60)), C60+1,"") ->  | Q61: 0 | R61: 0 | S61: 0 | T61: 0.56 | U61: 0 | V61: 2 | W61: 0 | X61: 0 | Z61: 0 | AA61: 3 | AB61: 3 | AG61: 0.03 | AL61: -0.5 | AN61: 1 | AQ61: 0.03 | AS61: 1 | AT61: 0.56 | AU61: -0.5 | AZ61: 0.03
B62: =IF(AND(ISNUMBER(B61),isvisible(B61)), B61+1,"") ->  | C62: =IF(AND(ISNUMBER(C61),isvisible(C61)), C61+1,"") ->  | Q62: 0 | R62: 0 | S62: 0 | T62: 0.56 | U62: 0 | V62: 2 | W62: 0 | X62: 0 | Z62: 0 | AA62: 3 | AB62: 3 | AG62: 0.03 | AL62: -0.5 | AN62: 1 | AQ62: 0.03 | AS62: 1 | AT62: 0.56 | AU62: -0.5 | AZ62: 0.03
B63: =IF(AND(ISNUMBER(B62),isvisible(B62)), B62+1,"") ->  | C63: =IF(AND(ISNUMBER(C62),isvisible(C62)), C62+1,"") ->  | Q63: 0 | R63: 0 | S63: 0 | T63: 0.56 | U63: 0 | V63: 2 | W63: 0 | X63: 0 | Z63: 0 | AA63: 3 | AB63: 3 | AG63: 0.03 | AL63: -0.5 | AN63: 1 | AQ63: 0.03 | AS63: 1 | AT63: 0.56 | AU63: -0.5 | AZ63: 0.03
B64: =IF(AND(ISNUMBER(B63),isvisible(B63)), B63+1,"") ->  | C64: =IF(AND(ISNUMBER(C63),isvisible(C63)), C63+1,"") ->  | Q64: 0 | R64: 0 | S64: 0 | T64: 0.56 | U64: 0 | V64: 2 | W64: 0 | X64: 0 | Z64: 0 | AA64: 3 | AB64: 3 | AG64: 0.03 | AL64: -0.5 | AN64: 1 | AQ64: 0.03 | AS64: 1 | AT64: 0.56 | AU64: -0.5 | AZ64: 0.03
B65: =IF(AND(ISNUMBER(B64),isvisible(B64)), B64+1,"") ->  | C65: =IF(AND(ISNUMBER(C64),isvisible(C64)), C64+1,"") ->  | Q65: 0 | R65: 0 | S65: 0 | T65: 0.56 | U65: 0 | V65: 2 | W65: 0 | X65: 0 | Z65: 0 | AA65: 3 | AB65: 3 | AG65: 0.03 | AL65: -0.5 | AN65: 1 | AQ65: 0.03 | AS65: 1 | AT65: 0.56 | AU65: -0.5 | AZ65: 0.03
B66: =IF(AND(ISNUMBER(B65),isvisible(B65)), B65+1,"") ->  | C66: =IF(AND(ISNUMBER(C65),isvisible(C65)), C65+1,"") ->  | Q66: 0 | R66: 0 | S66: 0 | T66: 0.56 | U66: 0 | V66: 2 | W66: 0 | X66: 0 | Z66: 0 | AA66: 3 | AB66: 3 | AG66: 0.03 | AL66: -0.5 | AN66: 1 | AQ66: 0.03 | AS66: 1 | AT66: 0.56 | AU66: -0.5 | AZ66: 0.03
B67: =IF(AND(ISNUMBER(B66),isvisible(B66)), B66+1,"") ->  | C67: =IF(AND(ISNUMBER(C66),isvisible(C66)), C66+1,"") ->  | Q67: 0 | R67: 0 | S67: 0 | T67: 0.56 | U67: 0 | V67: 2 | W67: 0 | X67: 0 | Z67: 0 | AA67: 3 | AB67: 3 | AG67: 0.03 | AL67: -0.5 | AN67: 1 | AQ67: 0.03 | AS67: 1 | AT67: 0.56 | AU67: -0.5 | AZ67: 0.03
B68: =IF(AND(ISNUMBER(B67),isvisible(B67)), B67+1,"") ->  | C68: =IF(AND(ISNUMBER(C67),isvisible(C67)), C67+1,"") ->  | Q68: 0 | R68: 0 | S68: 0 | T68: 0.56 | U68: 0 | V68: 2 | W68: 0 | X68: 0 | Z68: 0 | AA68: 3 | AB68: 3 | AG68: 0.03 | AL68: -0.5 | AN68: 1 | AQ68: 0.03 | AS68: 1 | AT68: 0.56 | AU68: -0.5 | AZ68: 0.03
B69: =IF(AND(ISNUMBER(B68),isvisible(B68)), B68+1,"") ->  | C69: =IF(AND(ISNUMBER(C68),isvisible(C68)), C68+1,"") ->  | Q69: 0 | R69: 0 | S69: 0 | T69: 0.56 | U69: 0 | V69: 2 | W69: 0 | X69: 0 | Z69: 0 | AA69: 3 | AB69: 3 | AG69: 0.03 | AL69: -0.5 | AN69: 1 | AQ69: 0.03 | AS69: 1 | AT69: 0.56 | AU69: -0.5 | AZ69: 0.03
B70: =IF(AND(ISNUMBER(B69),isvisible(B69)), B69+1,"") ->  | C70: =IF(AND(ISNUMBER(C69),isvisible(C69)), C69+1,"") ->  | Q70: 0 | R70: 0 | S70: 0 | T70: 0.56 | U70: 0 | V70: 2 | W70: 0 | X70: 0 | Z70: 0 | AA70: 3 | AB70: 3 | AG70: 0.03 | AL70: -0.5 | AN70: 1 | AQ70: 0.03 | AS70: 1 | AT70: 0.56 | AU70: -0.5 | AZ70: 0.03
B71: =IF(AND(ISNUMBER(B70),isvisible(B70)), B70+1,"") ->  | C71: =IF(AND(ISNUMBER(C70),isvisible(C70)), C70+1,"") ->  | Q71: 0 | R71: 0 | S71: 0 | T71: 0.56 | U71: 0 | V71: 2 | W71: 0 | X71: 0 | Z71: 0 | AA71: 3 | AB71: 3 | AG71: 0.03 | AL71: -0.5 | AN71: 1 | AQ71: 0.03 | AS71: 1 | AT71: 0.56 | AU71: -0.5 | AZ71: 0.03
B72: =IF(AND(ISNUMBER(B71),isvisible(B71)), B71+1,"") ->  | C72: =IF(AND(ISNUMBER(C71),isvisible(C71)), C71+1,"") ->  | Q72: 0 | R72: 0 | S72: 0 | T72: 0.56 | U72: 0 | V72: 2 | W72: 0 | X72: 0 | Z72: 0 | AA72: 3 | AB72: 3 | AG72: 0.03 | AL72: -0.5 | AN72: 1 | AQ72: 0.03 | AS72: 1 | AT72: 0.56 | AU72: -0.5 | AZ72: 0.03
B73: =IF(AND(ISNUMBER(B72),isvisible(B72)), B72+1,"") ->  | C73: =IF(AND(ISNUMBER(C72),isvisible(C72)), C72+1,"") ->  | Q73: 0 | R73: 0 | S73: 0 | T73: 0.56 | U73: 0 | V73: 2 | W73: 0 | X73: 0 | Z73: 0 | AA73: 3 | AB73: 3 | AG73: 0.03 | AL73: -0.5 | AN73: 1 | AQ73: 0.03 | AS73: 1 | AT73: 0.56 | AU73: -0.5 | AZ73: 0.03
B74: =IF(AND(ISNUMBER(B73),isvisible(B73)), B73+1,"") ->  | C74: =IF(AND(ISNUMBER(C73),isvisible(C73)), C73+1,"") ->  | Q74: 0 | R74: 0 | S74: 0 | T74: 0.56 | U74: 0 | V74: 2 | W74: 0 | X74: 0 | Z74: 0 | AA74: 3 | AB74: 3 | AG74: 0.03 | AL74: -0.5 | AN74: 1 | AQ74: 0.03 | AS74: 1 | AT74: 0.56 | AU74: -0.5 | AZ74: 0.03
B75: =IF(AND(ISNUMBER(B74),isvisible(B74)), B74+1,"") ->  | C75: =IF(AND(ISNUMBER(C74),isvisible(C74)), C74+1,"") ->  | Q75: 0 | R75: 0 | S75: 0 | T75: 0.56 | U75: 0 | V75: 2 | W75: 0 | X75: 0 | Z75: 0 | AA75: 3 | AB75: 3 | AG75: 0.03 | AL75: -0.5 | AN75: 1 | AQ75: 0.03 | AS75: 1 | AT75: 0.56 | AU75: -0.5 | AZ75: 0.03
B76: =IF(AND(ISNUMBER(B75),isvisible(B75)), B75+1,"") ->  | C76: =IF(AND(ISNUMBER(C75),isvisible(C75)), C75+1,"") ->  | M76: =IFERROR(H76*I76*J76,"") ->  | Q76: 0 | R76: 0 | S76: =(SIN(R76))/0.0896 -> 0 | T76: 0.56 | U76: 0 | V76: 2 | W76: 0 | X76: =+W76/(W76+1) -> 0 | Z76: 0 | AA76: =IF(Z76>=3,Z76,3) -> 3 | AB76: 3 | AG76: 0.03 | AL76: -0.5 | AN76: 1 | AQ76: 0.03 | AS76: 1 | AT76: 0.56 | AU76: -0.5 | AZ76: 0.03
B77: =IF(AND(ISNUMBER(B76),isvisible(B76)), B76+1,"") ->  | C77: =IF(AND(ISNUMBER(C76),isvisible(C76)), C76+1,"") ->  | H77: =IF(H76 = "","",H76) ->  | Q77: 0 | R77: 0 | S77: 0 | T77: 0.56 | U77: 0 | V77: 2 | W77: 0 | X77: 0 | Z77: 0 | AA77: 3 | AB77: 3 | AG77: 0.03 | AL77: -0.5 | AN77: 1 | AQ77: 0.03 | AS77: 1 | AT77: 0.56 | AU77: -0.5 | AZ77: 0.03
B78: =IF(AND(ISNUMBER(B77),isvisible(B77)), B77+1,"") ->  | C78: =IF(AND(ISNUMBER(C77),isvisible(C77)), C77+1,"") ->  | Q78: 0 | R78: 0 | S78: 0 | T78: 0.56 | U78: 0 | V78: 2 | W78: 0 | X78: 0 | Z78: 0 | AA78: 3 | AB78: 3 | AG78: 0.03 | AL78: -0.5 | AN78: 1 | AQ78: 0.03 | AS78: 1 | AT78: 0.56 | AU78: -0.5 | AZ78: 0.03
B79: =IF(AND(ISNUMBER(B78),isvisible(B78)), B78+1,"") ->  | C79: =IF(AND(ISNUMBER(C78),isvisible(C78)), C78+1,"") ->  | Q79: 0 | R79: 0 | S79: 0 | T79: 0.56 | U79: 0 | V79: 2 | W79: 0 | X79: 0 | Z79: 0 | AA79: 3 | AB79: 3 | AG79: 0.03 | AL79: -0.5 | AN79: 1 | AQ79: 0.03 | AS79: 1 | AT79: 0.56 | AU79: -0.5 | AZ79: 0.03
B80: =IF(AND(ISNUMBER(B79),isvisible(B79)), B79+1,"") ->  | C80: =IF(AND(ISNUMBER(C79),isvisible(C79)), C79+1,"") ->  | J80: =IF(NOT(AND(ISNUMBER(E80),ISNUMBER(F80))),"",INDEX(AX80:BA80,1,MATCH(AB80,$AX$9:$BA$9))) ->  | N80: =IFERROR(H80*I80*J80*K80*L80,"") ->  | O80: =IFERROR(N80*D80,"") ->  | P80: =IFERROR(H80*I80*J80*D80,"") ->  | Q80: =DEGREES(ATAN(E80/100)) -> 0 | R80: =(ATAN(E80/100)) -> 0 | S80: 0 | T80: =(((SIN(R80))^0.8)*3)+ 0.56 -> 0.56 | U80: =+S80/T80 -> 0 | V80: 2 | W80: =+V80*U80 -> 0 | X80: 0 | Z80: =F80*3.2808399 -> 0 | AA80: 3 | AB80: =IF(AND(AA80>=15, E80<9),1,IF(AND(AA80>=15, E80>=9),2,IF(AND(AA80<15, E80<9),3,IF(AND(AA80<15, E80>=9),4,0)))) -> 3 | AD80: =(Z80/72.6)^X80 ->  | AG80: =((SIN(R80))*10.8) + 0.03 -> 0.03 | AI80: =(Z80/72.6)^X80 ->  | AL80: =((SIN(R80))*16.8) - 0.5 -> -0.5 | AN80: =(15/72.6)^X80 -> 1 | AQ80: =((SIN(R80))*10.8) + 0.03 -> 0.03 | AS80: =(15/72.6)^X80 -> 1 | AT80: =(((SIN(R80))^0.8)*3)+ 0.56 -> 0.56 | AU80: =((SIN(R80))*16.8) - 0.5 -> -0.5 | AX80: =AD80*AG80 ->  | AY80: =AI80*AL80 ->  | AZ80: =AN80*AQ80 -> 0.03 | BA80: =10^(LOG10(AS80*AT80)+(LOG10(AA80)-LOG10(3))*(LOG10(AS80*AU80)-LOG10(AS80*AT80))/0.699) -> 
B81: =IF(AND(ISNUMBER(B80),isvisible(B80)), B80+1,"") ->  | C81: =IF(AND(ISNUMBER(C80),isvisible(C80)), C80+1,"") ->  | Q81: 0 | R81: 0 | S81: 0 | T81: 0.56 | U81: 0 | V81: 2 | W81: 0 | X81: 0 | Z81: 0 | AA81: 3 | AB81: 3 | AG81: 0.03 | AL81: -0.5 | AN81: 1 | AQ81: 0.03 | AS81: 1 | AT81: 0.56 | AU81: -0.5 | AZ81: 0.03
B82: =IF(AND(ISNUMBER(B81),isvisible(B81)), B81+1,"") ->  | C82: =IF(AND(ISNUMBER(C81),isvisible(C81)), C81+1,"") ->  | Q82: 0 | R82: 0 | S82: 0 | T82: 0.56 | U82: 0 | V82: 2 | W82: 0 | X82: 0 | Z82: 0 | AA82: 3 | AB82: 3 | AG82: 0.03 | AL82: -0.5 | AN82: 1 | AQ82: 0.03 | AS82: 1 | AT82: 0.56 | AU82: -0.5 | AZ82: 0.03
B83: =IF(AND(ISNUMBER(B82),isvisible(B82)), B82+1,"") ->  | C83: =IF(AND(ISNUMBER(C82),isvisible(C82)), C82+1,"") ->  | Q83: 0 | R83: 0 | S83: 0 | T83: 0.56 | U83: 0 | V83: 2 | W83: 0 | X83: 0 | Z83: 0 | AA83: 3 | AB83: 3 | AG83: 0.03 | AL83: -0.5 | AN83: 1 | AQ83: 0.03 | AS83: 1 | AT83: 0.56 | AU83: -0.5 | AZ83: 0.03
B84: =IF(AND(ISNUMBER(B83),isvisible(B83)), B83+1,"") ->  | C84: =IF(AND(ISNUMBER(C83),isvisible(C83)), C83+1,"") ->  | Q84: 0 | R84: 0 | S84: 0 | T84: 0.56 | U84: 0 | V84: 2 | W84: 0 | X84: 0 | Z84: 0 | AA84: 3 | AB84: 3 | AG84: 0.03 | AL84: -0.5 | AN84: 1 | AQ84: 0.03 | AS84: 1 | AT84: 0.56 | AU84: -0.5 | AZ84: 0.03
B85: =IF(AND(ISNUMBER(B84),isvisible(B84)), B84+1,"") ->  | C85: =IF(AND(ISNUMBER(C84),isvisible(C84)), C84+1,"") ->  | Q85: 0 | R85: 0 | S85: 0 | T85: 0.56 | U85: 0 | V85: 2 | W85: 0 | X85: 0 | Z85: 0 | AA85: 3 | AB85: 3 | AG85: 0.03 | AL85: -0.5 | AN85: 1 | AQ85: 0.03 | AS85: 1 | AT85: 0.56 | AU85: -0.5 | AZ85: 0.03
B86: =IF(AND(ISNUMBER(B85),isvisible(B85)), B85+1,"") ->  | C86: =IF(AND(ISNUMBER(C85),isvisible(C85)), C85+1,"") ->  | Q86: 0 | R86: 0 | S86: 0 | T86: 0.56 | U86: 0 | V86: 2 | W86: 0 | X86: 0 | Z86: 0 | AA86: 3 | AB86: 3 | AG86: 0.03 | AL86: -0.5 | AN86: 1 | AQ86: 0.03 | AS86: 1 | AT86: 0.56 | AU86: -0.5 | AZ86: 0.03
B87: =IF(AND(ISNUMBER(B86),isvisible(B86)), B86+1,"") ->  | C87: =IF(AND(ISNUMBER(C86),isvisible(C86)), C86+1,"") ->  | Q87: 0 | R87: 0 | S87: 0 | T87: 0.56 | U87: 0 | V87: 2 | W87: 0 | X87: 0 | Z87: 0 | AA87: 3 | AB87: 3 | AG87: 0.03 | AL87: -0.5 | AN87: 1 | AQ87: 0.03 | AS87: 1 | AT87: 0.56 | AU87: -0.5 | AZ87: 0.03
B88: =IF(AND(ISNUMBER(B87),isvisible(B87)), B87+1,"") ->  | C88: =IF(AND(ISNUMBER(C87),isvisible(C87)), C87+1,"") ->  | Q88: 0 | R88: 0 | S88: 0 | T88: 0.56 | U88: 0 | V88: 2 | W88: 0 | X88: 0 | Z88: 0 | AA88: 3 | AB88: 3 | AG88: 0.03 | AL88: -0.5 | AN88: 1 | AQ88: 0.03 | AS88: 1 | AT88: 0.56 | AU88: -0.5 | AZ88: 0.03
B89: =IF(AND(ISNUMBER(B88),isvisible(B88)), B88+1,"") ->  | C89: =IF(AND(ISNUMBER(C88),isvisible(C88)), C88+1,"") ->  | Q89: 0 | R89: 0 | S89: 0 | T89: 0.56 | U89: 0 | V89: 2 | W89: 0 | X89: 0 | Z89: 0 | AA89: 3 | AB89: 3 | AG89: 0.03 | AL89: -0.5 | AN89: 1 | AQ89: 0.03 | AS89: 1 | AT89: 0.56 | AU89: -0.5 | AZ89: 0.03
B90: =IF(AND(ISNUMBER(B89),isvisible(B89)), B89+1,"") ->  | C90: =IF(AND(ISNUMBER(C89),isvisible(C89)), C89+1,"") ->  | Q90: 0 | R90: 0 | S90: 0 | T90: 0.56 | U90: 0 | V90: 2 | W90: 0 | X90: 0 | Z90: 0 | AA90: 3 | AB90: 3 | AG90: 0.03 | AL90: -0.5 | AN90: 1 | AQ90: 0.03 | AS90: 1 | AT90: 0.56 | AU90: -0.5 | AZ90: 0.03
B91: =IF(AND(ISNUMBER(B90),isvisible(B90)), B90+1,"") ->  | C91: =IF(AND(ISNUMBER(C90),isvisible(C90)), C90+1,"") ->  | Q91: 0 | R91: 0 | S91: 0 | T91: 0.56 | U91: 0 | V91: 2 | W91: 0 | X91: 0 | Z91: 0 | AA91: 3 | AB91: 3 | AG91: 0.03 | AL91: -0.5 | AN91: 1 | AQ91: 0.03 | AS91: 1 | AT91: 0.56 | AU91: -0.5 | AZ91: 0.03
B92: =IF(AND(ISNUMBER(B91),isvisible(B91)), B91+1,"") ->  | C92: =IF(AND(ISNUMBER(C91),isvisible(C91)), C91+1,"") ->  | Q92: 0 | R92: 0 | S92: 0 | T92: 0.56 | U92: 0 | V92: 2 | W92: 0 | X92: 0 | Z92: 0 | AA92: 3 | AB92: 3 | AG92: 0.03 | AL92: -0.5 | AN92: 1 | AQ92: 0.03 | AS92: 1 | AT92: 0.56 | AU92: -0.5 | AZ92: 0.03
B93: =IF(AND(ISNUMBER(B92),isvisible(B92)), B92+1,"") ->  | C93: =IF(AND(ISNUMBER(C92),isvisible(C92)), C92+1,"") ->  | Q93: 0 | R93: 0 | S93: 0 | T93: 0.56 | U93: 0 | V93: 2 | W93: 0 | X93: 0 | Z93: 0 | AA93: 3 | AB93: 3 | AG93: 0.03 | AL93: -0.5 | AN93: 1 | AQ93: 0.03 | AS93: 1 | AT93: 0.56 | AU93: -0.5 | AZ93: 0.03
B94: =IF(AND(ISNUMBER(B93),isvisible(B93)), B93+1,"") ->  | C94: =IF(AND(ISNUMBER(C93),isvisible(C93)), C93+1,"") ->  | Q94: 0 | R94: 0 | S94: 0 | T94: 0.56 | U94: 0 | V94: 2 | W94: 0 | X94: 0 | Z94: 0 | AA94: 3 | AB94: 3 | AG94: 0.03 | AL94: -0.5 | AN94: 1 | AQ94: 0.03 | AS94: 1 | AT94: 0.56 | AU94: -0.5 | AZ94: 0.03
B95: =IF(AND(ISNUMBER(B94),isvisible(B94)), B94+1,"") ->  | C95: =IF(AND(ISNUMBER(C94),isvisible(C94)), C94+1,"") ->  | Q95: 0 | R95: 0 | S95: 0 | T95: 0.56 | U95: 0 | V95: 2 | W95: 0 | X95: 0 | Z95: 0 | AA95: 3 | AB95: 3 | AG95: 0.03 | AL95: -0.5 | AN95: 1 | AQ95: 0.03 | AS95: 1 | AT95: 0.56 | AU95: -0.5 | AZ95: 0.03
B96: =IF(AND(ISNUMBER(B95),isvisible(B95)), B95+1,"") ->  | C96: =IF(AND(ISNUMBER(C95),isvisible(C95)), C95+1,"") ->  | Q96: 0 | R96: 0 | S96: 0 | T96: 0.56 | U96: 0 | V96: 2 | W96: 0 | X96: 0 | Z96: 0 | AA96: 3 | AB96: 3 | AG96: 0.03 | AL96: -0.5 | AN96: 1 | AQ96: 0.03 | AS96: 1 | AT96: 0.56 | AU96: -0.5 | AZ96: 0.03
B97: =IF(AND(ISNUMBER(B96),isvisible(B96)), B96+1,"") ->  | C97: =IF(AND(ISNUMBER(C96),isvisible(C96)), C96+1,"") ->  | Q97: 0 | R97: 0 | S97: 0 | T97: 0.56 | U97: 0 | V97: 2 | W97: 0 | X97: 0 | Z97: 0 | AA97: 3 | AB97: 3 | AG97: 0.03 | AL97: -0.5 | AN97: 1 | AQ97: 0.03 | AS97: 1 | AT97: 0.56 | AU97: -0.5 | AZ97: 0.03
B98: =IF(AND(ISNUMBER(B97),isvisible(B97)), B97+1,"") ->  | C98: =IF(AND(ISNUMBER(C97),isvisible(C97)), C97+1,"") ->  | Q98: 0 | R98: 0 | S98: 0 | T98: 0.56 | U98: 0 | V98: 2 | W98: 0 | X98: 0 | Z98: 0 | AA98: 3 | AB98: 3 | AG98: 0.03 | AL98: -0.5 | AN98: 1 | AQ98: 0.03 | AS98: 1 | AT98: 0.56 | AU98: -0.5 | AZ98: 0.03
B99: =IF(AND(ISNUMBER(B98),isvisible(B98)), B98+1,"") ->  | C99: =IF(AND(ISNUMBER(C98),isvisible(C98)), C98+1,"") ->  | Q99: 0 | R99: 0 | S99: 0 | T99: 0.56 | U99: 0 | V99: 2 | W99: 0 | X99: 0 | Z99: 0 | AA99: 3 | AB99: 3 | AG99: 0.03 | AL99: -0.5 | AN99: 1 | AQ99: 0.03 | AS99: 1 | AT99: 0.56 | AU99: -0.5 | AZ99: 0.03
B100: =IF(AND(ISNUMBER(B99),isvisible(B99)), B99+1,"") ->  | C100: =IF(AND(ISNUMBER(C99),isvisible(C99)), C99+1,"") ->  | Q100: 0 | R100: 0 | S100: 0 | T100: 0.56 | U100: 0 | V100: 2 | W100: 0 | X100: 0 | Z100: 0 | AA100: 3 | AB100: 3 | AG100: 0.03 | AL100: -0.5 | AN100: 1 | AQ100: 0.03 | AS100: 1 | AT100: 0.56 | AU100: -0.5 | AZ100: 0.03
B101: =IF(AND(ISNUMBER(B100),isvisible(B100)), B100+1,"") ->  | C101: =IF(AND(ISNUMBER(C100),isvisible(C100)), C100+1,"") ->  | Q101: 0 | R101: 0 | S101: 0 | T101: 0.56 | U101: 0 | V101: 2 | W101: 0 | X101: 0 | Z101: 0 | AA101: 3 | AB101: 3 | AG101: 0.03 | AL101: -0.5 | AN101: 1 | AQ101: 0.03 | AS101: 1 | AT101: 0.56 | AU101: -0.5 | AZ101: 0.03
B102: =IF(AND(ISNUMBER(B101),isvisible(B101)), B101+1,"") ->  | C102: =IF(AND(ISNUMBER(C101),isvisible(C101)), C101+1,"") ->  | Q102: 0 | R102: 0 | S102: 0 | T102: 0.56 | U102: 0 | V102: 2 | W102: 0 | X102: 0 | Z102: 0 | AA102: 3 | AB102: 3 | AG102: 0.03 | AL102: -0.5 | AN102: 1 | AQ102: 0.03 | AS102: 1 | AT102: 0.56 | AU102: -0.5 | AZ102: 0.03
B103: =IF(AND(ISNUMBER(B102),isvisible(B102)), B102+1,"") ->  | C103: =IF(AND(ISNUMBER(C102),isvisible(C102)), C102+1,"") ->  | Q103: 0 | R103: 0 | S103: 0 | T103: 0.56 | U103: 0 | V103: 2 | W103: 0 | X103: 0 | Z103: 0 | AA103: 3 | AB103: 3 | AG103: 0.03 | AL103: -0.5 | AN103: 1 | AQ103: 0.03 | AS103: 1 | AT103: 0.56 | AU103: -0.5 | AZ103: 0.03
B104: =IF(AND(ISNUMBER(B103),isvisible(B103)), B103+1,"") ->  | C104: =IF(AND(ISNUMBER(C103),isvisible(C103)), C103+1,"") ->  | Q104: 0 | R104: 0 | S104: 0 | T104: 0.56 | U104: 0 | V104: 2 | W104: 0 | X104: 0 | Z104: 0 | AA104: 3 | AB104: 3 | AG104: 0.03 | AL104: -0.5 | AN104: 1 | AQ104: 0.03 | AS104: 1 | AT104: 0.56 | AU104: -0.5 | AZ104: 0.03
B105: =IF(AND(ISNUMBER(B104),isvisible(B104)), B104+1,"") ->  | C105: =IF(AND(ISNUMBER(C104),isvisible(C104)), C104+1,"") ->  | Q105: 0 | R105: 0 | S105: 0 | T105: 0.56 | U105: 0 | V105: 2 | W105: 0 | X105: 0 | Z105: 0 | AA105: 3 | AB105: 3 | AG105: 0.03 | AL105: -0.5 | AN105: 1 | AQ105: 0.03 | AS105: 1 | AT105: 0.56 | AU105: -0.5 | AZ105: 0.03
B106: =IF(AND(ISNUMBER(B105),isvisible(B105)), B105+1,"") ->  | C106: =IF(AND(ISNUMBER(C105),isvisible(C105)), C105+1,"") ->  | Q106: 0 | R106: 0 | S106: 0 | T106: 0.56 | U106: 0 | V106: 2 | W106: 0 | X106: 0 | Z106: 0 | AA106: 3 | AB106: 3 | AG106: 0.03 | AL106: -0.5 | AN106: 1 | AQ106: 0.03 | AS106: 1 | AT106: 0.56 | AU106: -0.5 | AZ106: 0.03
B107: =IF(AND(ISNUMBER(B106),isvisible(B106)), B106+1,"") ->  | C107: =IF(AND(ISNUMBER(C106),isvisible(C106)), C106+1,"") ->  | Q107: 0 | R107: 0 | S107: 0 | T107: 0.56 | U107: 0 | V107: 2 | W107: 0 | X107: 0 | Z107: 0 | AA107: 3 | AB107: 3 | AG107: 0.03 | AL107: -0.5 | AN107: 1 | AQ107: 0.03 | AS107: 1 | AT107: 0.56 | AU107: -0.5 | AZ107: 0.03
B108: =IF(AND(ISNUMBER(B107),isvisible(B107)), B107+1,"") ->  | C108: =IF(AND(ISNUMBER(C107),isvisible(C107)), C107+1,"") ->  | Q108: 0 | R108: 0 | S108: 0 | T108: 0.56 | U108: 0 | V108: 2 | W108: 0 | X108: 0 | Z108: 0 | AA108: 3 | AB108: 3 | AG108: 0.03 | AL108: -0.5 | AN108: 1 | AQ108: 0.03 | AS108: 1 | AT108: 0.56 | AU108: -0.5 | AZ108: 0.03
B109: =IF(AND(ISNUMBER(B108),isvisible(B108)), B108+1,"") ->  | C109: =IF(AND(ISNUMBER(C108),isvisible(C108)), C108+1,"") ->  | Q109: 0 | R109: 0 | S109: 0 | T109: 0.56 | U109: 0 | V109: 2 | W109: 0 | X109: 0 | Z109: 0 | AA109: 3 | AB109: 3 | AG109: 0.03 | AL109: -0.5 | AN109: 1 | AQ109: 0.03 | AS109: 1 | AT109: 0.56 | AU109: -0.5 | AZ109: 0.03
B110: =IF(AND(ISNUMBER(B109),isvisible(B109)), B109+1,"") ->  | C110: =IF(AND(ISNUMBER(C109),isvisible(C109)), C109+1,"") ->  | Q110: 0 | R110: 0 | S110: 0 | T110: 0.56 | U110: 0 | V110: 2 | W110: 0 | X110: 0 | Z110: 0 | AA110: 3 | AB110: 3 | AG110: 0.03 | AL110: -0.5 | AN110: 1 | AQ110: 0.03 | AS110: 1 | AT110: 0.56 | AU110: -0.5 | AZ110: 0.03
B111: =IF(AND(ISNUMBER(B110),isvisible(B110)), B110+1,"") ->  | C111: =IF(AND(ISNUMBER(C110),isvisible(C110)), C110+1,"") ->  | Q111: 0 | R111: 0 | S111: 0 | T111: 0.56 | U111: 0 | V111: 2 | W111: 0 | X111: 0 | Z111: 0 | AA111: 3 | AB111: 3 | AG111: 0.03 | AL111: -0.5 | AN111: 1 | AQ111: 0.03 | AS111: 1 | AT111: 0.56 | AU111: -0.5 | AZ111: 0.03
B112: =IF(AND(ISNUMBER(B111),isvisible(B111)), B111+1,"") ->  | C112: =IF(AND(ISNUMBER(C111),isvisible(C111)), C111+1,"") ->  | Q112: 0 | R112: 0 | S112: 0 | T112: 0.56 | U112: 0 | V112: 2 | W112: 0 | X112: 0 | Z112: 0 | AA112: 3 | AB112: 3 | AG112: 0.03 | AL112: -0.5 | AN112: 1 | AQ112: 0.03 | AS112: 1 | AT112: 0.56 | AU112: -0.5 | AZ112: 0.03
B113: =IF(AND(ISNUMBER(B112),isvisible(B112)), B112+1,"") ->  | C113: =IF(AND(ISNUMBER(C112),isvisible(C112)), C112+1,"") ->  | Q113: 0 | R113: 0 | S113: 0 | T113: 0.56 | U113: 0 | V113: 2 | W113: 0 | X113: 0 | Z113: 0 | AA113: 3 | AB113: 3 | AG113: 0.03 | AL113: -0.5 | AN113: 1 | AQ113: 0.03 | AS113: 1 | AT113: 0.56 | AU113: -0.5 | AZ113: 0.03
B114: =IF(AND(ISNUMBER(B113),isvisible(B113)), B113+1,"") ->  | C114: =IF(AND(ISNUMBER(C113),isvisible(C113)), C113+1,"") ->  | Q114: 0 | R114: 0 | S114: 0 | T114: 0.56 | U114: 0 | V114: 2 | W114: 0 | X114: 0 | Z114: 0 | AA114: 3 | AB114: 3 | AG114: 0.03 | AL114: -0.5 | AN114: 1 | AQ114: 0.03 | AS114: 1 | AT114: 0.56 | AU114: -0.5 | AZ114: 0.03
B115: =IF(AND(ISNUMBER(B114),isvisible(B114)), B114+1,"") ->  | C115: =IF(AND(ISNUMBER(C114),isvisible(C114)), C114+1,"") ->  | Q115: 0 | R115: 0 | S115: 0 | T115: 0.56 | U115: 0 | V115: 2 | W115: 0 | X115: 0 | Z115: 0 | AA115: 3 | AB115: 3 | AG115: 0.03 | AL115: -0.5 | AN115: 1 | AQ115: 0.03 | AS115: 1 | AT115: 0.56 | AU115: -0.5 | AZ115: 0.03
B116: =IF(AND(ISNUMBER(B115),isvisible(B115)), B115+1,"") ->  | C116: =IF(AND(ISNUMBER(C115),isvisible(C115)), C115+1,"") ->  | Q116: 0 | R116: 0 | S116: 0 | T116: 0.56 | U116: 0 | V116: 2 | W116: 0 | X116: 0 | Z116: 0 | AA116: 3 | AB116: 3 | AG116: 0.03 | AL116: -0.5 | AN116: 1 | AQ116: 0.03 | AS116: 1 | AT116: 0.56 | AU116: -0.5 | AZ116: 0.03
B117: =IF(AND(ISNUMBER(B116),isvisible(B116)), B116+1,"") ->  | C117: =IF(AND(ISNUMBER(C116),isvisible(C116)), C116+1,"") ->  | Q117: 0 | R117: 0 | S117: 0 | T117: 0.56 | U117: 0 | V117: 2 | W117: 0 | X117: 0 | Z117: 0 | AA117: 3 | AB117: 3 | AG117: 0.03 | AL117: -0.5 | AN117: 1 | AQ117: 0.03 | AS117: 1 | AT117: 0.56 | AU117: -0.5 | AZ117: 0.03
B118: =IF(AND(ISNUMBER(B117),isvisible(B117)), B117+1,"") ->  | C118: =IF(AND(ISNUMBER(C117),isvisible(C117)), C117+1,"") ->  | Q118: 0 | R118: 0 | S118: 0 | T118: 0.56 | U118: 0 | V118: 2 | W118: 0 | X118: 0 | Z118: 0 | AA118: 3 | AB118: 3 | AG118: 0.03 | AL118: -0.5 | AN118: 1 | AQ118: 0.03 | AS118: 1 | AT118: 0.56 | AU118: -0.5 | AZ118: 0.03
B119: =IF(AND(ISNUMBER(B118),isvisible(B118)), B118+1,"") ->  | C119: =IF(AND(ISNUMBER(C118),isvisible(C118)), C118+1,"") ->  | Q119: 0 | R119: 0 | S119: 0 | T119: 0.56 | U119: 0 | V119: 2 | W119: 0 | X119: 0 | Z119: 0 | AA119: 3 | AB119: 3 | AG119: 0.03 | AL119: -0.5 | AN119: 1 | AQ119: 0.03 | AS119: 1 | AT119: 0.56 | AU119: -0.5 | AZ119: 0.03
B120: =IF(AND(ISNUMBER(B119),isvisible(B119)), B119+1,"") ->  | C120: =IF(AND(ISNUMBER(C119),isvisible(C119)), C119+1,"") ->  | Q120: 0 | R120: 0 | S120: 0 | T120: 0.56 | U120: 0 | V120: 2 | W120: 0 | X120: 0 | Z120: 0 | AA120: 3 | AB120: 3 | AG120: 0.03 | AL120: -0.5 | AN120: 1 | AQ120: 0.03 | AS120: 1 | AT120: 0.56 | AU120: -0.5 | AZ120: 0.03
B121: =IF(AND(ISNUMBER(B120),isvisible(B120)), B120+1,"") ->  | C121: =IF(AND(ISNUMBER(C120),isvisible(C120)), C120+1,"") ->  | Q121: 0 | R121: 0 | S121: 0 | T121: 0.56 | U121: 0 | V121: 2 | W121: 0 | X121: 0 | Z121: 0 | AA121: 3 | AB121: 3 | AG121: 0.03 | AL121: -0.5 | AN121: 1 | AQ121: 0.03 | AS121: 1 | AT121: 0.56 | AU121: -0.5 | AZ121: 0.03
B122: =IF(AND(ISNUMBER(B121),isvisible(B121)), B121+1,"") ->  | C122: =IF(AND(ISNUMBER(C121),isvisible(C121)), C121+1,"") ->  | Q122: 0 | R122: 0 | S122: 0 | T122: 0.56 | U122: 0 | V122: 2 | W122: 0 | X122: 0 | Z122: 0 | AA122: 3 | AB122: 3 | AG122: 0.03 | AL122: -0.5 | AN122: 1 | AQ122: 0.03 | AS122: 1 | AT122: 0.56 | AU122: -0.5 | AZ122: 0.03
B123: =IF(AND(ISNUMBER(B122),isvisible(B122)), B122+1,"") ->  | C123: =IF(AND(ISNUMBER(C122),isvisible(C122)), C122+1,"") ->  | Q123: 0 | R123: 0 | S123: 0 | T123: 0.56 | U123: 0 | V123: 2 | W123: 0 | X123: 0 | Z123: 0 | AA123: 3 | AB123: 3 | AG123: 0.03 | AL123: -0.5 | AN123: 1 | AQ123: 0.03 | AS123: 1 | AT123: 0.56 | AU123: -0.5 | AZ123: 0.03
B124: =IF(AND(ISNUMBER(B123),isvisible(B123)), B123+1,"") ->  | C124: =IF(AND(ISNUMBER(C123),isvisible(C123)), C123+1,"") ->  | Q124: 0 | R124: 0 | S124: 0 | T124: 0.56 | U124: 0 | V124: 2 | W124: 0 | X124: 0 | Z124: 0 | AA124: 3 | AB124: 3 | AG124: 0.03 | AL124: -0.5 | AN124: 1 | AQ124: 0.03 | AS124: 1 | AT124: 0.56 | AU124: -0.5 | AZ124: 0.03
B125: =IF(AND(ISNUMBER(B124),isvisible(B124)), B124+1,"") ->  | C125: =IF(AND(ISNUMBER(C124),isvisible(C124)), C124+1,"") ->  | Q125: 0 | R125: 0 | S125: 0 | T125: 0.56 | U125: 0 | V125: 2 | W125: 0 | X125: 0 | Z125: 0 | AA125: 3 | AB125: 3 | AG125: 0.03 | AL125: -0.5 | AN125: 1 | AQ125: 0.03 | AS125: 1 | AT125: 0.56 | AU125: -0.5 | AZ125: 0.03
B126: =IF(AND(ISNUMBER(B125),isvisible(B125)), B125+1,"") ->  | C126: =IF(AND(ISNUMBER(C125),isvisible(C125)), C125+1,"") ->  | Q126: 0 | R126: 0 | S126: 0 | T126: 0.56 | U126: 0 | V126: 2 | W126: 0 | X126: 0 | Z126: 0 | AA126: 3 | AB126: 3 | AG126: 0.03 | AL126: -0.5 | AN126: 1 | AQ126: 0.03 | AS126: 1 | AT126: 0.56 | AU126: -0.5 | AZ126: 0.03
B127: =IF(AND(ISNUMBER(B126),isvisible(B126)), B126+1,"") ->  | C127: =IF(AND(ISNUMBER(C126),isvisible(C126)), C126+1,"") ->  | Q127: 0 | R127: 0 | S127: 0 | T127: 0.56 | U127: 0 | V127: 2 | W127: 0 | X127: 0 | Z127: 0 | AA127: 3 | AB127: 3 | AG127: 0.03 | AL127: -0.5 | AN127: 1 | AQ127: 0.03 | AS127: 1 | AT127: 0.56 | AU127: -0.5 | AZ127: 0.03
B128: =IF(AND(ISNUMBER(B127),isvisible(B127)), B127+1,"") ->  | C128: =IF(AND(ISNUMBER(C127),isvisible(C127)), C127+1,"") ->  | Q128: 0 | R128: 0 | S128: 0 | T128: 0.56 | U128: 0 | V128: 2 | W128: 0 | X128: 0 | Z128: 0 | AA128: 3 | AB128: 3 | AG128: 0.03 | AL128: -0.5 | AN128: 1 | AQ128: 0.03 | AS128: 1 | AT128: 0.56 | AU128: -0.5 | AZ128: 0.03
B129: =IF(AND(ISNUMBER(B128),isvisible(B128)), B128+1,"") ->  | C129: =IF(AND(ISNUMBER(C128),isvisible(C128)), C128+1,"") ->  | Q129: 0 | R129: 0 | S129: 0 | T129: 0.56 | U129: 0 | V129: 2 | W129: 0 | X129: 0 | Z129: 0 | AA129: 3 | AB129: 3 | AG129: 0.03 | AL129: -0.5 | AN129: 1 | AQ129: 0.03 | AS129: 1 | AT129: 0.56 | AU129: -0.5 | AZ129: 0.03
B130: =IF(AND(ISNUMBER(B129),isvisible(B129)), B129+1,"") ->  | C130: =IF(AND(ISNUMBER(C129),isvisible(C129)), C129+1,"") ->  | Q130: 0 | R130: 0 | S130: 0 | T130: 0.56 | U130: 0 | V130: 2 | W130: 0 | X130: 0 | Z130: 0 | AA130: 3 | AB130: 3 | AG130: 0.03 | AL130: -0.5 | AN130: 1 | AQ130: 0.03 | AS130: 1 | AT130: 0.56 | AU130: -0.5 | AZ130: 0.03
B131: =IF(AND(ISNUMBER(B130),isvisible(B130)), B130+1,"") ->  | C131: =IF(AND(ISNUMBER(C130),isvisible(C130)), C130+1,"") ->  | Q131: 0 | R131: 0 | S131: 0 | T131: 0.56 | U131: 0 | V131: 2 | W131: 0 | X131: 0 | Z131: 0 | AA131: 3 | AB131: 3 | AG131: 0.03 | AL131: -0.5 | AN131: 1 | AQ131: 0.03 | AS131: 1 | AT131: 0.56 | AU131: -0.5 | AZ131: 0.03
B132: =IF(AND(ISNUMBER(B131),isvisible(B131)), B131+1,"") ->  | C132: =IF(AND(ISNUMBER(C131),isvisible(C131)), C131+1,"") ->  | Q132: 0 | R132: 0 | S132: 0 | T132: 0.56 | U132: 0 | V132: 2 | W132: 0 | X132: 0 | Z132: 0 | AA132: 3 | AB132: 3 | AG132: 0.03 | AL132: -0.5 | AN132: 1 | AQ132: 0.03 | AS132: 1 | AT132: 0.56 | AU132: -0.5 | AZ132: 0.03
B133: =IF(AND(ISNUMBER(B132),isvisible(B132)), B132+1,"") ->  | C133: =IF(AND(ISNUMBER(C132),isvisible(C132)), C132+1,"") ->  | Q133: 0 | R133: 0 | S133: 0 | T133: 0.56 | U133: 0 | V133: 2 | W133: 0 | X133: 0 | Z133: 0 | AA133: 3 | AB133: 3 | AG133: 0.03 | AL133: -0.5 | AN133: 1 | AQ133: 0.03 | AS133: 1 | AT133: 0.56 | AU133: -0.5 | AZ133: 0.03
B134: =IF(AND(ISNUMBER(B133),isvisible(B133)), B133+1,"") ->  | C134: =IF(AND(ISNUMBER(C133),isvisible(C133)), C133+1,"") ->  | Q134: 0 | R134: 0 | S134: 0 | T134: 0.56 | U134: 0 | V134: 2 | W134: 0 | X134: 0 | Z134: 0 | AA134: 3 | AB134: 3 | AG134: 0.03 | AL134: -0.5 | AN134: 1 | AQ134: 0.03 | AS134: 1 | AT134: 0.56 | AU134: -0.5 | AZ134: 0.03
B135: =IF(AND(ISNUMBER(B134),isvisible(B134)), B134+1,"") ->  | C135: =IF(AND(ISNUMBER(C134),isvisible(C134)), C134+1,"") ->  | Q135: 0 | R135: 0 | S135: 0 | T135: 0.56 | U135: 0 | V135: 2 | W135: 0 | X135: 0 | Z135: 0 | AA135: 3 | AB135: 3 | AG135: 0.03 | AL135: -0.5 | AN135: 1 | AQ135: 0.03 | AS135: 1 | AT135: 0.56 | AU135: -0.5 | AZ135: 0.03
B136: =IF(AND(ISNUMBER(B135),isvisible(B135)), B135+1,"") ->  | C136: =IF(AND(ISNUMBER(C135),isvisible(C135)), C135+1,"") ->  | Q136: 0 | R136: 0 | S136: 0 | T136: 0.56 | U136: 0 | V136: 2 | W136: 0 | X136: 0 | Z136: 0 | AA136: 3 | AB136: 3 | AG136: 0.03 | AL136: -0.5 | AN136: 1 | AQ136: 0.03 | AS136: 1 | AT136: 0.56 | AU136: -0.5 | AZ136: 0.03
B137: =IF(AND(ISNUMBER(B136),isvisible(B136)), B136+1,"") ->  | C137: =IF(AND(ISNUMBER(C136),isvisible(C136)), C136+1,"") ->  | Q137: 0 | R137: 0 | S137: 0 | T137: 0.56 | U137: 0 | V137: 2 | W137: 0 | X137: 0 | Z137: 0 | AA137: 3 | AB137: 3 | AG137: 0.03 | AL137: -0.5 | AN137: 1 | AQ137: 0.03 | AS137: 1 | AT137: 0.56 | AU137: -0.5 | AZ137: 0.03
B138: =IF(AND(ISNUMBER(B137),isvisible(B137)), B137+1,"") ->  | C138: =IF(AND(ISNUMBER(C137),isvisible(C137)), C137+1,"") ->  | Q138: 0 | R138: 0 | S138: 0 | T138: 0.56 | U138: 0 | V138: 2 | W138: 0 | X138: 0 | Z138: 0 | AA138: 3 | AB138: 3 | AG138: 0.03 | AL138: -0.5 | AN138: 1 | AQ138: 0.03 | AS138: 1 | AT138: 0.56 | AU138: -0.5 | AZ138: 0.03
B139: =IF(AND(ISNUMBER(B138),isvisible(B138)), B138+1,"") ->  | C139: =IF(AND(ISNUMBER(C138),isvisible(C138)), C138+1,"") ->  | Q139: 0 | R139: 0 | S139: 0 | T139: 0.56 | U139: 0 | V139: 2 | W139: 0 | X139: 0 | Z139: 0 | AA139: 3 | AB139: 3 | AG139: 0.03 | AL139: -0.5 | AN139: 1 | AQ139: 0.03 | AS139: 1 | AT139: 0.56 | AU139: -0.5 | AZ139: 0.03
B140: =IF(AND(ISNUMBER(B139),isvisible(B139)), B139+1,"") ->  | C140: =IF(AND(ISNUMBER(C139),isvisible(C139)), C139+1,"") ->  | M140: =IFERROR(H140*I140*J140,"") ->  | Q140: 0 | R140: 0 | S140: =(SIN(R140))/0.0896 -> 0 | T140: 0.56 | U140: 0 | V140: 2 | W140: 0 | X140: =+W140/(W140+1) -> 0 | Z140: 0 | AA140: =IF(Z140>=3,Z140,3) -> 3 | AB140: 3 | AG140: 0.03 | AL140: -0.5 | AN140: 1 | AQ140: 0.03 | AS140: 1 | AT140: 0.56 | AU140: -0.5 | AZ140: 0.03
B141: =IF(AND(ISNUMBER(B140),isvisible(B140)), B140+1,"") ->  | C141: =IF(AND(ISNUMBER(C140),isvisible(C140)), C140+1,"") ->  | H141: =IF(H140 = "","",H140) ->  | Q141: 0 | R141: 0 | S141: 0 | T141: 0.56 | U141: 0 | V141: 2 | W141: 0 | X141: 0 | Z141: 0 | AA141: 3 | AB141: 3 | AG141: 0.03 | AL141: -0.5 | AN141: 1 | AQ141: 0.03 | AS141: 1 | AT141: 0.56 | AU141: -0.5 | AZ141: 0.03
B142: =IF(AND(ISNUMBER(B141),isvisible(B141)), B141+1,"") ->  | C142: =IF(AND(ISNUMBER(C141),isvisible(C141)), C141+1,"") ->  | Q142: 0 | R142: 0 | S142: 0 | T142: 0.56 | U142: 0 | V142: 2 | W142: 0 | X142: 0 | Z142: 0 | AA142: 3 | AB142: 3 | AG142: 0.03 | AL142: -0.5 | AN142: 1 | AQ142: 0.03 | AS142: 1 | AT142: 0.56 | AU142: -0.5 | AZ142: 0.03
B143: =IF(AND(ISNUMBER(B142),isvisible(B142)), B142+1,"") ->  | C143: =IF(AND(ISNUMBER(C142),isvisible(C142)), C142+1,"") ->  | Q143: 0 | R143: 0 | S143: 0 | T143: 0.56 | U143: 0 | V143: 2 | W143: 0 | X143: 0 | Z143: 0 | AA143: 3 | AB143: 3 | AG143: 0.03 | AL143: -0.5 | AN143: 1 | AQ143: 0.03 | AS143: 1 | AT143: 0.56 | AU143: -0.5 | AZ143: 0.03
B144: =IF(AND(ISNUMBER(B143),isvisible(B143)), B143+1,"") ->  | C144: =IF(AND(ISNUMBER(C143),isvisible(C143)), C143+1,"") ->  | J144: =IF(NOT(AND(ISNUMBER(E144),ISNUMBER(F144))),"",INDEX(AX144:BA144,1,MATCH(AB144,$AX$9:$BA$9))) ->  | N144: =IFERROR(H144*I144*J144*K144*L144,"") ->  | O144: =IFERROR(N144*D144,"") ->  | P144: =IFERROR(H144*I144*J144*D144,"") ->  | Q144: =DEGREES(ATAN(E144/100)) -> 0 | R144: =(ATAN(E144/100)) -> 0 | S144: 0 | T144: =(((SIN(R144))^0.8)*3)+ 0.56 -> 0.56 | U144: =+S144/T144 -> 0 | V144: 2 | W144: =+V144*U144 -> 0 | X144: 0 | Z144: =F144*3.2808399 -> 0 | AA144: 3 | AB144: =IF(AND(AA144>=15, E144<9),1,IF(AND(AA144>=15, E144>=9),2,IF(AND(AA144<15, E144<9),3,IF(AND(AA144<15, E144>=9),4,0)))) -> 3 | AD144: =(Z144/72.6)^X144 ->  | AG144: =((SIN(R144))*10.8) + 0.03 -> 0.03 | AI144: =(Z144/72.6)^X144 ->  | AL144: =((SIN(R144))*16.8) - 0.5 -> -0.5 | AN144: =(15/72.6)^X144 -> 1 | AQ144: =((SIN(R144))*10.8) + 0.03 -> 0.03 | AS144: =(15/72.6)^X144 -> 1 | AT144: =(((SIN(R144))^0.8)*3)+ 0.56 -> 0.56 | AU144: =((SIN(R144))*16.8) - 0.5 -> -0.5 | AX144: =AD144*AG144 ->  | AY144: =AI144*AL144 ->  | AZ144: =AN144*AQ144 -> 0.03 | BA144: =10^(LOG10(AS144*AT144)+(LOG10(AA144)-LOG10(3))*(LOG10(AS144*AU144)-LOG10(AS144*AT144))/0.699) -> 
B145: =IF(AND(ISNUMBER(B144),isvisible(B144)), B144+1,"") ->  | C145: =IF(AND(ISNUMBER(C144),isvisible(C144)), C144+1,"") ->  | Q145: 0 | R145: 0 | S145: 0 | T145: 0.56 | U145: 0 | V145: 2 | W145: 0 | X145: 0 | Z145: 0 | AA145: 3 | AB145: 3 | AG145: 0.03 | AL145: -0.5 | AN145: 1 | AQ145: 0.03 | AS145: 1 | AT145: 0.56 | AU145: -0.5 | AZ145: 0.03
B146: =IF(AND(ISNUMBER(B145),isvisible(B145)), B145+1,"") ->  | C146: =IF(AND(ISNUMBER(C145),isvisible(C145)), C145+1,"") ->  | Q146: 0 | R146: 0 | S146: 0 | T146: 0.56 | U146: 0 | V146: 2 | W146: 0 | X146: 0 | Z146: 0 | AA146: 3 | AB146: 3 | AG146: 0.03 | AL146: -0.5 | AN146: 1 | AQ146: 0.03 | AS146: 1 | AT146: 0.56 | AU146: -0.5 | AZ146: 0.03
B147: =IF(AND(ISNUMBER(B146),isvisible(B146)), B146+1,"") ->  | C147: =IF(AND(ISNUMBER(C146),isvisible(C146)), C146+1,"") ->  | Q147: 0 | R147: 0 | S147: 0 | T147: 0.56 | U147: 0 | V147: 2 | W147: 0 | X147: 0 | Z147: 0 | AA147: 3 | AB147: 3 | AG147: 0.03 | AL147: -0.5 | AN147: 1 | AQ147: 0.03 | AS147: 1 | AT147: 0.56 | AU147: -0.5 | AZ147: 0.03
B148: =IF(AND(ISNUMBER(B147),isvisible(B147)), B147+1,"") ->  | C148: =IF(AND(ISNUMBER(C147),isvisible(C147)), C147+1,"") ->  | Q148: 0 | R148: 0 | S148: 0 | T148: 0.56 | U148: 0 | V148: 2 | W148: 0 | X148: 0 | Z148: 0 | AA148: 3 | AB148: 3 | AG148: 0.03 | AL148: -0.5 | AN148: 1 | AQ148: 0.03 | AS148: 1 | AT148: 0.56 | AU148: -0.5 | AZ148: 0.03
B149: =IF(AND(ISNUMBER(B148),isvisible(B148)), B148+1,"") ->  | C149: =IF(AND(ISNUMBER(C148),isvisible(C148)), C148+1,"") ->  | Q149: 0 | R149: 0 | S149: 0 | T149: 0.56 | U149: 0 | V149: 2 | W149: 0 | X149: 0 | Z149: 0 | AA149: 3 | AB149: 3 | AG149: 0.03 | AL149: -0.5 | AN149: 1 | AQ149: 0.03 | AS149: 1 | AT149: 0.56 | AU149: -0.5 | AZ149: 0.03
B150: =IF(AND(ISNUMBER(B149),isvisible(B149)), B149+1,"") ->  | C150: =IF(AND(ISNUMBER(C149),isvisible(C149)), C149+1,"") ->  | Q150: 0 | R150: 0 | S150: 0 | T150: 0.56 | U150: 0 | V150: 2 | W150: 0 | X150: 0 | Z150: 0 | AA150: 3 | AB150: 3 | AG150: 0.03 | AL150: -0.5 | AN150: 1 | AQ150: 0.03 | AS150: 1 | AT150: 0.56 | AU150: -0.5 | AZ150: 0.03
B151: =IF(AND(ISNUMBER(B150),isvisible(B150)), B150+1,"") ->  | C151: =IF(AND(ISNUMBER(C150),isvisible(C150)), C150+1,"") ->  | Q151: 0 | R151: 0 | S151: 0 | T151: 0.56 | U151: 0 | V151: 2 | W151: 0 | X151: 0 | Z151: 0 | AA151: 3 | AB151: 3 | AG151: 0.03 | AL151: -0.5 | AN151: 1 | AQ151: 0.03 | AS151: 1 | AT151: 0.56 | AU151: -0.5 | AZ151: 0.03
B152: =IF(AND(ISNUMBER(B151),isvisible(B151)), B151+1,"") ->  | C152: =IF(AND(ISNUMBER(C151),isvisible(C151)), C151+1,"") ->  | Q152: 0 | R152: 0 | S152: 0 | T152: 0.56 | U152: 0 | V152: 2 | W152: 0 | X152: 0 | Z152: 0 | AA152: 3 | AB152: 3 | AG152: 0.03 | AL152: -0.5 | AN152: 1 | AQ152: 0.03 | AS152: 1 | AT152: 0.56 | AU152: -0.5 | AZ152: 0.03
B153: =IF(AND(ISNUMBER(B152),isvisible(B152)), B152+1,"") ->  | C153: =IF(AND(ISNUMBER(C152),isvisible(C152)), C152+1,"") ->  | Q153: 0 | R153: 0 | S153: 0 | T153: 0.56 | U153: 0 | V153: 2 | W153: 0 | X153: 0 | Z153: 0 | AA153: 3 | AB153: 3 | AG153: 0.03 | AL153: -0.5 | AN153: 1 | AQ153: 0.03 | AS153: 1 | AT153: 0.56 | AU153: -0.5 | AZ153: 0.03
B154: =IF(AND(ISNUMBER(B153),isvisible(B153)), B153+1,"") ->  | C154: =IF(AND(ISNUMBER(C153),isvisible(C153)), C153+1,"") ->  | Q154: 0 | R154: 0 | S154: 0 | T154: 0.56 | U154: 0 | V154: 2 | W154: 0 | X154: 0 | Z154: 0 | AA154: 3 | AB154: 3 | AG154: 0.03 | AL154: -0.5 | AN154: 1 | AQ154: 0.03 | AS154: 1 | AT154: 0.56 | AU154: -0.5 | AZ154: 0.03
B155: =IF(AND(ISNUMBER(B154),isvisible(B154)), B154+1,"") ->  | C155: =IF(AND(ISNUMBER(C154),isvisible(C154)), C154+1,"") ->  | Q155: 0 | R155: 0 | S155: 0 | T155: 0.56 | U155: 0 | V155: 2 | W155: 0 | X155: 0 | Z155: 0 | AA155: 3 | AB155: 3 | AG155: 0.03 | AL155: -0.5 | AN155: 1 | AQ155: 0.03 | AS155: 1 | AT155: 0.56 | AU155: -0.5 | AZ155: 0.03
B156: =IF(AND(ISNUMBER(B155),isvisible(B155)), B155+1,"") ->  | C156: =IF(AND(ISNUMBER(C155),isvisible(C155)), C155+1,"") ->  | Q156: 0 | R156: 0 | S156: 0 | T156: 0.56 | U156: 0 | V156: 2 | W156: 0 | X156: 0 | Z156: 0 | AA156: 3 | AB156: 3 | AG156: 0.03 | AL156: -0.5 | AN156: 1 | AQ156: 0.03 | AS156: 1 | AT156: 0.56 | AU156: -0.5 | AZ156: 0.03
B157: =IF(AND(ISNUMBER(B156),isvisible(B156)), B156+1,"") ->  | C157: =IF(AND(ISNUMBER(C156),isvisible(C156)), C156+1,"") ->  | Q157: 0 | R157: 0 | S157: 0 | T157: 0.56 | U157: 0 | V157: 2 | W157: 0 | X157: 0 | Z157: 0 | AA157: 3 | AB157: 3 | AG157: 0.03 | AL157: -0.5 | AN157: 1 | AQ157: 0.03 | AS157: 1 | AT157: 0.56 | AU157: -0.5 | AZ157: 0.03
B158: =IF(AND(ISNUMBER(B157),isvisible(B157)), B157+1,"") ->  | C158: =IF(AND(ISNUMBER(C157),isvisible(C157)), C157+1,"") ->  | Q158: 0 | R158: 0 | S158: 0 | T158: 0.56 | U158: 0 | V158: 2 | W158: 0 | X158: 0 | Z158: 0 | AA158: 3 | AB158: 3 | AG158: 0.03 | AL158: -0.5 | AN158: 1 | AQ158: 0.03 | AS158: 1 | AT158: 0.56 | AU158: -0.5 | AZ158: 0.03
B159: =IF(AND(ISNUMBER(B158),isvisible(B158)), B158+1,"") ->  | C159: =IF(AND(ISNUMBER(C158),isvisible(C158)), C158+1,"") ->  | Q159: 0 | R159: 0 | S159: 0 | T159: 0.56 | U159: 0 | V159: 2 | W159: 0 | X159: 0 | Z159: 0 | AA159: 3 | AB159: 3 | AG159: 0.03 | AL159: -0.5 | AN159: 1 | AQ159: 0.03 | AS159: 1 | AT159: 0.56 | AU159: -0.5 | AZ159: 0.03
B160: =IF(AND(ISNUMBER(B159),isvisible(B159)), B159+1,"") ->  | C160: =IF(AND(ISNUMBER(C159),isvisible(C159)), C159+1,"") ->  | Q160: 0 | R160: 0 | S160: 0 | T160: 0.56 | U160: 0 | V160: 2 | W160: 0 | X160: 0 | Z160: 0 | AA160: 3 | AB160: 3 | AG160: 0.03 | AL160: -0.5 | AN160: 1 | AQ160: 0.03 | AS160: 1 | AT160: 0.56 | AU160: -0.5 | AZ160: 0.03
B161: =IF(AND(ISNUMBER(B160),isvisible(B160)), B160+1,"") ->  | C161: =IF(AND(ISNUMBER(C160),isvisible(C160)), C160+1,"") ->  | Q161: 0 | R161: 0 | S161: 0 | T161: 0.56 | U161: 0 | V161: 2 | W161: 0 | X161: 0 | Z161: 0 | AA161: 3 | AB161: 3 | AG161: 0.03 | AL161: -0.5 | AN161: 1 | AQ161: 0.03 | AS161: 1 | AT161: 0.56 | AU161: -0.5 | AZ161: 0.03
B162: =IF(AND(ISNUMBER(B161),isvisible(B161)), B161+1,"") ->  | C162: =IF(AND(ISNUMBER(C161),isvisible(C161)), C161+1,"") ->  | Q162: 0 | R162: 0 | S162: 0 | T162: 0.56 | U162: 0 | V162: 2 | W162: 0 | X162: 0 | Z162: 0 | AA162: 3 | AB162: 3 | AG162: 0.03 | AL162: -0.5 | AN162: 1 | AQ162: 0.03 | AS162: 1 | AT162: 0.56 | AU162: -0.5 | AZ162: 0.03
B163: =IF(AND(ISNUMBER(B162),isvisible(B162)), B162+1,"") ->  | C163: =IF(AND(ISNUMBER(C162),isvisible(C162)), C162+1,"") ->  | Q163: 0 | R163: 0 | S163: 0 | T163: 0.56 | U163: 0 | V163: 2 | W163: 0 | X163: 0 | Z163: 0 | AA163: 3 | AB163: 3 | AG163: 0.03 | AL163: -0.5 | AN163: 1 | AQ163: 0.03 | AS163: 1 | AT163: 0.56 | AU163: -0.5 | AZ163: 0.03
B164: =IF(AND(ISNUMBER(B163),isvisible(B163)), B163+1,"") ->  | C164: =IF(AND(ISNUMBER(C163),isvisible(C163)), C163+1,"") ->  | Q164: 0 | R164: 0 | S164: 0 | T164: 0.56 | U164: 0 | V164: 2 | W164: 0 | X164: 0 | Z164: 0 | AA164: 3 | AB164: 3 | AG164: 0.03 | AL164: -0.5 | AN164: 1 | AQ164: 0.03 | AS164: 1 | AT164: 0.56 | AU164: -0.5 | AZ164: 0.03
B165: =IF(AND(ISNUMBER(B164),isvisible(B164)), B164+1,"") ->  | C165: =IF(AND(ISNUMBER(C164),isvisible(C164)), C164+1,"") ->  | Q165: 0 | R165: 0 | S165: 0 | T165: 0.56 | U165: 0 | V165: 2 | W165: 0 | X165: 0 | Z165: 0 | AA165: 3 | AB165: 3 | AG165: 0.03 | AL165: -0.5 | AN165: 1 | AQ165: 0.03 | AS165: 1 | AT165: 0.56 | AU165: -0.5 | AZ165: 0.03
B166: =IF(AND(ISNUMBER(B165),isvisible(B165)), B165+1,"") ->  | C166: =IF(AND(ISNUMBER(C165),isvisible(C165)), C165+1,"") ->  | Q166: 0 | R166: 0 | S166: 0 | T166: 0.56 | U166: 0 | V166: 2 | W166: 0 | X166: 0 | Z166: 0 | AA166: 3 | AB166: 3 | AG166: 0.03 | AL166: -0.5 | AN166: 1 | AQ166: 0.03 | AS166: 1 | AT166: 0.56 | AU166: -0.5 | AZ166: 0.03
B167: =IF(AND(ISNUMBER(B166),isvisible(B166)), B166+1,"") ->  | C167: =IF(AND(ISNUMBER(C166),isvisible(C166)), C166+1,"") ->  | Q167: 0 | R167: 0 | S167: 0 | T167: 0.56 | U167: 0 | V167: 2 | W167: 0 | X167: 0 | Z167: 0 | AA167: 3 | AB167: 3 | AG167: 0.03 | AL167: -0.5 | AN167: 1 | AQ167: 0.03 | AS167: 1 | AT167: 0.56 | AU167: -0.5 | AZ167: 0.03
B168: =IF(AND(ISNUMBER(B167),isvisible(B167)), B167+1,"") ->  | C168: =IF(AND(ISNUMBER(C167),isvisible(C167)), C167+1,"") ->  | Q168: 0 | R168: 0 | S168: 0 | T168: 0.56 | U168: 0 | V168: 2 | W168: 0 | X168: 0 | Z168: 0 | AA168: 3 | AB168: 3 | AG168: 0.03 | AL168: -0.5 | AN168: 1 | AQ168: 0.03 | AS168: 1 | AT168: 0.56 | AU168: -0.5 | AZ168: 0.03
B169: =IF(AND(ISNUMBER(B168),isvisible(B168)), B168+1,"") ->  | C169: =IF(AND(ISNUMBER(C168),isvisible(C168)), C168+1,"") ->  | Q169: 0 | R169: 0 | S169: 0 | T169: 0.56 | U169: 0 | V169: 2 | W169: 0 | X169: 0 | Z169: 0 | AA169: 3 | AB169: 3 | AG169: 0.03 | AL169: -0.5 | AN169: 1 | AQ169: 0.03 | AS169: 1 | AT169: 0.56 | AU169: -0.5 | AZ169: 0.03
B170: =IF(AND(ISNUMBER(B169),isvisible(B169)), B169+1,"") ->  | C170: =IF(AND(ISNUMBER(C169),isvisible(C169)), C169+1,"") ->  | Q170: 0 | R170: 0 | S170: 0 | T170: 0.56 | U170: 0 | V170: 2 | W170: 0 | X170: 0 | Z170: 0 | AA170: 3 | AB170: 3 | AG170: 0.03 | AL170: -0.5 | AN170: 1 | AQ170: 0.03 | AS170: 1 | AT170: 0.56 | AU170: -0.5 | AZ170: 0.03
B171: =IF(AND(ISNUMBER(B170),isvisible(B170)), B170+1,"") ->  | C171: =IF(AND(ISNUMBER(C170),isvisible(C170)), C170+1,"") ->  | Q171: 0 | R171: 0 | S171: 0 | T171: 0.56 | U171: 0 | V171: 2 | W171: 0 | X171: 0 | Z171: 0 | AA171: 3 | AB171: 3 | AG171: 0.03 | AL171: -0.5 | AN171: 1 | AQ171: 0.03 | AS171: 1 | AT171: 0.56 | AU171: -0.5 | AZ171: 0.03
B172: =IF(AND(ISNUMBER(B171),isvisible(B171)), B171+1,"") ->  | C172: =IF(AND(ISNUMBER(C171),isvisible(C171)), C171+1,"") ->  | Q172: 0 | R172: 0 | S172: 0 | T172: 0.56 | U172: 0 | V172: 2 | W172: 0 | X172: 0 | Z172: 0 | AA172: 3 | AB172: 3 | AG172: 0.03 | AL172: -0.5 | AN172: 1 | AQ172: 0.03 | AS172: 1 | AT172: 0.56 | AU172: -0.5 | AZ172: 0.03
B173: =IF(AND(ISNUMBER(B172),isvisible(B172)), B172+1,"") ->  | C173: =IF(AND(ISNUMBER(C172),isvisible(C172)), C172+1,"") ->  | Q173: 0 | R173: 0 | S173: 0 | T173: 0.56 | U173: 0 | V173: 2 | W173: 0 | X173: 0 | Z173: 0 | AA173: 3 | AB173: 3 | AG173: 0.03 | AL173: -0.5 | AN173: 1 | AQ173: 0.03 | AS173: 1 | AT173: 0.56 | AU173: -0.5 | AZ173: 0.03
B174: =IF(AND(ISNUMBER(B173),isvisible(B173)), B173+1,"") ->  | C174: =IF(AND(ISNUMBER(C173),isvisible(C173)), C173+1,"") ->  | Q174: 0 | R174: 0 | S174: 0 | T174: 0.56 | U174: 0 | V174: 2 | W174: 0 | X174: 0 | Z174: 0 | AA174: 3 | AB174: 3 | AG174: 0.03 | AL174: -0.5 | AN174: 1 | AQ174: 0.03 | AS174: 1 | AT174: 0.56 | AU174: -0.5 | AZ174: 0.03
B175: =IF(AND(ISNUMBER(B174),isvisible(B174)), B174+1,"") ->  | C175: =IF(AND(ISNUMBER(C174),isvisible(C174)), C174+1,"") ->  | Q175: 0 | R175: 0 | S175: 0 | T175: 0.56 | U175: 0 | V175: 2 | W175: 0 | X175: 0 | Z175: 0 | AA175: 3 | AB175: 3 | AG175: 0.03 | AL175: -0.5 | AN175: 1 | AQ175: 0.03 | AS175: 1 | AT175: 0.56 | AU175: -0.5 | AZ175: 0.03
B176: =IF(AND(ISNUMBER(B175),isvisible(B175)), B175+1,"") ->  | C176: =IF(AND(ISNUMBER(C175),isvisible(C175)), C175+1,"") ->  | Q176: 0 | R176: 0 | S176: 0 | T176: 0.56 | U176: 0 | V176: 2 | W176: 0 | X176: 0 | Z176: 0 | AA176: 3 | AB176: 3 | AG176: 0.03 | AL176: -0.5 | AN176: 1 | AQ176: 0.03 | AS176: 1 | AT176: 0.56 | AU176: -0.5 | AZ176: 0.03
B177: =IF(AND(ISNUMBER(B176),isvisible(B176)), B176+1,"") ->  | C177: =IF(AND(ISNUMBER(C176),isvisible(C176)), C176+1,"") ->  | Q177: 0 | R177: 0 | S177: 0 | T177: 0.56 | U177: 0 | V177: 2 | W177: 0 | X177: 0 | Z177: 0 | AA177: 3 | AB177: 3 | AG177: 0.03 | AL177: -0.5 | AN177: 1 | AQ177: 0.03 | AS177: 1 | AT177: 0.56 | AU177: -0.5 | AZ177: 0.03
B178: =IF(AND(ISNUMBER(B177),isvisible(B177)), B177+1,"") ->  | C178: =IF(AND(ISNUMBER(C177),isvisible(C177)), C177+1,"") ->  | Q178: 0 | R178: 0 | S178: 0 | T178: 0.56 | U178: 0 | V178: 2 | W178: 0 | X178: 0 | Z178: 0 | AA178: 3 | AB178: 3 | AG178: 0.03 | AL178: -0.5 | AN178: 1 | AQ178: 0.03 | AS178: 1 | AT178: 0.56 | AU178: -0.5 | AZ178: 0.03
B179: =IF(AND(ISNUMBER(B178),isvisible(B178)), B178+1,"") ->  | C179: =IF(AND(ISNUMBER(C178),isvisible(C178)), C178+1,"") ->  | Q179: 0 | R179: 0 | S179: 0 | T179: 0.56 | U179: 0 | V179: 2 | W179: 0 | X179: 0 | Z179: 0 | AA179: 3 | AB179: 3 | AG179: 0.03 | AL179: -0.5 | AN179: 1 | AQ179: 0.03 | AS179: 1 | AT179: 0.56 | AU179: -0.5 | AZ179: 0.03
B180: =IF(AND(ISNUMBER(B179),isvisible(B179)), B179+1,"") ->  | C180: =IF(AND(ISNUMBER(C179),isvisible(C179)), C179+1,"") ->  | Q180: 0 | R180: 0 | S180: 0 | T180: 0.56 | U180: 0 | V180: 2 | W180: 0 | X180: 0 | Z180: 0 | AA180: 3 | AB180: 3 | AG180: 0.03 | AL180: -0.5 | AN180: 1 | AQ180: 0.03 | AS180: 1 | AT180: 0.56 | AU180: -0.5 | AZ180: 0.03
B181: =IF(AND(ISNUMBER(B180),isvisible(B180)), B180+1,"") ->  | C181: =IF(AND(ISNUMBER(C180),isvisible(C180)), C180+1,"") ->  | Q181: 0 | R181: 0 | S181: 0 | T181: 0.56 | U181: 0 | V181: 2 | W181: 0 | X181: 0 | Z181: 0 | AA181: 3 | AB181: 3 | AG181: 0.03 | AL181: -0.5 | AN181: 1 | AQ181: 0.03 | AS181: 1 | AT181: 0.56 | AU181: -0.5 | AZ181: 0.03
B182: =IF(AND(ISNUMBER(B181),isvisible(B181)), B181+1,"") ->  | C182: =IF(AND(ISNUMBER(C181),isvisible(C181)), C181+1,"") ->  | Q182: 0 | R182: 0 | S182: 0 | T182: 0.56 | U182: 0 | V182: 2 | W182: 0 | X182: 0 | Z182: 0 | AA182: 3 | AB182: 3 | AG182: 0.03 | AL182: -0.5 | AN182: 1 | AQ182: 0.03 | AS182: 1 | AT182: 0.56 | AU182: -0.5 | AZ182: 0.03
B183: =IF(AND(ISNUMBER(B182),isvisible(B182)), B182+1,"") ->  | C183: =IF(AND(ISNUMBER(C182),isvisible(C182)), C182+1,"") ->  | Q183: 0 | R183: 0 | S183: 0 | T183: 0.56 | U183: 0 | V183: 2 | W183: 0 | X183: 0 | Z183: 0 | AA183: 3 | AB183: 3 | AG183: 0.03 | AL183: -0.5 | AN183: 1 | AQ183: 0.03 | AS183: 1 | AT183: 0.56 | AU183: -0.5 | AZ183: 0.03
B184: =IF(AND(ISNUMBER(B183),isvisible(B183)), B183+1,"") ->  | C184: =IF(AND(ISNUMBER(C183),isvisible(C183)), C183+1,"") ->  | Q184: 0 | R184: 0 | S184: 0 | T184: 0.56 | U184: 0 | V184: 2 | W184: 0 | X184: 0 | Z184: 0 | AA184: 3 | AB184: 3 | AG184: 0.03 | AL184: -0.5 | AN184: 1 | AQ184: 0.03 | AS184: 1 | AT184: 0.56 | AU184: -0.5 | AZ184: 0.03
B185: =IF(AND(ISNUMBER(B184),isvisible(B184)), B184+1,"") ->  | C185: =IF(AND(ISNUMBER(C184),isvisible(C184)), C184+1,"") ->  | Q185: 0 | R185: 0 | S185: 0 | T185: 0.56 | U185: 0 | V185: 2 | W185: 0 | X185: 0 | Z185: 0 | AA185: 3 | AB185: 3 | AG185: 0.03 | AL185: -0.5 | AN185: 1 | AQ185: 0.03 | AS185: 1 | AT185: 0.56 | AU185: -0.5 | AZ185: 0.03
B186: =IF(AND(ISNUMBER(B185),isvisible(B185)), B185+1,"") ->  | C186: =IF(AND(ISNUMBER(C185),isvisible(C185)), C185+1,"") ->  | Q186: 0 | R186: 0 | S186: 0 | T186: 0.56 | U186: 0 | V186: 2 | W186: 0 | X186: 0 | Z186: 0 | AA186: 3 | AB186: 3 | AG186: 0.03 | AL186: -0.5 | AN186: 1 | AQ186: 0.03 | AS186: 1 | AT186: 0.56 | AU186: -0.5 | AZ186: 0.03
B187: =IF(AND(ISNUMBER(B186),isvisible(B186)), B186+1,"") ->  | C187: =IF(AND(ISNUMBER(C186),isvisible(C186)), C186+1,"") ->  | Q187: 0 | R187: 0 | S187: 0 | T187: 0.56 | U187: 0 | V187: 2 | W187: 0 | X187: 0 | Z187: 0 | AA187: 3 | AB187: 3 | AG187: 0.03 | AL187: -0.5 | AN187: 1 | AQ187: 0.03 | AS187: 1 | AT187: 0.56 | AU187: -0.5 | AZ187: 0.03
B188: =IF(AND(ISNUMBER(B187),isvisible(B187)), B187+1,"") ->  | C188: =IF(AND(ISNUMBER(C187),isvisible(C187)), C187+1,"") ->  | Q188: 0 | R188: 0 | S188: 0 | T188: 0.56 | U188: 0 | V188: 2 | W188: 0 | X188: 0 | Z188: 0 | AA188: 3 | AB188: 3 | AG188: 0.03 | AL188: -0.5 | AN188: 1 | AQ188: 0.03 | AS188: 1 | AT188: 0.56 | AU188: -0.5 | AZ188: 0.03
B189: =IF(AND(ISNUMBER(B188),isvisible(B188)), B188+1,"") ->  | C189: =IF(AND(ISNUMBER(C188),isvisible(C188)), C188+1,"") ->  | Q189: 0 | R189: 0 | S189: 0 | T189: 0.56 | U189: 0 | V189: 2 | W189: 0 | X189: 0 | Z189: 0 | AA189: 3 | AB189: 3 | AG189: 0.03 | AL189: -0.5 | AN189: 1 | AQ189: 0.03 | AS189: 1 | AT189: 0.56 | AU189: -0.5 | AZ189: 0.03
B190: =IF(AND(ISNUMBER(B189),isvisible(B189)), B189+1,"") ->  | C190: =IF(AND(ISNUMBER(C189),isvisible(C189)), C189+1,"") ->  | Q190: 0 | R190: 0 | S190: 0 | T190: 0.56 | U190: 0 | V190: 2 | W190: 0 | X190: 0 | Z190: 0 | AA190: 3 | AB190: 3 | AG190: 0.03 | AL190: -0.5 | AN190: 1 | AQ190: 0.03 | AS190: 1 | AT190: 0.56 | AU190: -0.5 | AZ190: 0.03
B191: =IF(AND(ISNUMBER(B190),isvisible(B190)), B190+1,"") ->  | C191: =IF(AND(ISNUMBER(C190),isvisible(C190)), C190+1,"") ->  | Q191: 0 | R191: 0 | S191: 0 | T191: 0.56 | U191: 0 | V191: 2 | W191: 0 | X191: 0 | Z191: 0 | AA191: 3 | AB191: 3 | AG191: 0.03 | AL191: -0.5 | AN191: 1 | AQ191: 0.03 | AS191: 1 | AT191: 0.56 | AU191: -0.5 | AZ191: 0.03
B192: =IF(AND(ISNUMBER(B191),isvisible(B191)), B191+1,"") ->  | C192: =IF(AND(ISNUMBER(C191),isvisible(C191)), C191+1,"") ->  | Q192: 0 | R192: 0 | S192: 0 | T192: 0.56 | U192: 0 | V192: 2 | W192: 0 | X192: 0 | Z192: 0 | AA192: 3 | AB192: 3 | AG192: 0.03 | AL192: -0.5 | AN192: 1 | AQ192: 0.03 | AS192: 1 | AT192: 0.56 | AU192: -0.5 | AZ192: 0.03
B193: =IF(AND(ISNUMBER(B192),isvisible(B192)), B192+1,"") ->  | C193: =IF(AND(ISNUMBER(C192),isvisible(C192)), C192+1,"") ->  | Q193: 0 | R193: 0 | S193: 0 | T193: 0.56 | U193: 0 | V193: 2 | W193: 0 | X193: 0 | Z193: 0 | AA193: 3 | AB193: 3 | AG193: 0.03 | AL193: -0.5 | AN193: 1 | AQ193: 0.03 | AS193: 1 | AT193: 0.56 | AU193: -0.5 | AZ193: 0.03
B194: =IF(AND(ISNUMBER(B193),isvisible(B193)), B193+1,"") ->  | C194: =IF(AND(ISNUMBER(C193),isvisible(C193)), C193+1,"") ->  | Q194: 0 | R194: 0 | S194: 0 | T194: 0.56 | U194: 0 | V194: 2 | W194: 0 | X194: 0 | Z194: 0 | AA194: 3 | AB194: 3 | AG194: 0.03 | AL194: -0.5 | AN194: 1 | AQ194: 0.03 | AS194: 1 | AT194: 0.56 | AU194: -0.5 | AZ194: 0.03
B195: =IF(AND(ISNUMBER(B194),isvisible(B194)), B194+1,"") ->  | C195: =IF(AND(ISNUMBER(C194),isvisible(C194)), C194+1,"") ->  | Q195: 0 | R195: 0 | S195: 0 | T195: 0.56 | U195: 0 | V195: 2 | W195: 0 | X195: 0 | Z195: 0 | AA195: 3 | AB195: 3 | AG195: 0.03 | AL195: -0.5 | AN195: 1 | AQ195: 0.03 | AS195: 1 | AT195: 0.56 | AU195: -0.5 | AZ195: 0.03
B196: =IF(AND(ISNUMBER(B195),isvisible(B195)), B195+1,"") ->  | C196: =IF(AND(ISNUMBER(C195),isvisible(C195)), C195+1,"") ->  | Q196: 0 | R196: 0 | S196: 0 | T196: 0.56 | U196: 0 | V196: 2 | W196: 0 | X196: 0 | Z196: 0 | AA196: 3 | AB196: 3 | AG196: 0.03 | AL196: -0.5 | AN196: 1 | AQ196: 0.03 | AS196: 1 | AT196: 0.56 | AU196: -0.5 | AZ196: 0.03
B197: =IF(AND(ISNUMBER(B196),isvisible(B196)), B196+1,"") ->  | C197: =IF(AND(ISNUMBER(C196),isvisible(C196)), C196+1,"") ->  | Q197: 0 | R197: 0 | S197: 0 | T197: 0.56 | U197: 0 | V197: 2 | W197: 0 | X197: 0 | Z197: 0 | AA197: 3 | AB197: 3 | AG197: 0.03 | AL197: -0.5 | AN197: 1 | AQ197: 0.03 | AS197: 1 | AT197: 0.56 | AU197: -0.5 | AZ197: 0.03
B198: =IF(AND(ISNUMBER(B197),isvisible(B197)), B197+1,"") ->  | C198: =IF(AND(ISNUMBER(C197),isvisible(C197)), C197+1,"") ->  | Q198: 0 | R198: 0 | S198: 0 | T198: 0.56 | U198: 0 | V198: 2 | W198: 0 | X198: 0 | Z198: 0 | AA198: 3 | AB198: 3 | AG198: 0.03 | AL198: -0.5 | AN198: 1 | AQ198: 0.03 | AS198: 1 | AT198: 0.56 | AU198: -0.5 | AZ198: 0.03
B199: =IF(AND(ISNUMBER(B198),isvisible(B198)), B198+1,"") ->  | C199: =IF(AND(ISNUMBER(C198),isvisible(C198)), C198+1,"") ->  | Q199: 0 | R199: 0 | S199: 0 | T199: 0.56 | U199: 0 | V199: 2 | W199: 0 | X199: 0 | Z199: 0 | AA199: 3 | AB199: 3 | AG199: 0.03 | AL199: -0.5 | AN199: 1 | AQ199: 0.03 | AS199: 1 | AT199: 0.56 | AU199: -0.5 | AZ199: 0.03
B200: =IF(AND(ISNUMBER(B199),isvisible(B199)), B199+1,"") ->  | C200: =IF(AND(ISNUMBER(C199),isvisible(C199)), C199+1,"") ->  | Q200: 0 | R200: 0 | S200: 0 | T200: 0.56 | U200: 0 | V200: 2 | W200: 0 | X200: 0 | Z200: 0 | AA200: 3 | AB200: 3 | AG200: 0.03 | AL200: -0.5 | AN200: 1 | AQ200: 0.03 | AS200: 1 | AT200: 0.56 | AU200: -0.5 | AZ200: 0.03
B201: =IF(AND(ISNUMBER(B200),isvisible(B200)), B200+1,"") ->  | C201: =IF(AND(ISNUMBER(C200),isvisible(C200)), C200+1,"") ->  | Q201: 0 | R201: 0 | S201: 0 | T201: 0.56 | U201: 0 | V201: 2 | W201: 0 | X201: 0 | Z201: 0 | AA201: 3 | AB201: 3 | AG201: 0.03 | AL201: -0.5 | AN201: 1 | AQ201: 0.03 | AS201: 1 | AT201: 0.56 | AU201: -0.5 | AZ201: 0.03
B202: =IF(AND(ISNUMBER(B201),isvisible(B201)), B201+1,"") ->  | C202: =IF(AND(ISNUMBER(C201),isvisible(C201)), C201+1,"") ->  | Q202: 0 | R202: 0 | S202: 0 | T202: 0.56 | U202: 0 | V202: 2 | W202: 0 | X202: 0 | Z202: 0 | AA202: 3 | AB202: 3 | AG202: 0.03 | AL202: -0.5 | AN202: 1 | AQ202: 0.03 | AS202: 1 | AT202: 0.56 | AU202: -0.5 | AZ202: 0.03
B203: =IF(AND(ISNUMBER(B202),isvisible(B202)), B202+1,"") ->  | C203: =IF(AND(ISNUMBER(C202),isvisible(C202)), C202+1,"") ->  | Q203: 0 | R203: 0 | S203: 0 | T203: 0.56 | U203: 0 | V203: 2 | W203: 0 | X203: 0 | Z203: 0 | AA203: 3 | AB203: 3 | AG203: 0.03 | AL203: -0.5 | AN203: 1 | AQ203: 0.03 | AS203: 1 | AT203: 0.56 | AU203: -0.5 | AZ203: 0.03
B204: =IF(AND(ISNUMBER(B203),isvisible(B203)), B203+1,"") ->  | C204: =IF(AND(ISNUMBER(C203),isvisible(C203)), C203+1,"") ->  | M204: =IFERROR(H204*I204*J204,"") ->  | Q204: 0 | R204: 0 | S204: =(SIN(R204))/0.0896 -> 0 | T204: 0.56 | U204: 0 | V204: 2 | W204: 0 | X204: =+W204/(W204+1) -> 0 | Z204: 0 | AA204: =IF(Z204>=3,Z204,3) -> 3 | AB204: 3 | AG204: 0.03 | AL204: -0.5 | AN204: 1 | AQ204: 0.03 | AS204: 1 | AT204: 0.56 | AU204: -0.5 | AZ204: 0.03
... 299 more rows

Sheet New Table 1
B1: RUSLE Calculations
B6: Drawing Code:
B7: 1 | C7: 2 | D7: 3 | E7: 4 | F7: 5 | G7: 6 | H7: 7 | I7: 8 | J7: 9 | K7: 10 | L7: 11 | M7: 12 | N7: 13 | O7: 14 | P7: 15
O8: Site Erosion Potential
B9: Drainage Area Identifier | C9: LS Identifier | D9: LS Area Size (In Ha) | E9: Slope (%) | F9: Slope Length (m) | G9: Description of Controls and Practices | H9: R-Value | I9: K-Value | J9: LS-Value | K9: C-Value(s) | L9: P-Value(s) | M9: Slope Alone With No Controls | N9: A-Value Tonnes/ha*yr | O9: Soil Loss With Controls and Practices Tonnes/yr | P9: Soil Loss Without Controls and Practices Tonnes/yr | Q9: q (deg) | R9: q (rad) | S9: SINq/0.0896 | T9: 3sinq0.8 + .56 | U9: b0 | V9: b Factor | W9: b | X9: m | Z9: Slope Length Ft | AA9: λ | AB9: λ - ps category | AD9: L(1) | AE9: S3(1) | AF9: S15(1) | AG9: S(1) | AH9: LS(1) | AI9: L(2) | AJ9: S3(2) | AK9: S15(2) | AL9: S(2) | AM9: LS(2) | AN9: L(3) | AO9: S3(3) | AP9: S15(3) | AQ9: S(3) | AR9: LS(3) | AS9: L(4) | AT9: S3(4) | AU9: S15(4) | AV9: S(4) | AW9: LS(4) | AX9: 1 | AY9: 2 | AZ9: 3 | BA9: 4
B10: Area # 1 | C10: LS21 | D10: 0.5 | E10: 20 | F10: 50 | G10: Sediment Pond - 0.5 ; Mulch, tackifer, seed - 0.1 | H10: 320 | I10: 0.048 | J10: =IF(NOT(AND(ISNUMBER(E10),ISNUMBER(F10))),"",INDEX(AX10:BA10,1,MATCH(AB10,$AX$9:$BA$9))) -> 5.196912212 | K10: 0.01 | L10: 0.1 | M10: =IFERROR(H10*I10*J10,"") -> 79.82457157 | N10: =IFERROR(H10*I10*J10*K10*L10,"") -> 0.07982457157 | O10: =IFERROR(N10*D10,"") -> 0.03991228579 | P10: =IFERROR(H10*I10*J10*D10,"") -> 39.91228579 | Q10: =DEGREES(ATAN(E10/100)) -> 11.30993247 | R10: =(ATAN(E10/100)) -> 0.1973955598 | S10: =(SIN(R10))/0.0896 -> 2.188796151 | T10: =(((SIN(R10))^0.8)*3)+ 0.56 -> 1.374951785 | U10: =+S10/T10 -> 1.591907567 | V10: 2 | W10: =+V10*U10 -> 3.183815134 | X10: =+W10/(W10+1) -> 0.7609837031 | Z10: =F10*3.2808399 -> 164.041995 | AA10: =IF(Z10>=3,Z10,3) -> 164.041995 | AB10: =IF(AND(AA10>=15, E10<9),1,IF(AND(AA10>=15, E10>=9),2,IF(AND(AA10<15, E10<9),3,IF(AND(AA10<15, E10>=9),4,0)))) -> 2 | AD10: =(Z10/72.6)^X10 -> 1.859525976 | AG10: =((SIN(R10))*10.8) + 0.03 -> 2.148054259 | AI10: =(Z10/72.6)^X10 -> 1.859525976 | AL10: =((SIN(R10))*16.8) - 0.5 -> 2.79475107 | AN10: =(15/72.6)^X10 -> 0.3011922832 | AQ10: =((SIN(R10))*10.8) + 0.03 -> 2.148054259 | AS10: =(15/72.6)^X10 -> 0.3011922832 | AT10: =(((SIN(R10))^0.8)*3)+ 0.56 -> 1.374951785 | AU10: =((SIN(R10))*16.8) - 0.5 -> 2.79475107 | AX10: =AD10*AG10 -> 3.994362693 | AY10: =AI10*AL10 -> 5.196912212 | AZ10: =AN10*AQ10 -> 0.6469773668 | BA10: =10^(LOG10(AS10*AT10)+(LOG10(AA10)-LOG10(3))*(LOG10(AS10*AU10)-LOG10(AS10*AT10))/0.699) -> 2.415519105
J11: =IF(NOT(AND(ISNUMBER(E11),ISNUMBER(F11))),"",INDEX(AX11:BA11,1,MATCH(AB11,$AX$9:$BA$9))) ->  | M11: =IFERROR(H11*I11*J11,"") ->  | Q11: =DEGREES(ATAN(E11/100)) -> 0 | R11: =(ATAN(E11/100)) -> 0 | S11: =(SIN(R11))/0.0896 -> 0 | T11: =(((SIN(R11))^0.8)*3)+ 0.56 -> 0.56 | U11: =+S11/T11 -> 0 | V11: 2 | W11: =+V11*U11 -> 0 | X11: =+W11/(W11+1) -> 0 | Z11: =F11*3.2808399 -> 0 | AA11: =IF(Z11>=3,Z11,3) -> 3 | AB11: =IF(AND(AA11>=15, E11<9),1,IF(AND(AA11>=15, E11>=9),2,IF(AND(AA11<15, E11<9),3,IF(AND(AA11<15, E11>=9),4,0)))) -> 3 | AD11: =(Z11/72.6)^X11 ->  | AG11: =((SIN(R11))*10.8) + 0.03 -> 0.03 | AI11: =(Z11/72.6)^X11 ->  | AL11: =((SIN(R11))*16.8) - 0.5 -> -0.5 | AN11: =(15/72.6)^X11 -> 1 | AQ11: =((SIN(R11))*10.8) + 0.03 -> 0.03 | AS11: =(15/72.6)^X11 -> 1 | AT11: =(((SIN(R11))^0.8)*3)+ 0.56 -> 0.56 | AU11: =((SIN(R11))*16.8) - 0.5 -> -0.5 | AX11: =AD11*AG11 ->  | AY11: =AI11*AL11 ->  | AZ11: =AN11*AQ11 -> 0.03 | BA11: =10^(LOG10(AS11*AT11)+(LOG10(AA11)-LOG10(3))*(LOG10(AS11*AU11)-LOG10(AS11*AT11))/0.699) -> 
B12: =IF(AND(ISNUMBER(B11),isvisible(B11)), B11+1,"") ->  | C12: =IF(AND(ISNUMBER(C11),isvisible(C11)), C11+1,"") ->  | H12: =IF(H11 = "","",H11) ->  | J12: =IF(NOT(AND(ISNUMBER(E12),ISNUMBER(F12))),"",INDEX(AX12:BA12,1,MATCH(AB12,$AX$9:$BA$9))) ->  | M12: =IFERROR(H12*I12*J12,"") ->  | N12: =IFERROR(H12*I12*J12*K12*L12,"") ->  | Q12: =DEGREES(ATAN(E12/100)) -> 0 | R12: =(ATAN(E12/100)) -> 0 | S12: =(SIN(R12))/0.0896 -> 0 | T12: =(((SIN(R12))^0.8)*3)+ 0.56 -> 0.56 | U12: =+S12/T12 -> 0 | V12: 2 | W12: =+V12*U12 -> 0 | X12: =+W12/(W12+1) -> 0 | Z12: =F12*3.2808399 -> 0 | AA12: =IF(Z12>=3,Z12,3) -> 3 | AB12: =IF(AND(AA12>=15, E12<9),1,IF(AND(AA12>=15, E12>=9),2,IF(AND(AA12<15, E12<9),3,IF(AND(AA12<15, E12>=9),4,0)))) -> 3 | AD12: =(Z12/72.6)^X12 ->  | AG12: =((SIN(R12))*10.8) + 0.03 -> 0.03 | AI12: =(Z12/72.6)^X12 ->  | AL12: =((SIN(R12))*16.8) - 0.5 -> -0.5 | AN12: =(15/72.6)^X12 -> 1 | AQ12: =((SIN(R12))*10.8) + 0.03 -> 0.03 | AS12: =(15/72.6)^X12 -> 1 | AT12: =(((SIN(R12))^0.8)*3)+ 0.56 -> 0.56 | AU12: =((SIN(R12))*16.8) - 0.5 -> -0.5 | AX12: =AD12*AG12 ->  | AY12: =AI12*AL12 ->  | AZ12: =AN12*AQ12 -> 0.03 | BA12: =10^(LOG10(AS12*AT12)+(LOG10(AA12)-LOG10(3))*(LOG10(AS12*AU12)-LOG10(AS12*AT12))/0.699) -> 
B13: =IF(AND(ISNUMBER(B12),isvisible(B12)), B12+1,"") ->  | C13: =IF(AND(ISNUMBER(C12),isvisible(C12)), C12+1,"") ->  | H13: =IF(H12 = "","",H12) ->  | J13: =IF(NOT(AND(ISNUMBER(E13),ISNUMBER(F13))),"",INDEX(AX13:BA13,1,MATCH(AB13,$AX$9:$BA$9))) ->  | N13: =IFERROR(H13*I13*J13*K13*L13,"") ->  | O13: =IFERROR(N13*D13,"") ->  | P13: =IFERROR(H13*I13*J13*D13,"") ->  | Q13: 0 | R13: 0 | S13: 0 | T13: 0.56 | U13: 0 | V13: 2 | W13: 0 | X13: 0 | Z13: 0 | AA13: 3 | AB13: 3 | AG13: 0.03 | AL13: -0.5 | AN13: 1 | AQ13: 0.03 | AS13: 1 | AT13: 0.56 | AU13: -0.5 | AZ13: 0.03
B14: =IF(AND(ISNUMBER(B13),isvisible(B13)), B13+1,"") ->  | C14: =IF(AND(ISNUMBER(C13),isvisible(C13)), C13+1,"") ->  | N14: =IFERROR(H14*I14*J14*K14*L14,"") ->  | O14: =IFERROR(N14*D14,"") ->  | P14: =IFERROR(H14*I14*J14*D14,"") ->  | Q14: 0 | R14: 0 | S14: 0 | T14: 0.56 | U14: 0 | V14: 2 | W14: 0 | X14: 0 | Z14: 0 | AA14: 3 | AB14: 3 | AG14: 0.03 | AL14: -0.5 | AN14: 1 | AQ14: 0.03 | AS14: 1 | AT14: 0.56 | AU14: -0.5 | AZ14: 0.03
B15: =IF(AND(ISNUMBER(B14),isvisible(B14)), B14+1,"") ->  | C15: =IF(AND(ISNUMBER(C14),isvisible(C14)), C14+1,"") ->  | Q15: 0 | R15: 0 | S15: 0 | T15: 0.56 | U15: 0 | V15: 2 | W15: 0 | X15: 0 | Z15: 0 | AA15: 3 | AB15: 3 | AG15: 0.03 | AL15: -0.5 | AN15: 1 | AQ15: 0.03 | AS15: 1 | AT15: 0.56 | AU15: -0.5 | AZ15: 0.03
B16: =IF(AND(ISNUMBER(B15),isvisible(B15)), B15+1,"") ->  | C16: =IF(AND(ISNUMBER(C15),isvisible(C15)), C15+1,"") ->  | Q16: 0 | R16: 0 | S16: 0 | T16: 0.56 | U16: 0 | V16: 2 | W16: 0 | X16: 0 | Z16: 0 | AA16: 3 | AB16: 3 | AG16: 0.03 | AL16: -0.5 | AN16: 1 | AQ16: 0.03 | AS16: 1 | AT16: 0.56 | AU16: -0.5 | AZ16: 0.03
B17: =IF(AND(ISNUMBER(B16),isvisible(B16)), B16+1,"") ->  | C17: =IF(AND(ISNUMBER(C16),isvisible(C16)), C16+1,"") ->  | Q17: 0 | R17: 0 | S17: 0 | T17: 0.56 | U17: 0 | V17: 2 | W17: 0 | X17: 0 | Z17: 0 | AA17: 3 | AB17: 3 | AG17: 0.03 | AL17: -0.5 | AN17: 1 | AQ17: 0.03 | AS17: 1 | AT17: 0.56 | AU17: -0.5 | AZ17: 0.03
B18: =IF(AND(ISNUMBER(B17),isvisible(B17)), B17+1,"") ->  | C18: =IF(AND(ISNUMBER(C17),isvisible(C17)), C17+1,"") ->  | Q18: 0 | R18: 0 | S18: 0 | T18: 0.56 | U18: 0 | V18: 2 | W18: 0 | X18: 0 | Z18: 0 | AA18: 3 | AB18: 3 | AG18: 0.03 | AL18: -0.5 | AN18: 1 | AQ18: 0.03 | AS18: 1 | AT18: 0.56 | AU18: -0.5 | AZ18: 0.03
B19: =IF(AND(ISNUMBER(B18),isvisible(B18)), B18+1,"") ->  | C19: =IF(AND(ISNUMBER(C18),isvisible(C18)), C18+1,"") ->  | Q19: 0 | R19: 0 | S19: 0 | T19: 0.56 | U19: 0 | V19: 2 | W19: 0 | X19: 0 | Z19: 0 | AA19: 3 | AB19: 3 | AG19: 0.03 | AL19: -0.5 | AN19: 1 | AQ19: 0.03 | AS19: 1 | AT19: 0.56 | AU19: -0.5 | AZ19: 0.03
B20: =IF(AND(ISNUMBER(B19),isvisible(B19)), B19+1,"") ->  | C20: =IF(AND(ISNUMBER(C19),isvisible(C19)), C19+1,"") ->  | Q20: 0 | R20: 0 | S20: 0 | T20: 0.56 | U20: 0 | V20: 2 | W20: 0 | X20: 0 | Z20: 0 | AA20: 3 | AB20: 3 | AG20: 0.03 | AL20: -0.5 | AN20: 1 | AQ20: 0.03 | AS20: 1 | AT20: 0.56 | AU20: -0.5 | AZ20: 0.03
B21: =IF(AND(ISNUMBER(B20),isvisible(B20)), B20+1,"") ->  | C21: =IF(AND(ISNUMBER(C20),isvisible(C20)), C20+1,"") ->  | Q21: 0 | R21: 0 | S21: 0 | T21: 0.56 | U21: 0 | V21: 2 | W21: 0 | X21: 0 | Z21: 0 | AA21: 3 | AB21: 3 | AG21: 0.03 | AL21: -0.5 | AN21: 1 | AQ21: 0.03 | AS21: 1 | AT21: 0.56 | AU21: -0.5 | AZ21: 0.03
B22: =IF(AND(ISNUMBER(B21),isvisible(B21)), B21+1,"") ->  | C22: =IF(AND(ISNUMBER(C21),isvisible(C21)), C21+1,"") ->  | Q22: 0 | R22: 0 | S22: 0 | T22: 0.56 | U22: 0 | V22: 2 | W22: 0 | X22: 0 | Z22: 0 | AA22: 3 | AB22: 3 | AG22: 0.03 | AL22: -0.5 | AN22: 1 | AQ22: 0.03 | AS22: 1 | AT22: 0.56 | AU22: -0.5 | AZ22: 0.03
B23: =IF(AND(ISNUMBER(B22),isvisible(B22)), B22+1,"") ->  | C23: =IF(AND(ISNUMBER(C22),isvisible(C22)), C22+1,"") ->  | Q23: 0 | R23: 0 | S23: 0 | T23: 0.56 | U23: 0 | V23: 2 | W23: 0 | X23: 0 | Z23: 0 | AA23: 3 | AB23: 3 | AG23: 0.03 | AL23: -0.5 | AN23: 1 | AQ23: 0.03 | AS23: 1 | AT23: 0.56 | AU23: -0.5 | AZ23: 0.03
B24: =IF(AND(ISNUMBER(B23),isvisible(B23)), B23+1,"") ->  | C24: =IF(AND(ISNUMBER(C23),isvisible(C23)), C23+1,"") ->  | Q24: 0 | R24: 0 | S24: 0 | T24: 0.56 | U24: 0 | V24: 2 | W24: 0 | X24: 0 | Z24: 0 | AA24: 3 | AB24: 3 | AG24: 0.03 | AL24: -0.5 | AN24: 1 | AQ24: 0.03 | AS24: 1 | AT24: 0.56 | AU24: -0.5 | AZ24: 0.03
B25: =IF(AND(ISNUMBER(B24),isvisible(B24)), B24+1,"") ->  | C25: =IF(AND(ISNUMBER(C24),isvisible(C24)), C24+1,"") ->  | Q25: 0 | R25: 0 | S25: 0 | T25: 0.56 | U25: 0 | V25: 2 | W25: 0 | X25: 0 | Z25: 0 | AA25: 3 | AB25: 3 | AG25: 0.03 | AL25: -0.5 | AN25: 1 | AQ25: 0.03 | AS25: 1 | AT25: 0.56 | AU25: -0.5 | AZ25: 0.03
B26: =IF(AND(ISNUMBER(B25),isvisible(B25)), B25+1,"") ->  | C26: =IF(AND(ISNUMBER(C25),isvisible(C25)), C25+1,"") ->  | Q26: 0 | R26: 0 | S26: 0 | T26: 0.56 | U26: 0 | V26: 2 | W26: 0 | X26: 0 | Z26: 0 | AA26: 3 | AB26: 3 | AG26: 0.03 | AL26: -0.5 | AN26: 1 | AQ26: 0.03 | AS26: 1 | AT26: 0.56 | AU26: -0.5 | AZ26: 0.03
B27: =IF(AND(ISNUMBER(B26),isvisible(B26)), B26+1,"") ->  | C27: =IF(AND(ISNUMBER(C26),isvisible(C26)), C26+1,"") ->  | Q27: 0 | R27: 0 | S27: 0 | T27: 0.56 | U27: 0 | V27: 2 | W27: 0 | X27: 0 | Z27: 0 | AA27: 3 | AB27: 3 | AG27: 0.03 | AL27: -0.5 | AN27: 1 | AQ27: 0.03 | AS27: 1 | AT27: 0.56 | AU27: -0.5 | AZ27: 0.03
B28: =IF(AND(ISNUMBER(B27),isvisible(B27)), B27+1,"") ->  | C28: =IF(AND(ISNUMBER(C27),isvisible(C27)), C27+1,"") ->  | Q28: 0 | R28: 0 | S28: 0 | T28: 0.56 | U28: 0 | V28: 2 | W28: 0 | X28: 0 | Z28: 0 | AA28: 3 | AB28: 3 | AG28: 0.03 | AL28: -0.5 | AN28: 1 | AQ28: 0.03 | AS28: 1 | AT28: 0.56 | AU28: -0.5 | AZ28: 0.03
B29: =IF(AND(ISNUMBER(B28),isvisible(B28)), B28+1,"") ->  | C29: =IF(AND(ISNUMBER(C28),isvisible(C28)), C28+1,"") ->  | Q29: 0 | R29: 0 | S29: 0 | T29: 0.56 | U29: 0 | V29: 2 | W29: 0 | X29: 0 | Z29: 0 | AA29: 3 | AB29: 3 | AG29: 0.03 | AL29: -0.5 | AN29: 1 | AQ29: 0.03 | AS29: 1 | AT29: 0.56 | AU29: -0.5 | AZ29: 0.03
B30: =IF(AND(ISNUMBER(B29),isvisible(B29)), B29+1,"") ->  | C30: =IF(AND(ISNUMBER(C29),isvisible(C29)), C29+1,"") ->  | Q30: 0 | R30: 0 | S30: 0 | T30: 0.56 | U30: 0 | V30: 2 | W30: 0 | X30: 0 | Z30: 0 | AA30: 3 | AB30: 3 | AG30: 0.03 | AL30: -0.5 | AN30: 1 | AQ30: 0.03 | AS30: 1 | AT30: 0.56 | AU30: -0.5 | AZ30: 0.03
B31: =IF(AND(ISNUMBER(B30),isvisible(B30)), B30+1,"") ->  | C31: =IF(AND(ISNUMBER(C30),isvisible(C30)), C30+1,"") ->  | Q31: 0 | R31: 0 | S31: 0 | T31: 0.56 | U31: 0 | V31: 2 | W31: 0 | X31: 0 | Z31: 0 | AA31: 3 | AB31: 3 | AG31: 0.03 | AL31: -0.5 | AN31: 1 | AQ31: 0.03 | AS31: 1 | AT31: 0.56 | AU31: -0.5 | AZ31: 0.03
B32: =IF(AND(ISNUMBER(B31),isvisible(B31)), B31+1,"") ->  | C32: =IF(AND(ISNUMBER(C31),isvisible(C31)), C31+1,"") ->  | Q32: 0 | R32: 0 | S32: 0 | T32: 0.56 | U32: 0 | V32: 2 | W32: 0 | X32: 0 | Z32: 0 | AA32: 3 | AB32: 3 | AG32: 0.03 | AL32: -0.5 | AN32: 1 | AQ32: 0.03 | AS32: 1 | AT32: 0.56 | AU32: -0.5 | AZ32: 0.03
B33: =IF(AND(ISNUMBER(B32),isvisible(B32)), B32+1,"") ->  | C33: =IF(AND(ISNUMBER(C32),isvisible(C32)), C32+1,"") ->  | Q33: 0 | R33: 0 | S33: 0 | T33: 0.56 | U33: 0 | V33: 2 | W33: 0 | X33: 0 | Z33: 0 | AA33: 3 | AB33: 3 | AG33: 0.03 | AL33: -0.5 | AN33: 1 | AQ33: 0.03 | AS33: 1 | AT33: 0.56 | AU33: -0.5 | AZ33: 0.03
B34: =IF(AND(ISNUMBER(B33),isvisible(B33)), B33+1,"") ->  | C34: =IF(AND(ISNUMBER(C33),isvisible(C33)), C33+1,"") ->  | Q34: 0 | R34: 0 | S34: 0 | T34: 0.56 | U34: 0 | V34: 2 | W34: 0 | X34: 0 | Z34: 0 | AA34: 3 | AB34: 3 | AG34: 0.03 | AL34: -0.5 | AN34: 1 | AQ34: 0.03 | AS34: 1 | AT34: 0.56 | AU34: -0.5 | AZ34: 0.03
B35: =IF(AND(ISNUMBER(B34),isvisible(B34)), B34+1,"") ->  | C35: =IF(AND(ISNUMBER(C34),isvisible(C34)), C34+1,"") ->  | Q35: 0 | R35: 0 | S35: 0 | T35: 0.56 | U35: 0 | V35: 2 | W35: 0 | X35: 0 | Z35: 0 | AA35: 3 | AB35: 3 | AG35: 0.03 | AL35: -0.5 | AN35: 1 | AQ35: 0.03 | AS35: 1 | AT35: 0.56 | AU35: -0.5 | AZ35: 0.03
B36: =IF(AND(ISNUMBER(B35),isvisible(B35)), B35+1,"") ->  | C36: =IF(AND(ISNUMBER(C35),isvisible(C35)), C35+1,"") ->  | Q36: 0 | R36: 0 | S36: 0 | T36: 0.56 | U36: 0 | V36: 2 | W36: 0 | X36: 0 | Z36: 0 | AA36: 3 | AB36: 3 | AG36: 0.03 | AL36: -0.5 | AN36: 1 | AQ36: 0.03 | AS36: 1 | AT36: 0.56 | AU36: -0.5 | AZ36: 0.03
B37: =IF(AND(ISNUMBER(B36),isvisible(B36)), B36+1,"") ->  | C37: =IF(AND(ISNUMBER(C36),isvisible(C36)), C36+1,"") ->  | Q37: 0 | R37: 0 | S37: 0 | T37: 0.56 | U37: 0 | V37: 2 | W37: 0 | X37: 0 | Z37: 0 | AA37: 3 | AB37: 3 | AG37: 0.03 | AL37: -0.5 | AN37: 1 | AQ37: 0.03 | AS37: 1 | AT37: 0.56 | AU37: -0.5 | AZ37: 0.03
B38: =IF(AND(ISNUMBER(B37),isvisible(B37)), B37+1,"") ->  | C38: =IF(AND(ISNUMBER(C37),isvisible(C37)), C37+1,"") ->  | Q38: 0 | R38: 0 | S38: 0 | T38: 0.56 | U38: 0 | V38: 2 | W38: 0 | X38: 0 | Z38: 0 | AA38: 3 | AB38: 3 | AG38: 0.03 | AL38: -0.5 | AN38: 1 | AQ38: 0.03 | AS38: 1 | AT38: 0.56 | AU38: -0.5 | AZ38: 0.03
B39: =IF(AND(ISNUMBER(B38),isvisible(B38)), B38+1,"") ->  | C39: =IF(AND(ISNUMBER(C38),isvisible(C38)), C38+1,"") ->  | Q39: 0 | R39: 0 | S39: 0 | T39: 0.56 | U39: 0 | V39: 2 | W39: 0 | X39: 0 | Z39: 0 | AA39: 3 | AB39: 3 | AG39: 0.03 | AL39: -0.5 | AN39: 1 | AQ39: 0.03 | AS39: 1 | AT39: 0.56 | AU39: -0.5 | AZ39: 0.03
B40: =IF(AND(ISNUMBER(B39),isvisible(B39)), B39+1,"") ->  | C40: =IF(AND(ISNUMBER(C39),isvisible(C39)), C39+1,"") ->  | Q40: 0 | R40: 0 | S40: 0 | T40: 0.56 | U40: 0 | V40: 2 | W40: 0 | X40: 0 | Z40: 0 | AA40: 3 | AB40: 3 | AG40: 0.03 | AL40: -0.5 | AN40: 1 | AQ40: 0.03 | AS40: 1 | AT40: 0.56 | AU40: -0.5 | AZ40: 0.03
B41: =IF(AND(ISNUMBER(B40),isvisible(B40)), B40+1,"") ->  | C41: =IF(AND(ISNUMBER(C40),isvisible(C40)), C40+1,"") ->  | Q41: 0 | R41: 0 | S41: 0 | T41: 0.56 | U41: 0 | V41: 2 | W41: 0 | X41: 0 | Z41: 0 | AA41: 3 | AB41: 3 | AG41: 0.03 | AL41: -0.5 | AN41: 1 | AQ41: 0.03 | AS41: 1 | AT41: 0.56 | AU41: -0.5 | AZ41: 0.03
B42: =IF(AND(ISNUMBER(B41),isvisible(B41)), B41+1,"") ->  | C42: =IF(AND(ISNUMBER(C41),isvisible(C41)), C41+1,"") ->  | Q42: 0 | R42: 0 | S42: 0 | T42: 0.56 | U42: 0 | V42: 2 | W42: 0 | X42: 0 | Z42: 0 | AA42: 3 | AB42: 3 | AG42: 0.03 | AL42: -0.5 | AN42: 1 | AQ42: 0.03 | AS42: 1 | AT42: 0.56 | AU42: -0.5 | AZ42: 0.03
B43: =IF(AND(ISNUMBER(B42),isvisible(B42)), B42+1,"") ->  | C43: =IF(AND(ISNUMBER(C42),isvisible(C42)), C42+1,"") ->  | Q43: 0 | R43: 0 | S43: 0 | T43: 0.56 | U43: 0 | V43: 2 | W43: 0 | X43: 0 | Z43: 0 | AA43: 3 | AB43: 3 | AG43: 0.03 | AL43: -0.5 | AN43: 1 | AQ43: 0.03 | AS43: 1 | AT43: 0.56 | AU43: -0.5 | AZ43: 0.03
B44: =IF(AND(ISNUMBER(B43),isvisible(B43)), B43+1,"") ->  | C44: =IF(AND(ISNUMBER(C43),isvisible(C43)), C43+1,"") ->  | Q44: 0 | R44: 0 | S44: 0 | T44: 0.56 | U44: 0 | V44: 2 | W44: 0 | X44: 0 | Z44: 0 | AA44: 3 | AB44: 3 | AG44: 0.03 | AL44: -0.5 | AN44: 1 | AQ44: 0.03 | AS44: 1 | AT44: 0.56 | AU44: -0.5 | AZ44: 0.03
B45: =IF(AND(ISNUMBER(B44),isvisible(B44)), B44+1,"") ->  | C45: =IF(AND(ISNUMBER(C44),isvisible(C44)), C44+1,"") ->  | Q45: 0 | R45: 0 | S45: 0 | T45: 0.56 | U45: 0 | V45: 2 | W45: 0 | X45: 0 | Z45: 0 | AA45: 3 | AB45: 3 | AG45: 0.03 | AL45: -0.5 | AN45: 1 | AQ45: 0.03 | AS45: 1 | AT45: 0.56 | AU45: -0.5 | AZ45: 0.03
B46: =IF(AND(ISNUMBER(B45),isvisible(B45)), B45+1,"") ->  | C46: =IF(AND(ISNUMBER(C45),isvisible(C45)), C45+1,"") ->  | Q46: 0 | R46: 0 | S46: 0 | T46: 0.56 | U46: 0 | V46: 2 | W46: 0 | X46: 0 | Z46: 0 | AA46: 3 | AB46: 3 | AG46: 0.03 | AL46: -0.5 | AN46: 1 | AQ46: 0.03 | AS46: 1 | AT46: 0.56 | AU46: -0.5 | AZ46: 0.03
B47: =IF(AND(ISNUMBER(B46),isvisible(B46)), B46+1,"") ->  | C47: =IF(AND(ISNUMBER(C46),isvisible(C46)), C46+1,"") ->  | Q47: 0 | R47: 0 | S47: 0 | T47: 0.56 | U47: 0 | V47: 2 | W47: 0 | X47: 0 | Z47: 0 | AA47: 3 | AB47: 3 | AG47: 0.03 | AL47: -0.5 | AN47: 1 | AQ47: 0.03 | AS47: 1 | AT47: 0.56 | AU47: -0.5 | AZ47: 0.03
B48: =IF(AND(ISNUMBER(B47),isvisible(B47)), B47+1,"") ->  | C48: =IF(AND(ISNUMBER(C47),isvisible(C47)), C47+1,"") ->  | Q48: 0 | R48: 0 | S48: 0 | T48: 0.56 | U48: 0 | V48: 2 | W48: 0 | X48: 0 | Z48: 0 | AA48: 3 | AB48: 3 | AG48: 0.03 | AL48: -0.5 | AN48: 1 | AQ48: 0.03 | AS48: 1 | AT48: 0.56 | AU48: -0.5 | AZ48: 0.03
B49: =IF(AND(ISNUMBER(B48),isvisible(B48)), B48+1,"") ->  | C49: =IF(AND(ISNUMBER(C48),isvisible(C48)), C48+1,"") ->  | Q49: 0 | R49: 0 | S49: 0 | T49: 0.56 | U49: 0 | V49: 2 | W49: 0 | X49: 0 | Z49: 0 | AA49: 3 | AB49: 3 | AG49: 0.03 | AL49: -0.5 | AN49: 1 | AQ49: 0.03 | AS49: 1 | AT49: 0.56 | AU49: -0.5 | AZ49: 0.03
B50: =IF(AND(ISNUMBER(B49),isvisible(B49)), B49+1,"") ->  | C50: =IF(AND(ISNUMBER(C49),isvisible(C49)), C49+1,"") ->  | Q50: 0 | R50: 0 | S50: 0 | T50: 0.56 | U50: 0 | V50: 2 | W50: 0 | X50: 0 | Z50: 0 | AA50: 3 | AB50: 3 | AG50: 0.03 | AL50: -0.5 | AN50: 1 | AQ50: 0.03 | AS50: 1 | AT50: 0.56 | AU50: -0.5 | AZ50: 0.03
B51: =IF(AND(ISNUMBER(B50),isvisible(B50)), B50+1,"") ->  | C51: =IF(AND(ISNUMBER(C50),isvisible(C50)), C50+1,"") ->  | Q51: 0 | R51: 0 | S51: 0 | T51: 0.56 | U51: 0 | V51: 2 | W51: 0 | X51: 0 | Z51: 0 | AA51: 3 | AB51: 3 | AG51: 0.03 | AL51: -0.5 | AN51: 1 | AQ51: 0.03 | AS51: 1 | AT51: 0.56 | AU51: -0.5 | AZ51: 0.03
B52: =IF(AND(ISNUMBER(B51),isvisible(B51)), B51+1,"") ->  | C52: =IF(AND(ISNUMBER(C51),isvisible(C51)), C51+1,"") ->  | Q52: 0 | R52: 0 | S52: 0 | T52: 0.56 | U52: 0 | V52: 2 | W52: 0 | X52: 0 | Z52: 0 | AA52: 3 | AB52: 3 | AG52: 0.03 | AL52: -0.5 | AN52: 1 | AQ52: 0.03 | AS52: 1 | AT52: 0.56 | AU52: -0.5 | AZ52: 0.03
B53: =IF(AND(ISNUMBER(B52),isvisible(B52)), B52+1,"") ->  | C53: =IF(AND(ISNUMBER(C52),isvisible(C52)), C52+1,"") ->  | Q53: 0 | R53: 0 | S53: 0 | T53: 0.56 | U53: 0 | V53: 2 | W53: 0 | X53: 0 | Z53: 0 | AA53: 3 | AB53: 3 | AG53: 0.03 | AL53: -0.5 | AN53: 1 | AQ53: 0.03 | AS53: 1 | AT53: 0.56 | AU53: -0.5 | AZ53: 0.03
B54: =IF(AND(ISNUMBER(B53),isvisible(B53)), B53+1,"") ->  | C54: =IF(AND(ISNUMBER(C53),isvisible(C53)), C53+1,"") ->  | Q54: 0 | R54: 0 | S54: 0 | T54: 0.56 | U54: 0 | V54: 2 | W54: 0 | X54: 0 | Z54: 0 | AA54: 3 | AB54: 3 | AG54: 0.03 | AL54: -0.5 | AN54: 1 | AQ54: 0.03 | AS54: 1 | AT54: 0.56 | AU54: -0.5 | AZ54: 0.03
B55: =IF(AND(ISNUMBER(B54),isvisible(B54)), B54+1,"") ->  | C55: =IF(AND(ISNUMBER(C54),isvisible(C54)), C54+1,"") ->  | Q55: 0 | R55: 0 | S55: 0 | T55: 0.56 | U55: 0 | V55: 2 | W55: 0 | X55: 0 | Z55: 0 | AA55: 3 | AB55: 3 | AG55: 0.03 | AL55: -0.5 | AN55: 1 | AQ55: 0.03 | AS55: 1 | AT55: 0.56 | AU55: -0.5 | AZ55: 0.03
B56: =IF(AND(ISNUMBER(B55),isvisible(B55)), B55+1,"") ->  | C56: =IF(AND(ISNUMBER(C55),isvisible(C55)), C55+1,"") ->  | Q56: 0 | R56: 0 | S56: 0 | T56: 0.56 | U56: 0 | V56: 2 | W56: 0 | X56: 0 | Z56: 0 | AA56: 3 | AB56: 3 | AG56: 0.03 | AL56: -0.5 | AN56: 1 | AQ56: 0.03 | AS56: 1 | AT56: 0.56 | AU56: -0.5 | AZ56: 0.03
B57: =IF(AND(ISNUMBER(B56),isvisible(B56)), B56+1,"") ->  | C57: =IF(AND(ISNUMBER(C56),isvisible(C56)), C56+1,"") ->  | Q57: 0 | R57: 0 | S57: 0 | T57: 0.56 | U57: 0 | V57: 2 | W57: 0 | X57: 0 | Z57: 0 | AA57: 3 | AB57: 3 | AG57: 0.03 | AL57: -0.5 | AN57: 1 | AQ57: 0.03 | AS57: 1 | AT57: 0.56 | AU57: -0.5 | AZ57: 0.03
B58: =IF(AND(ISNUMBER(B57),isvisible(B57)), B57+1,"") ->  | C58: =IF(AND(ISNUMBER(C57),isvisible(C57)), C57+1,"") ->  | Q58: 0 | R58: 0 | S58: 0 | T58: 0.56 | U58: 0 | V58: 2 | W58: 0 | X58: 0 | Z58: 0 | AA58: 3 | AB58: 3 | AG58: 0.03 | AL58: -0.5 | AN58: 1 | AQ58: 0.03 | AS58: 1 | AT58: 0.56 | AU58: -0.5 | AZ58: 0.03
B59: =IF(AND(ISNUMBER(B58),isvisible(B58)), B58+1,"") ->  | C59: =IF(AND(ISNUMBER(C58),isvisible(C58)), C58+1,"") ->  | Q59: 0 | R59: 0 | S59: 0 | T59: 0.56 | U59: 0 | V59: 2 | W59: 0 | X59: 0 | Z59: 0 | AA59: 3 | AB59: 3 | AG59: 0.03 | AL59: -0.5 | AN59: 1 | AQ59: 0.03 | AS59: 1 | AT59: 0.56 | AU59: -0.5 | AZ59: 0.03
B60: =IF(AND(ISNUMBER(B59),isvisible(B59)), B59+1,"") ->  | C60: =IF(AND(ISNUMBER(C59),isvisible(C59)), C59+1,"") ->  | Q60: 0 | R60: 0 | S60: 0 | T60: 0.56 | U60: 0 | V60: 2 | W60: 0 | X60: 0 | Z60: 0 | AA60: 3 | AB60: 3 | AG60: 0.03 | AL60: -0.5 | AN60: 1 | AQ60: 0.03 | AS60: 1 | AT60: 0.56 | AU60: -0.5 | AZ60: 0.03
B61: =IF(AND(ISNUMBER(B60),isvisible(B60)), B60+1,"") ->  | C61: =IF(AND(ISNUMBER(C60),isvisible(C60)), C60+1,"") ->  | Q61: 0 | R61: 0 | S61: 0 | T61: 0.56 | U61: 0 | V61: 2 | W61: 0 | X61: 0 | Z61: 0 | AA61: 3 | AB61: 3 | AG61: 0.03 | AL61: -0.5 | AN61: 1 | AQ61: 0.03 | AS61: 1 | AT61: 0.56 | AU61: -0.5 | AZ61: 0.03
B62: =IF(AND(ISNUMBER(B61),isvisible(B61)), B61+1,"") ->  | C62: =IF(AND(ISNUMBER(C61),isvisible(C61)), C61+1,"") ->  | Q62: 0 | R62: 0 | S62: 0 | T62: 0.56 | U62: 0 | V62: 2 | W62: 0 | X62: 0 | Z62: 0 | AA62: 3 | AB62: 3 | AG62: 0.03 | AL62: -0.5 | AN62: 1 | AQ62: 0.03 | AS62: 1 | AT62: 0.56 | AU62: -0.5 | AZ62: 0.03
B63: =IF(AND(ISNUMBER(B62),isvisible(B62)), B62+1,"") ->  | C63: =IF(AND(ISNUMBER(C62),isvisible(C62)), C62+1,"") ->  | Q63: 0 | R63: 0 | S63: 0 | T63: 0.56 | U63: 0 | V63: 2 | W63: 0 | X63: 0 | Z63: 0 | AA63: 3 | AB63: 3 | AG63: 0.03 | AL63: -0.5 | AN63: 1 | AQ63: 0.03 | AS63: 1 | AT63: 0.56 | AU63: -0.5 | AZ63: 0.03
B64: =IF(AND(ISNUMBER(B63),isvisible(B63)), B63+1,"") ->  | C64: =IF(AND(ISNUMBER(C63),isvisible(C63)), C63+1,"") ->  | Q64: 0 | R64: 0 | S64: 0 | T64: 0.56 | U64: 0 | V64: 2 | W64: 0 | X64: 0 | Z64: 0 | AA64: 3 | AB64: 3 | AG64: 0.03 | AL64: -0.5 | AN64: 1 | AQ64: 0.03 | AS64: 1 | AT64: 0.56 | AU64: -0.5 | AZ64: 0.03
B65: =IF(AND(ISNUMBER(B64),isvisible(B64)), B64+1,"") ->  | C65: =IF(AND(ISNUMBER(C64),isvisible(C64)), C64+1,"") ->  | Q65: 0 | R65: 0 | S65: 0 | T65: 0.56 | U65: 0 | V65: 2 | W65: 0 | X65: 0 | Z65: 0 | AA65: 3 | AB65: 3 | AG65: 0.03 | AL65: -0.5 | AN65: 1 | AQ65: 0.03 | AS65: 1 | AT65: 0.56 | AU65: -0.5 | AZ65: 0.03
B66: =IF(AND(ISNUMBER(B65),isvisible(B65)), B65+1,"") ->  | C66: =IF(AND(ISNUMBER(C65),isvisible(C65)), C65+1,"") ->  | Q66: 0 | R66: 0 | S66: 0 | T66: 0.56 | U66: 0 | V66: 2 | W66: 0 | X66: 0 | Z66: 0 | AA66: 3 | AB66: 3 | AG66: 0.03 | AL66: -0.5 | AN66: 1 | AQ66: 0.03 | AS66: 1 | AT66: 0.56 | AU66: -0.5 | AZ66: 0.03
B67: =IF(AND(ISNUMBER(B66),isvisible(B66)), B66+1,"") ->  | C67: =IF(AND(ISNUMBER(C66),isvisible(C66)), C66+1,"") ->  | Q67: 0 | R67: 0 | S67: 0 | T67: 0.56 | U67: 0 | V67: 2 | W67: 0 | X67: 0 | Z67: 0 | AA67: 3 | AB67: 3 | AG67: 0.03 | AL67: -0.5 | AN67: 1 | AQ67: 0.03 | AS67: 1 | AT67: 0.56 | AU67: -0.5 | AZ67: 0.03
B68: =IF(AND(ISNUMBER(B67),isvisible(B67)), B67+1,"") ->  | C68: =IF(AND(ISNUMBER(C67),isvisible(C67)), C67+1,"") ->  | Q68: 0 | R68: 0 | S68: 0 | T68: 0.56 | U68: 0 | V68: 2 | W68: 0 | X68: 0 | Z68: 0 | AA68: 3 | AB68: 3 | AG68: 0.03 | AL68: -0.5 | AN68: 1 | AQ68: 0.03 | AS68: 1 | AT68: 0.56 | AU68: -0.5 | AZ68: 0.03
B69: =IF(AND(ISNUMBER(B68),isvisible(B68)), B68+1,"") ->  | C69: =IF(AND(ISNUMBER(C68),isvisible(C68)), C68+1,"") ->  | Q69: 0 | R69: 0 | S69: 0 | T69: 0.56 | U69: 0 | V69: 2 | W69: 0 | X69: 0 | Z69: 0 | AA69: 3 | AB69: 3 | AG69: 0.03 | AL69: -0.5 | AN69: 1 | AQ69: 0.03 | AS69: 1 | AT69: 0.56 | AU69: -0.5 | AZ69: 0.03
B70: =IF(AND(ISNUMBER(B69),isvisible(B69)), B69+1,"") ->  | C70: =IF(AND(ISNUMBER(C69),isvisible(C69)), C69+1,"") ->  | Q70: 0 | R70: 0 | S70: 0 | T70: 0.56 | U70: 0 | V70: 2 | W70: 0 | X70: 0 | Z70: 0 | AA70: 3 | AB70: 3 | AG70: 0.03 | AL70: -0.5 | AN70: 1 | AQ70: 0.03 | AS70: 1 | AT70: 0.56 | AU70: -0.5 | AZ70: 0.03
B71: =IF(AND(ISNUMBER(B70),isvisible(B70)), B70+1,"") ->  | C71: =IF(AND(ISNUMBER(C70),isvisible(C70)), C70+1,"") ->  | Q71: 0 | R71: 0 | S71: 0 | T71: 0.56 | U71: 0 | V71: 2 | W71: 0 | X71: 0 | Z71: 0 | AA71: 3 | AB71: 3 | AG71: 0.03 | AL71: -0.5 | AN71: 1 | AQ71: 0.03 | AS71: 1 | AT71: 0.56 | AU71: -0.5 | AZ71: 0.03
B72: =IF(AND(ISNUMBER(B71),isvisible(B71)), B71+1,"") ->  | C72: =IF(AND(ISNUMBER(C71),isvisible(C71)), C71+1,"") ->  | Q72: 0 | R72: 0 | S72: 0 | T72: 0.56 | U72: 0 | V72: 2 | W72: 0 | X72: 0 | Z72: 0 | AA72: 3 | AB72: 3 | AG72: 0.03 | AL72: -0.5 | AN72: 1 | AQ72: 0.03 | AS72: 1 | AT72: 0.56 | AU72: -0.5 | AZ72: 0.03
B73: =IF(AND(ISNUMBER(B72),isvisible(B72)), B72+1,"") ->  | C73: =IF(AND(ISNUMBER(C72),isvisible(C72)), C72+1,"") ->  | Q73: 0 | R73: 0 | S73: 0 | T73: 0.56 | U73: 0 | V73: 2 | W73: 0 | X73: 0 | Z73: 0 | AA73: 3 | AB73: 3 | AG73: 0.03 | AL73: -0.5 | AN73: 1 | AQ73: 0.03 | AS73: 1 | AT73: 0.56 | AU73: -0.5 | AZ73: 0.03
B74: =IF(AND(ISNUMBER(B73),isvisible(B73)), B73+1,"") ->  | C74: =IF(AND(ISNUMBER(C73),isvisible(C73)), C73+1,"") ->  | Q74: 0 | R74: 0 | S74: 0 | T74: 0.56 | U74: 0 | V74: 2 | W74: 0 | X74: 0 | Z74: 0 | AA74: 3 | AB74: 3 | AG74: 0.03 | AL74: -0.5 | AN74: 1 | AQ74: 0.03 | AS74: 1 | AT74: 0.56 | AU74: -0.5 | AZ74: 0.03
B75: =IF(AND(ISNUMBER(B74),isvisible(B74)), B74+1,"") ->  | C75: =IF(AND(ISNUMBER(C74),isvisible(C74)), C74+1,"") ->  | Q75: 0 | R75: 0 | S75: 0 | T75: 0.56 | U75: 0 | V75: 2 | W75: 0 | X75: 0 | Z75: 0 | AA75: 3 | AB75: 3 | AG75: 0.03 | AL75: -0.5 | AN75: 1 | AQ75: 0.03 | AS75: 1 | AT75: 0.56 | AU75: -0.5 | AZ75: 0.03
B76: =IF(AND(ISNUMBER(B75),isvisible(B75)), B75+1,"") ->  | C76: =IF(AND(ISNUMBER(C75),isvisible(C75)), C75+1,"") ->  | H76: =IF(H75 = "","",H75) ->  | M76: =IFERROR(H76*I76*J76,"") ->  | Q76: =DEGREES(ATAN(E76/100)) -> 0 | R76: =(ATAN(E76/100)) -> 0 | S76: =(SIN(R76))/0.0896 -> 0 | T76: =(((SIN(R76))^0.8)*3)+ 0.56 -> 0.56 | U76: =+S76/T76 -> 0 | V76: 2 | W76: =+V76*U76 -> 0 | X76: =+W76/(W76+1) -> 0 | Z76: =F76*3.2808399 -> 0 | AA76: =IF(Z76>=3,Z76,3) -> 3 | AB76: =IF(AND(AA76>=15, E76<9),1,IF(AND(AA76>=15, E76>=9),2,IF(AND(AA76<15, E76<9),3,IF(AND(AA76<15, E76>=9),4,0)))) -> 3 | AD76: =(Z76/72.6)^X76 ->  | AG76: =((SIN(R76))*10.8) + 0.03 -> 0.03 | AI76: =(Z76/72.6)^X76 ->  | AL76: =((SIN(R76))*16.8) - 0.5 -> -0.5 | AN76: =(15/72.6)^X76 -> 1 | AQ76: =((SIN(R76))*10.8) + 0.03 -> 0.03 | AS76: =(15/72.6)^X76 -> 1 | AT76: =(((SIN(R76))^0.8)*3)+ 0.56 -> 0.56 | AU76: =((SIN(R76))*16.8) - 0.5 -> -0.5 | AX76: =AD76*AG76 ->  | AY76: =AI76*AL76 ->  | AZ76: =AN76*AQ76 -> 0.03 | BA76: =10^(LOG10(AS76*AT76)+(LOG10(AA76)-LOG10(3))*(LOG10(AS76*AU76)-LOG10(AS76*AT76))/0.699) -> 
B77: =IF(AND(ISNUMBER(B76),isvisible(B76)), B76+1,"") ->  | C77: =IF(AND(ISNUMBER(C76),isvisible(C76)), C76+1,"") ->  | J77: =IF(NOT(AND(ISNUMBER(E77),ISNUMBER(F77))),"",INDEX(AX77:BA77,1,MATCH(AB77,$AX$9:$BA$9))) ->  | Q77: 0 | R77: 0 | S77: 0 | T77: 0.56 | U77: 0 | V77: 2 | W77: 0 | X77: 0 | Z77: 0 | AA77: 3 | AB77: 3 | AG77: 0.03 | AL77: -0.5 | AN77: 1 | AQ77: 0.03 | AS77: 1 | AT77: 0.56 | AU77: -0.5 | AZ77: 0.03
B78: =IF(AND(ISNUMBER(B77),isvisible(B77)), B77+1,"") ->  | C78: =IF(AND(ISNUMBER(C77),isvisible(C77)), C77+1,"") ->  | N78: =IFERROR(H78*I78*J78*K78*L78,"") ->  | O78: =IFERROR(N78*D78,"") ->  | P78: =IFERROR(H78*I78*J78*D78,"") ->  | Q78: 0 | R78: 0 | S78: 0 | T78: 0.56 | U78: 0 | V78: 2 | W78: 0 | X78: 0 | Z78: 0 | AA78: 3 | AB78: 3 | AG78: 0.03 | AL78: -0.5 | AN78: 1 | AQ78: 0.03 | AS78: 1 | AT78: 0.56 | AU78: -0.5 | AZ78: 0.03
B79: =IF(AND(ISNUMBER(B78),isvisible(B78)), B78+1,"") ->  | C79: =IF(AND(ISNUMBER(C78),isvisible(C78)), C78+1,"") ->  | Q79: 0 | R79: 0 | S79: 0 | T79: 0.56 | U79: 0 | V79: 2 | W79: 0 | X79: 0 | Z79: 0 | AA79: 3 | AB79: 3 | AG79: 0.03 | AL79: -0.5 | AN79: 1 | AQ79: 0.03 | AS79: 1 | AT79: 0.56 | AU79: -0.5 | AZ79: 0.03
B80: =IF(AND(ISNUMBER(B79),isvisible(B79)), B79+1,"") ->  | C80: =IF(AND(ISNUMBER(C79),isvisible(C79)), C79+1,"") ->  | Q80: 0 | R80: 0 | S80: 0 | T80: 0.56 | U80: 0 | V80: 2 | W80: 0 | X80: 0 | Z80: 0 | AA80: 3 | AB80: 3 | AG80: 0.03 | AL80: -0.5 | AN80: 1 | AQ80: 0.03 | AS80: 1 | AT80: 0.56 | AU80: -0.5 | AZ80: 0.03
B81: =IF(AND(ISNUMBER(B80),isvisible(B80)), B80+1,"") ->  | C81: =IF(AND(ISNUMBER(C80),isvisible(C80)), C80+1,"") ->  | Q81: 0 | R81: 0 | S81: 0 | T81: 0.56 | U81: 0 | V81: 2 | W81: 0 | X81: 0 | Z81: 0 | AA81: 3 | AB81: 3 | AG81: 0.03 | AL81: -0.5 | AN81: 1 | AQ81: 0.03 | AS81: 1 | AT81: 0.56 | AU81: -0.5 | AZ81: 0.03
B82: =IF(AND(ISNUMBER(B81),isvisible(B81)), B81+1,"") ->  | C82: =IF(AND(ISNUMBER(C81),isvisible(C81)), C81+1,"") ->  | Q82: 0 | R82: 0 | S82: 0 | T82: 0.56 | U82: 0 | V82: 2 | W82: 0 | X82: 0 | Z82: 0 | AA82: 3 | AB82: 3 | AG82: 0.03 | AL82: -0.5 | AN82: 1 | AQ82: 0.03 | AS82: 1 | AT82: 0.56 | AU82: -0.5 | AZ82: 0.03
B83: =IF(AND(ISNUMBER(B82),isvisible(B82)), B82+1,"") ->  | C83: =IF(AND(ISNUMBER(C82),isvisible(C82)), C82+1,"") ->  | Q83: 0 | R83: 0 | S83: 0 | T83: 0.56 | U83: 0 | V83: 2 | W83: 0 | X83: 0 | Z83: 0 | AA83: 3 | AB83: 3 | AG83: 0.03 | AL83: -0.5 | AN83: 1 | AQ83: 0.03 | AS83: 1 | AT83: 0.56 | AU83: -0.5 | AZ83: 0.03
B84: =IF(AND(ISNUMBER(B83),isvisible(B83)), B83+1,"") ->  | C84: =IF(AND(ISNUMBER(C83),isvisible(C83)), C83+1,"") ->  | Q84: 0 | R84: 0 | S84: 0 | T84: 0.56 | U84: 0 | V84: 2 | W84: 0 | X84: 0 | Z84: 0 | AA84: 3 | AB84: 3 | AG84: 0.03 | AL84: -0.5 | AN84: 1 | AQ84: 0.03 | AS84: 1 | AT84: 0.56 | AU84: -0.5 | AZ84: 0.03
B85: =IF(AND(ISNUMBER(B84),isvisible(B84)), B84+1,"") ->  | C85: =IF(AND(ISNUMBER(C84),isvisible(C84)), C84+1,"") ->  | Q85: 0 | R85: 0 | S85: 0 | T85: 0.56 | U85: 0 | V85: 2 | W85: 0 | X85: 0 | Z85: 0 | AA85: 3 | AB85: 3 | AG85: 0.03 | AL85: -0.5 | AN85: 1 | AQ85: 0.03 | AS85: 1 | AT85: 0.56 | AU85: -0.5 | AZ85: 0.03
B86: =IF(AND(ISNUMBER(B85),isvisible(B85)), B85+1,"") ->  | C86: =IF(AND(ISNUMBER(C85),isvisible(C85)), C85+1,"") ->  | Q86: 0 | R86: 0 | S86: 0 | T86: 0.56 | U86: 0 | V86: 2 | W86: 0 | X86: 0 | Z86: 0 | AA86: 3 | AB86: 3 | AG86: 0.03 | AL86: -0.5 | AN86: 1 | AQ86: 0.03 | AS86: 1 | AT86: 0.56 | AU86: -0.5 | AZ86: 0.03
B87: =IF(AND(ISNUMBER(B86),isvisible(B86)), B86+1,"") ->  | C87: =IF(AND(ISNUMBER(C86),isvisible(C86)), C86+1,"") ->  | Q87: 0 | R87: 0 | S87: 0 | T87: 0.56 | U87: 0 | V87: 2 | W87: 0 | X87: 0 | Z87: 0 | AA87: 3 | AB87: 3 | AG87: 0.03 | AL87: -0.5 | AN87: 1 | AQ87: 0.03 | AS87: 1 | AT87: 0.56 | AU87: -0.5 | AZ87: 0.03
B88: =IF(AND(ISNUMBER(B87),isvisible(B87)), B87+1,"") ->  | C88: =IF(AND(ISNUMBER(C87),isvisible(C87)), C87+1,"") ->  | Q88: 0 | R88: 0 | S88: 0 | T88: 0.56 | U88: 0 | V88: 2 | W88: 0 | X88: 0 | Z88: 0 | AA88: 3 | AB88: 3 | AG88: 0.03 | AL88: -0.5 | AN88: 1 | AQ88: 0.03 | AS88: 1 | AT88: 0.56 | AU88: -0.5 | AZ88: 0.03
B89: =IF(AND(ISNUMBER(B88),isvisible(B88)), B88+1,"") ->  | C89: =IF(AND(ISNUMBER(C88),isvisible(C88)), C88+1,"") ->  | Q89: 0 | R89: 0 | S89: 0 | T89: 0.56 | U89: 0 | V89: 2 | W89: 0 | X89: 0 | Z89: 0 | AA89: 3 | AB89: 3 | AG89: 0.03 | AL89: -0.5 | AN89: 1 | AQ89: 0.03 | AS89: 1 | AT89: 0.56 | AU89: -0.5 | AZ89: 0.03
B90: =IF(AND(ISNUMBER(B89),isvisible(B89)), B89+1,"") ->  | C90: =IF(AND(ISNUMBER(C89),isvisible(C89)), C89+1,"") ->  | Q90: 0 | R90: 0 | S90: 0 | T90: 0.56 | U90: 0 | V90: 2 | W90: 0 | X90: 0 | Z90: 0 | AA90: 3 | AB90: 3 | AG90: 0.03 | AL90: -0.5 | AN90: 1 | AQ90: 0.03 | AS90: 1 | AT90: 0.56 | AU90: -0.5 | AZ90: 0.03
B91: =IF(AND(ISNUMBER(B90),isvisible(B90)), B90+1,"") ->  | C91: =IF(AND(ISNUMBER(C90),isvisible(C90)), C90+1,"") ->  | Q91: 0 | R91: 0 | S91: 0 | T91: 0.56 | U91: 0 | V91: 2 | W91: 0 | X91: 0 | Z91: 0 | AA91: 3 | AB91: 3 | AG91: 0.03 | AL91: -0.5 | AN91: 1 | AQ91: 0.03 | AS91: 1 | AT91: 0.56 | AU91: -0.5 | AZ91: 0.03
B92: =IF(AND(ISNUMBER(B91),isvisible(B91)), B91+1,"") ->  | C92: =IF(AND(ISNUMBER(C91),isvisible(C91)), C91+1,"") ->  | Q92: 0 | R92: 0 | S92: 0 | T92: 0.56 | U92: 0 | V92: 2 | W92: 0 | X92: 0 | Z92: 0 | AA92: 3 | AB92: 3 | AG92: 0.03 | AL92: -0.5 | AN92: 1 | AQ92: 0.03 | AS92: 1 | AT92: 0.56 | AU92: -0.5 | AZ92: 0.03
B93: =IF(AND(ISNUMBER(B92),isvisible(B92)), B92+1,"") ->  | C93: =IF(AND(ISNUMBER(C92),isvisible(C92)), C92+1,"") ->  | Q93: 0 | R93: 0 | S93: 0 | T93: 0.56 | U93: 0 | V93: 2 | W93: 0 | X93: 0 | Z93: 0 | AA93: 3 | AB93: 3 | AG93: 0.03 | AL93: -0.5 | AN93: 1 | AQ93: 0.03 | AS93: 1 | AT93: 0.56 | AU93: -0.5 | AZ93: 0.03
B94: =IF(AND(ISNUMBER(B93),isvisible(B93)), B93+1,"") ->  | C94: =IF(AND(ISNUMBER(C93),isvisible(C93)), C93+1,"") ->  | Q94: 0 | R94: 0 | S94: 0 | T94: 0.56 | U94: 0 | V94: 2 | W94: 0 | X94: 0 | Z94: 0 | AA94: 3 | AB94: 3 | AG94: 0.03 | AL94: -0.5 | AN94: 1 | AQ94: 0.03 | AS94: 1 | AT94: 0.56 | AU94: -0.5 | AZ94: 0.03
B95: =IF(AND(ISNUMBER(B94),isvisible(B94)), B94+1,"") ->  | C95: =IF(AND(ISNUMBER(C94),isvisible(C94)), C94+1,"") ->  | Q95: 0 | R95: 0 | S95: 0 | T95: 0.56 | U95: 0 | V95: 2 | W95: 0 | X95: 0 | Z95: 0 | AA95: 3 | AB95: 3 | AG95: 0.03 | AL95: -0.5 | AN95: 1 | AQ95: 0.03 | AS95: 1 | AT95: 0.56 | AU95: -0.5 | AZ95: 0.03
B96: =IF(AND(ISNUMBER(B95),isvisible(B95)), B95+1,"") ->  | C96: =IF(AND(ISNUMBER(C95),isvisible(C95)), C95+1,"") ->  | Q96: 0 | R96: 0 | S96: 0 | T96: 0.56 | U96: 0 | V96: 2 | W96: 0 | X96: 0 | Z96: 0 | AA96: 3 | AB96: 3 | AG96: 0.03 | AL96: -0.5 | AN96: 1 | AQ96: 0.03 | AS96: 1 | AT96: 0.56 | AU96: -0.5 | AZ96: 0.03
B97: =IF(AND(ISNUMBER(B96),isvisible(B96)), B96+1,"") ->  | C97: =IF(AND(ISNUMBER(C96),isvisible(C96)), C96+1,"") ->  | Q97: 0 | R97: 0 | S97: 0 | T97: 0.56 | U97: 0 | V97: 2 | W97: 0 | X97: 0 | Z97: 0 | AA97: 3 | AB97: 3 | AG97: 0.03 | AL97: -0.5 | AN97: 1 | AQ97: 0.03 | AS97: 1 | AT97: 0.56 | AU97: -0.5 | AZ97: 0.03
B98: =IF(AND(ISNUMBER(B97),isvisible(B97)), B97+1,"") ->  | C98: =IF(AND(ISNUMBER(C97),isvisible(C97)), C97+1,"") ->  | Q98: 0 | R98: 0 | S98: 0 | T98: 0.56 | U98: 0 | V98: 2 | W98: 0 | X98: 0 | Z98: 0 | AA98: 3 | AB98: 3 | AG98: 0.03 | AL98: -0.5 | AN98: 1 | AQ98: 0.03 | AS98: 1 | AT98: 0.56 | AU98: -0.5 | AZ98: 0.03
B99: =IF(AND(ISNUMBER(B98),isvisible(B98)), B98+1,"") ->  | C99: =IF(AND(ISNUMBER(C98),isvisible(C98)), C98+1,"") ->  | Q99: 0 | R99: 0 | S99: 0 | T99: 0.56 | U99: 0 | V99: 2 | W99: 0 | X99: 0 | Z99: 0 | AA99: 3 | AB99: 3 | AG99: 0.03 | AL99: -0.5 | AN99: 1 | AQ99: 0.03 | AS99: 1 | AT99: 0.56 | AU99: -0.5 | AZ99: 0.03
B100: =IF(AND(ISNUMBER(B99),isvisible(B99)), B99+1,"") ->  | C100: =IF(AND(ISNUMBER(C99),isvisible(C99)), C99+1,"") ->  | Q100: 0 | R100: 0 | S100: 0 | T100: 0.56 | U100: 0 | V100: 2 | W100: 0 | X100: 0 | Z100: 0 | AA100: 3 | AB100: 3 | AG100: 0.03 | AL100: -0.5 | AN100: 1 | AQ100: 0.03 | AS100: 1 | AT100: 0.56 | AU100: -0.5 | AZ100: 0.03
B101: =IF(AND(ISNUMBER(B100),isvisible(B100)), B100+1,"") ->  | C101: =IF(AND(ISNUMBER(C100),isvisible(C100)), C100+1,"") ->  | Q101: 0 | R101: 0 | S101: 0 | T101: 0.56 | U101: 0 | V101: 2 | W101: 0 | X101: 0 | Z101: 0 | AA101: 3 | AB101: 3 | AG101: 0.03 | AL101: -0.5 | AN101: 1 | AQ101: 0.03 | AS101: 1 | AT101: 0.56 | AU101: -0.5 | AZ101: 0.03
B102: =IF(AND(ISNUMBER(B101),isvisible(B101)), B101+1,"") ->  | C102: =IF(AND(ISNUMBER(C101),isvisible(C101)), C101+1,"") ->  | Q102: 0 | R102: 0 | S102: 0 | T102: 0.56 | U102: 0 | V102: 2 | W102: 0 | X102: 0 | Z102: 0 | AA102: 3 | AB102: 3 | AG102: 0.03 | AL102: -0.5 | AN102: 1 | AQ102: 0.03 | AS102: 1 | AT102: 0.56 | AU102: -0.5 | AZ102: 0.03
B103: =IF(AND(ISNUMBER(B102),isvisible(B102)), B102+1,"") ->  | C103: =IF(AND(ISNUMBER(C102),isvisible(C102)), C102+1,"") ->  | Q103: 0 | R103: 0 | S103: 0 | T103: 0.56 | U103: 0 | V103: 2 | W103: 0 | X103: 0 | Z103: 0 | AA103: 3 | AB103: 3 | AG103: 0.03 | AL103: -0.5 | AN103: 1 | AQ103: 0.03 | AS103: 1 | AT103: 0.56 | AU103: -0.5 | AZ103: 0.03
B104: =IF(AND(ISNUMBER(B103),isvisible(B103)), B103+1,"") ->  | C104: =IF(AND(ISNUMBER(C103),isvisible(C103)), C103+1,"") ->  | Q104: 0 | R104: 0 | S104: 0 | T104: 0.56 | U104: 0 | V104: 2 | W104: 0 | X104: 0 | Z104: 0 | AA104: 3 | AB104: 3 | AG104: 0.03 | AL104: -0.5 | AN104: 1 | AQ104: 0.03 | AS104: 1 | AT104: 0.56 | AU104: -0.5 | AZ104: 0.03
B105: =IF(AND(ISNUMBER(B104),isvisible(B104)), B104+1,"") ->  | C105: =IF(AND(ISNUMBER(C104),isvisible(C104)), C104+1,"") ->  | Q105: 0 | R105: 0 | S105: 0 | T105: 0.56 | U105: 0 | V105: 2 | W105: 0 | X105: 0 | Z105: 0 | AA105: 3 | AB105: 3 | AG105: 0.03 | AL105: -0.5 | AN105: 1 | AQ105: 0.03 | AS105: 1 | AT105: 0.56 | AU105: -0.5 | AZ105: 0.03
B106: =IF(AND(ISNUMBER(B105),isvisible(B105)), B105+1,"") ->  | C106: =IF(AND(ISNUMBER(C105),isvisible(C105)), C105+1,"") ->  | Q106: 0 | R106: 0 | S106: 0 | T106: 0.56 | U106: 0 | V106: 2 | W106: 0 | X106: 0 | Z106: 0 | AA106: 3 | AB106: 3 | AG106: 0.03 | AL106: -0.5 | AN106: 1 | AQ106: 0.03 | AS106: 1 | AT106: 0.56 | AU106: -0.5 | AZ106: 0.03
B107: =IF(AND(ISNUMBER(B106),isvisible(B106)), B106+1,"") ->  | C107: =IF(AND(ISNUMBER(C106),isvisible(C106)), C106+1,"") ->  | Q107: 0 | R107: 0 | S107: 0 | T107: 0.56 | U107: 0 | V107: 2 | W107: 0 | X107: 0 | Z107: 0 | AA107: 3 | AB107: 3 | AG107: 0.03 | AL107: -0.5 | AN107: 1 | AQ107: 0.03 | AS107: 1 | AT107: 0.56 | AU107: -0.5 | AZ107: 0.03
B108: =IF(AND(ISNUMBER(B107),isvisible(B107)), B107+1,"") ->  | C108: =IF(AND(ISNUMBER(C107),isvisible(C107)), C107+1,"") ->  | Q108: 0 | R108: 0 | S108: 0 | T108: 0.56 | U108: 0 | V108: 2 | W108: 0 | X108: 0 | Z108: 0 | AA108: 3 | AB108: 3 | AG108: 0.03 | AL108: -0.5 | AN108: 1 | AQ108: 0.03 | AS108: 1 | AT108: 0.56 | AU108: -0.5 | AZ108: 0.03
B109: =IF(AND(ISNUMBER(B108),isvisible(B108)), B108+1,"") ->  | C109: =IF(AND(ISNUMBER(C108),isvisible(C108)), C108+1,"") ->  | Q109: 0 | R109: 0 | S109: 0 | T109: 0.56 | U109: 0 | V109: 2 | W109: 0 | X109: 0 | Z109: 0 | AA109: 3 | AB109: 3 | AG109: 0.03 | AL109: -0.5 | AN109: 1 | AQ109: 0.03 | AS109: 1 | AT109: 0.56 | AU109: -0.5 | AZ109: 0.03
B110: =IF(AND(ISNUMBER(B109),isvisible(B109)), B109+1,"") ->  | C110: =IF(AND(ISNUMBER(C109),isvisible(C109)), C109+1,"") ->  | Q110: 0 | R110: 0 | S110: 0 | T110: 0.56 | U110: 0 | V110: 2 | W110: 0 | X110: 0 | Z110: 0 | AA110: 3 | AB110: 3 | AG110: 0.03 | AL110: -0.5 | AN110: 1 | AQ110: 0.03 | AS110: 1 | AT110: 0.56 | AU110: -0.5 | AZ110: 0.03
B111: =IF(AND(ISNUMBER(B110),isvisible(B110)), B110+1,"") ->  | C111: =IF(AND(ISNUMBER(C110),isvisible(C110)), C110+1,"") ->  | Q111: 0 | R111: 0 | S111: 0 | T111: 0.56 | U111: 0 | V111: 2 | W111: 0 | X111: 0 | Z111: 0 | AA111: 3 | AB111: 3 | AG111: 0.03 | AL111: -0.5 | AN111: 1 | AQ111: 0.03 | AS111: 1 | AT111: 0.56 | AU111: -0.5 | AZ111: 0.03
B112: =IF(AND(ISNUMBER(B111),isvisible(B111)), B111+1,"") ->  | C112: =IF(AND(ISNUMBER(C111),isvisible(C111)), C111+1,"") ->  | Q112: 0 | R112: 0 | S112: 0 | T112: 0.56 | U112: 0 | V112: 2 | W112: 0 | X112: 0 | Z112: 0 | AA112: 3 | AB112: 3 | AG112: 0.03 | AL112: -0.5 | AN112: 1 | AQ112: 0.03 | AS112: 1 | AT112: 0.56 | AU112: -0.5 | AZ112: 0.03
B113: =IF(AND(ISNUMBER(B112),isvisible(B112)), B112+1,"") ->  | C113: =IF(AND(ISNUMBER(C112),isvisible(C112)), C112+1,"") ->  | Q113: 0 | R113: 0 | S113: 0 | T113: 0.56 | U113: 0 | V113: 2 | W113: 0 | X113: 0 | Z113: 0 | AA113: 3 | AB113: 3 | AG113: 0.03 | AL113: -0.5 | AN113: 1 | AQ113: 0.03 | AS113: 1 | AT113: 0.56 | AU113: -0.5 | AZ113: 0.03
B114: =IF(AND(ISNUMBER(B113),isvisible(B113)), B113+1,"") ->  | C114: =IF(AND(ISNUMBER(C113),isvisible(C113)), C113+1,"") ->  | Q114: 0 | R114: 0 | S114: 0 | T114: 0.56 | U114: 0 | V114: 2 | W114: 0 | X114: 0 | Z114: 0 | AA114: 3 | AB114: 3 | AG114: 0.03 | AL114: -0.5 | AN114: 1 | AQ114: 0.03 | AS114: 1 | AT114: 0.56 | AU114: -0.5 | AZ114: 0.03
B115: =IF(AND(ISNUMBER(B114),isvisible(B114)), B114+1,"") ->  | C115: =IF(AND(ISNUMBER(C114),isvisible(C114)), C114+1,"") ->  | Q115: 0 | R115: 0 | S115: 0 | T115: 0.56 | U115: 0 | V115: 2 | W115: 0 | X115: 0 | Z115: 0 | AA115: 3 | AB115: 3 | AG115: 0.03 | AL115: -0.5 | AN115: 1 | AQ115: 0.03 | AS115: 1 | AT115: 0.56 | AU115: -0.5 | AZ115: 0.03
B116: =IF(AND(ISNUMBER(B115),isvisible(B115)), B115+1,"") ->  | C116: =IF(AND(ISNUMBER(C115),isvisible(C115)), C115+1,"") ->  | Q116: 0 | R116: 0 | S116: 0 | T116: 0.56 | U116: 0 | V116: 2 | W116: 0 | X116: 0 | Z116: 0 | AA116: 3 | AB116: 3 | AG116: 0.03 | AL116: -0.5 | AN116: 1 | AQ116: 0.03 | AS116: 1 | AT116: 0.56 | AU116: -0.5 | AZ116: 0.03
B117: =IF(AND(ISNUMBER(B116),isvisible(B116)), B116+1,"") ->  | C117: =IF(AND(ISNUMBER(C116),isvisible(C116)), C116+1,"") ->  | Q117: 0 | R117: 0 | S117: 0 | T117: 0.56 | U117: 0 | V117: 2 | W117: 0 | X117: 0 | Z117: 0 | AA117: 3 | AB117: 3 | AG117: 0.03 | AL117: -0.5 | AN117: 1 | AQ117: 0.03 | AS117: 1 | AT117: 0.56 | AU117: -0.5 | AZ117: 0.03
B118: =IF(AND(ISNUMBER(B117),isvisible(B117)), B117+1,"") ->  | C118: =IF(AND(ISNUMBER(C117),isvisible(C117)), C117+1,"") ->  | Q118: 0 | R118: 0 | S118: 0 | T118: 0.56 | U118: 0 | V118: 2 | W118: 0 | X118: 0 | Z118: 0 | AA118: 3 | AB118: 3 | AG118: 0.03 | AL118: -0.5 | AN118: 1 | AQ118: 0.03 | AS118: 1 | AT118: 0.56 | AU118: -0.5 | AZ118: 0.03
B119: =IF(AND(ISNUMBER(B118),isvisible(B118)), B118+1,"") ->  | C119: =IF(AND(ISNUMBER(C118),isvisible(C118)), C118+1,"") ->  | Q119: 0 | R119: 0 | S119: 0 | T119: 0.56 | U119: 0 | V119: 2 | W119: 0 | X119: 0 | Z119: 0 | AA119: 3 | AB119: 3 | AG119: 0.03 | AL119: -0.5 | AN119: 1 | AQ119: 0.03 | AS119: 1 | AT119: 0.56 | AU119: -0.5 | AZ119: 0.03
B120: =IF(AND(ISNUMBER(B119),isvisible(B119)), B119+1,"") ->  | C120: =IF(AND(ISNUMBER(C119),isvisible(C119)), C119+1,"") ->  | Q120: 0 | R120: 0 | S120: 0 | T120: 0.56 | U120: 0 | V120: 2 | W120: 0 | X120: 0 | Z120: 0 | AA120: 3 | AB120: 3 | AG120: 0.03 | AL120: -0.5 | AN120: 1 | AQ120: 0.03 | AS120: 1 | AT120: 0.56 | AU120: -0.5 | AZ120: 0.03
B121: =IF(AND(ISNUMBER(B120),isvisible(B120)), B120+1,"") ->  | C121: =IF(AND(ISNUMBER(C120),isvisible(C120)), C120+1,"") ->  | Q121: 0 | R121: 0 | S121: 0 | T121: 0.56 | U121: 0 | V121: 2 | W121: 0 | X121: 0 | Z121: 0 | AA121: 3 | AB121: 3 | AG121: 0.03 | AL121: -0.5 | AN121: 1 | AQ121: 0.03 | AS121: 1 | AT121: 0.56 | AU121: -0.5 | AZ121: 0.03
B122: =IF(AND(ISNUMBER(B121),isvisible(B121)), B121+1,"") ->  | C122: =IF(AND(ISNUMBER(C121),isvisible(C121)), C121+1,"") ->  | Q122: 0 | R122: 0 | S122: 0 | T122: 0.56 | U122: 0 | V122: 2 | W122: 0 | X122: 0 | Z122: 0 | AA122: 3 | AB122: 3 | AG122: 0.03 | AL122: -0.5 | AN122: 1 | AQ122: 0.03 | AS122: 1 | AT122: 0.56 | AU122: -0.5 | AZ122: 0.03
B123: =IF(AND(ISNUMBER(B122),isvisible(B122)), B122+1,"") ->  | C123: =IF(AND(ISNUMBER(C122),isvisible(C122)), C122+1,"") ->  | Q123: 0 | R123: 0 | S123: 0 | T123: 0.56 | U123: 0 | V123: 2 | W123: 0 | X123: 0 | Z123: 0 | AA123: 3 | AB123: 3 | AG123: 0.03 | AL123: -0.5 | AN123: 1 | AQ123: 0.03 | AS123: 1 | AT123: 0.56 | AU123: -0.5 | AZ123: 0.03
B124: =IF(AND(ISNUMBER(B123),isvisible(B123)), B123+1,"") ->  | C124: =IF(AND(ISNUMBER(C123),isvisible(C123)), C123+1,"") ->  | Q124: 0 | R124: 0 | S124: 0 | T124: 0.56 | U124: 0 | V124: 2 | W124: 0 | X124: 0 | Z124: 0 | AA124: 3 | AB124: 3 | AG124: 0.03 | AL124: -0.5 | AN124: 1 | AQ124: 0.03 | AS124: 1 | AT124: 0.56 | AU124: -0.5 | AZ124: 0.03
B125: =IF(AND(ISNUMBER(B124),isvisible(B124)), B124+1,"") ->  | C125: =IF(AND(ISNUMBER(C124),isvisible(C124)), C124+1,"") ->  | Q125: 0 | R125: 0 | S125: 0 | T125: 0.56 | U125: 0 | V125: 2 | W125: 0 | X125: 0 | Z125: 0 | AA125: 3 | AB125: 3 | AG125: 0.03 | AL125: -0.5 | AN125: 1 | AQ125: 0.03 | AS125: 1 | AT125: 0.56 | AU125: -0.5 | AZ125: 0.03
B126: =IF(AND(ISNUMBER(B125),isvisible(B125)), B125+1,"") ->  | C126: =IF(AND(ISNUMBER(C125),isvisible(C125)), C125+1,"") ->  | Q126: 0 | R126: 0 | S126: 0 | T126: 0.56 | U126: 0 | V126: 2 | W126: 0 | X126: 0 | Z126: 0 | AA126: 3 | AB126: 3 | AG126: 0.03 | AL126: -0.5 | AN126: 1 | AQ126: 0.03 | AS126: 1 | AT126: 0.56 | AU126: -0.5 | AZ126: 0.03
B127: =IF(AND(ISNUMBER(B126),isvisible(B126)), B126+1,"") ->  | C127: =IF(AND(ISNUMBER(C126),isvisible(C126)), C126+1,"") ->  | Q127: 0 | R127: 0 | S127: 0 | T127: 0.56 | U127: 0 | V127: 2 | W127: 0 | X127: 0 | Z127: 0 | AA127: 3 | AB127: 3 | AG127: 0.03 | AL127: -0.5 | AN127: 1 | AQ127: 0.03 | AS127: 1 | AT127: 0.56 | AU127: -0.5 | AZ127: 0.03
B128: =IF(AND(ISNUMBER(B127),isvisible(B127)), B127+1,"") ->  | C128: =IF(AND(ISNUMBER(C127),isvisible(C127)), C127+1,"") ->  | Q128: 0 | R128: 0 | S128: 0 | T128: 0.56 | U128: 0 | V128: 2 | W128: 0 | X128: 0 | Z128: 0 | AA128: 3 | AB128: 3 | AG128: 0.03 | AL128: -0.5 | AN128: 1 | AQ128: 0.03 | AS128: 1 | AT128: 0.56 | AU128: -0.5 | AZ128: 0.03
B129: =IF(AND(ISNUMBER(B128),isvisible(B128)), B128+1,"") ->  | C129: =IF(AND(ISNUMBER(C128),isvisible(C128)), C128+1,"") ->  | Q129: 0 | R129: 0 | S129: 0 | T129: 0.56 | U129: 0 | V129: 2 | W129: 0 | X129: 0 | Z129: 0 | AA129: 3 | AB129: 3 | AG129: 0.03 | AL129: -0.5 | AN129: 1 | AQ129: 0.03 | AS129: 1 | AT129: 0.56 | AU129: -0.5 | AZ129: 0.03
B130: =IF(AND(ISNUMBER(B129),isvisible(B129)), B129+1,"") ->  | C130: =IF(AND(ISNUMBER(C129),isvisible(C129)), C129+1,"") ->  | Q130: 0 | R130: 0 | S130: 0 | T130: 0.56 | U130: 0 | V130: 2 | W130: 0 | X130: 0 | Z130: 0 | AA130: 3 | AB130: 3 | AG130: 0.03 | AL130: -0.5 | AN130: 1 | AQ130: 0.03 | AS130: 1 | AT130: 0.56 | AU130: -0.5 | AZ130: 0.03
B131: =IF(AND(ISNUMBER(B130),isvisible(B130)), B130+1,"") ->  | C131: =IF(AND(ISNUMBER(C130),isvisible(C130)), C130+1,"") ->  | Q131: 0 | R131: 0 | S131: 0 | T131: 0.56 | U131: 0 | V131: 2 | W131: 0 | X131: 0 | Z131: 0 | AA131: 3 | AB131: 3 | AG131: 0.03 | AL131: -0.5 | AN131: 1 | AQ131: 0.03 | AS131: 1 | AT131: 0.56 | AU131: -0.5 | AZ131: 0.03
B132: =IF(AND(ISNUMBER(B131),isvisible(B131)), B131+1,"") ->  | C132: =IF(AND(ISNUMBER(C131),isvisible(C131)), C131+1,"") ->  | Q132: 0 | R132: 0 | S132: 0 | T132: 0.56 | U132: 0 | V132: 2 | W132: 0 | X132: 0 | Z132: 0 | AA132: 3 | AB132: 3 | AG132: 0.03 | AL132: -0.5 | AN132: 1 | AQ132: 0.03 | AS132: 1 | AT132: 0.56 | AU132: -0.5 | AZ132: 0.03
B133: =IF(AND(ISNUMBER(B132),isvisible(B132)), B132+1,"") ->  | C133: =IF(AND(ISNUMBER(C132),isvisible(C132)), C132+1,"") ->  | Q133: 0 | R133: 0 | S133: 0 | T133: 0.56 | U133: 0 | V133: 2 | W133: 0 | X133: 0 | Z133: 0 | AA133: 3 | AB133: 3 | AG133: 0.03 | AL133: -0.5 | AN133: 1 | AQ133: 0.03 | AS133: 1 | AT133: 0.56 | AU133: -0.5 | AZ133: 0.03
B134: =IF(AND(ISNUMBER(B133),isvisible(B133)), B133+1,"") ->  | C134: =IF(AND(ISNUMBER(C133),isvisible(C133)), C133+1,"") ->  | Q134: 0 | R134: 0 | S134: 0 | T134: 0.56 | U134: 0 | V134: 2 | W134: 0 | X134: 0 | Z134: 0 | AA134: 3 | AB134: 3 | AG134: 0.03 | AL134: -0.5 | AN134: 1 | AQ134: 0.03 | AS134: 1 | AT134: 0.56 | AU134: -0.5 | AZ134: 0.03
B135: =IF(AND(ISNUMBER(B134),isvisible(B134)), B134+1,"") ->  | C135: =IF(AND(ISNUMBER(C134),isvisible(C134)), C134+1,"") ->  | Q135: 0 | R135: 0 | S135: 0 | T135: 0.56 | U135: 0 | V135: 2 | W135: 0 | X135: 0 | Z135: 0 | AA135: 3 | AB135: 3 | AG135: 0.03 | AL135: -0.5 | AN135: 1 | AQ135: 0.03 | AS135: 1 | AT135: 0.56 | AU135: -0.5 | AZ135: 0.03
B136: =IF(AND(ISNUMBER(B135),isvisible(B135)), B135+1,"") ->  | C136: =IF(AND(ISNUMBER(C135),isvisible(C135)), C135+1,"") ->  | Q136: 0 | R136: 0 | S136: 0 | T136: 0.56 | U136: 0 | V136: 2 | W136: 0 | X136: 0 | Z136: 0 | AA136: 3 | AB136: 3 | AG136: 0.03 | AL136: -0.5 | AN136: 1 | AQ136: 0.03 | AS136: 1 | AT136: 0.56 | AU136: -0.5 | AZ136: 0.03
B137: =IF(AND(ISNUMBER(B136),isvisible(B136)), B136+1,"") ->  | C137: =IF(AND(ISNUMBER(C136),isvisible(C136)), C136+1,"") ->  | Q137: 0 | R137: 0 | S137: 0 | T137: 0.56 | U137: 0 | V137: 2 | W137: 0 | X137: 0 | Z137: 0 | AA137: 3 | AB137: 3 | AG137: 0.03 | AL137: -0.5 | AN137: 1 | AQ137: 0.03 | AS137: 1 | AT137: 0.56 | AU137: -0.5 | AZ137: 0.03
B138: =IF(AND(ISNUMBER(B137),isvisible(B137)), B137+1,"") ->  | C138: =IF(AND(ISNUMBER(C137),isvisible(C137)), C137+1,"") ->  | Q138: 0 | R138: 0 | S138: 0 | T138: 0.56 | U138: 0 | V138: 2 | W138: 0 | X138: 0 | Z138: 0 | AA138: 3 | AB138: 3 | AG138: 0.03 | AL138: -0.5 | AN138: 1 | AQ138: 0.03 | AS138: 1 | AT138: 0.56 | AU138: -0.5 | AZ138: 0.03
B139: =IF(AND(ISNUMBER(B138),isvisible(B138)), B138+1,"") ->  | C139: =IF(AND(ISNUMBER(C138),isvisible(C138)), C138+1,"") ->  | Q139: 0 | R139: 0 | S139: 0 | T139: 0.56 | U139: 0 | V139: 2 | W139: 0 | X139: 0 | Z139: 0 | AA139: 3 | AB139: 3 | AG139: 0.03 | AL139: -0.5 | AN139: 1 | AQ139: 0.03 | AS139: 1 | AT139: 0.56 | AU139: -0.5 | AZ139: 0.03
B140: =IF(AND(ISNUMBER(B139),isvisible(B139)), B139+1,"") ->  | C140: =IF(AND(ISNUMBER(C139),isvisible(C139)), C139+1,"") ->  | H140: =IF(H139 = "","",H139) ->  | M140: =IFERROR(H140*I140*J140,"") ->  | Q140: =DEGREES(ATAN(E140/100)) -> 0 | R140: =(ATAN(E140/100)) -> 0 | S140: =(SIN(R140))/0.0896 -> 0 | T140: =(((SIN(R140))^0.8)*3)+ 0.56 -> 0.56 | U140: =+S140/T140 -> 0 | V140: 2 | W140: =+V140*U140 -> 0 | X140: =+W140/(W140+1) -> 0 | Z140: =F140*3.2808399 -> 0 | AA140: =IF(Z140>=3,Z140,3) -> 3 | AB140: =IF(AND(AA140>=15, E140<9),1,IF(AND(AA140>=15, E140>=9),2,IF(AND(AA140<15, E140<9),3,IF(AND(AA140<15, E140>=9),4,0)))) -> 3 | AD140: =(Z140/72.6)^X140 ->  | AG140: =((SIN(R140))*10.8) + 0.03 -> 0.03 | AI140: =(Z140/72.6)^X140 ->  | AL140: =((SIN(R140))*16.8) - 0.5 -> -0.5 | AN140: =(15/72.6)^X140 -> 1 | AQ140: =((SIN(R140))*10.8) + 0.03 -> 0.03 | AS140: =(15/72.6)^X140 -> 1 | AT140: =(((SIN(R140))^0.8)*3)+ 0.56 -> 0.56 | AU140: =((SIN(R140))*16.8) - 0.5 -> -0.5 | AX140: =AD140*AG140 ->  | AY140: =AI140*AL140 ->  | AZ140: =AN140*AQ140 -> 0.03 | BA140: =10^(LOG10(AS140*AT140)+(LOG10(AA140)-LOG10(3))*(LOG10(AS140*AU140)-LOG10(AS140*AT140))/0.699) -> 
B141: =IF(AND(ISNUMBER(B140),isvisible(B140)), B140+1,"") ->  | C141: =IF(AND(ISNUMBER(C140),isvisible(C140)), C140+1,"") ->  | J141: =IF(NOT(AND(ISNUMBER(E141),ISNUMBER(F141))),"",INDEX(AX141:BA141,1,MATCH(AB141,$AX$9:$BA$9))) ->  | Q141: 0 | R141: 0 | S141: 0 | T141: 0.56 | U141: 0 | V141: 2 | W141: 0 | X141: 0 | Z141: 0 | AA141: 3 | AB141: 3 | AG141: 0.03 | AL141: -0.5 | AN141: 1 | AQ141: 0.03 | AS141: 1 | AT141: 0.56 | AU141: -0.5 | AZ141: 0.03
B142: =IF(AND(ISNUMBER(B141),isvisible(B141)), B141+1,"") ->  | C142: =IF(AND(ISNUMBER(C141),isvisible(C141)), C141+1,"") ->  | N142: =IFERROR(H142*I142*J142*K142*L142,"") ->  | O142: =IFERROR(N142*D142,"") ->  | P142: =IFERROR(H142*I142*J142*D142,"") ->  | Q142: 0 | R142: 0 | S142: 0 | T142: 0.56 | U142: 0 | V142: 2 | W142: 0 | X142: 0 | Z142: 0 | AA142: 3 | AB142: 3 | AG142: 0.03 | AL142: -0.5 | AN142: 1 | AQ142: 0.03 | AS142: 1 | AT142: 0.56 | AU142: -0.5 | AZ142: 0.03
B143: =IF(AND(ISNUMBER(B142),isvisible(B142)), B142+1,"") ->  | C143: =IF(AND(ISNUMBER(C142),isvisible(C142)), C142+1,"") ->  | Q143: 0 | R143: 0 | S143: 0 | T143: 0.56 | U143: 0 | V143: 2 | W143: 0 | X143: 0 | Z143: 0 | AA143: 3 | AB143: 3 | AG143: 0.03 | AL143: -0.5 | AN143: 1 | AQ143: 0.03 | AS143: 1 | AT143: 0.56 | AU143: -0.5 | AZ143: 0.03
B144: =IF(AND(ISNUMBER(B143),isvisible(B143)), B143+1,"") ->  | C144: =IF(AND(ISNUMBER(C143),isvisible(C143)), C143+1,"") ->  | Q144: 0 | R144: 0 | S144: 0 | T144: 0.56 | U144: 0 | V144: 2 | W144: 0 | X144: 0 | Z144: 0 | AA144: 3 | AB144: 3 | AG144: 0.03 | AL144: -0.5 | AN144: 1 | AQ144: 0.03 | AS144: 1 | AT144: 0.56 | AU144: -0.5 | AZ144: 0.03
B145: =IF(AND(ISNUMBER(B144),isvisible(B144)), B144+1,"") ->  | C145: =IF(AND(ISNUMBER(C144),isvisible(C144)), C144+1,"") ->  | Q145: 0 | R145: 0 | S145: 0 | T145: 0.56 | U145: 0 | V145: 2 | W145: 0 | X145: 0 | Z145: 0 | AA145: 3 | AB145: 3 | AG145: 0.03 | AL145: -0.5 | AN145: 1 | AQ145: 0.03 | AS145: 1 | AT145: 0.56 | AU145: -0.5 | AZ145: 0.03
B146: =IF(AND(ISNUMBER(B145),isvisible(B145)), B145+1,"") ->  | C146: =IF(AND(ISNUMBER(C145),isvisible(C145)), C145+1,"") ->  | Q146: 0 | R146: 0 | S146: 0 | T146: 0.56 | U146: 0 | V146: 2 | W146: 0 | X146: 0 | Z146: 0 | AA146: 3 | AB146: 3 | AG146: 0.03 | AL146: -0.5 | AN146: 1 | AQ146: 0.03 | AS146: 1 | AT146: 0.56 | AU146: -0.5 | AZ146: 0.03
B147: =IF(AND(ISNUMBER(B146),isvisible(B146)), B146+1,"") ->  | C147: =IF(AND(ISNUMBER(C146),isvisible(C146)), C146+1,"") ->  | Q147: 0 | R147: 0 | S147: 0 | T147: 0.56 | U147: 0 | V147: 2 | W147: 0 | X147: 0 | Z147: 0 | AA147: 3 | AB147: 3 | AG147: 0.03 | AL147: -0.5 | AN147: 1 | AQ147: 0.03 | AS147: 1 | AT147: 0.56 | AU147: -0.5 | AZ147: 0.03
B148: =IF(AND(ISNUMBER(B147),isvisible(B147)), B147+1,"") ->  | C148: =IF(AND(ISNUMBER(C147),isvisible(C147)), C147+1,"") ->  | Q148: 0 | R148: 0 | S148: 0 | T148: 0.56 | U148: 0 | V148: 2 | W148: 0 | X148: 0 | Z148: 0 | AA148: 3 | AB148: 3 | AG148: 0.03 | AL148: -0.5 | AN148: 1 | AQ148: 0.03 | AS148: 1 | AT148: 0.56 | AU148: -0.5 | AZ148: 0.03
B149: =IF(AND(ISNUMBER(B148),isvisible(B148)), B148+1,"") ->  | C149: =IF(AND(ISNUMBER(C148),isvisible(C148)), C148+1,"") ->  | Q149: 0 | R149: 0 | S149: 0 | T149: 0.56 | U149: 0 | V149: 2 | W149: 0 | X149: 0 | Z149: 0 | AA149: 3 | AB149: 3 | AG149: 0.03 | AL149: -0.5 | AN149: 1 | AQ149: 0.03 | AS149: 1 | AT149: 0.56 | AU149: -0.5 | AZ149: 0.03
B150: =IF(AND(ISNUMBER(B149),isvisible(B149)), B149+1,"") ->  | C150: =IF(AND(ISNUMBER(C149),isvisible(C149)), C149+1,"") ->  | Q150: 0 | R150: 0 | S150: 0 | T150: 0.56 | U150: 0 | V150: 2 | W150: 0 | X150: 0 | Z150: 0 | AA150: 3 | AB150: 3 | AG150: 0.03 | AL150: -0.5 | AN150: 1 | AQ150: 0.03 | AS150: 1 | AT150: 0.56 | AU150: -0.5 | AZ150: 0.03
B151: =IF(AND(ISNUMBER(B150),isvisible(B150)), B150+1,"") ->  | C151: =IF(AND(ISNUMBER(C150),isvisible(C150)), C150+1,"") ->  | Q151: 0 | R151: 0 | S151: 0 | T151: 0.56 | U151: 0 | V151: 2 | W151: 0 | X151: 0 | Z151: 0 | AA151: 3 | AB151: 3 | AG151: 0.03 | AL151: -0.5 | AN151: 1 | AQ151: 0.03 | AS151: 1 | AT151: 0.56 | AU151: -0.5 | AZ151: 0.03
B152: =IF(AND(ISNUMBER(B151),isvisible(B151)), B151+1,"") ->  | C152: =IF(AND(ISNUMBER(C151),isvisible(C151)), C151+1,"") ->  | Q152: 0 | R152: 0 | S152: 0 | T152: 0.56 | U152: 0 | V152: 2 | W152: 0 | X152: 0 | Z152: 0 | AA152: 3 | AB152: 3 | AG152: 0.03 | AL152: -0.5 | AN152: 1 | AQ152: 0.03 | AS152: 1 | AT152: 0.56 | AU152: -0.5 | AZ152: 0.03
B153: =IF(AND(ISNUMBER(B152),isvisible(B152)), B152+1,"") ->  | C153: =IF(AND(ISNUMBER(C152),isvisible(C152)), C152+1,"") ->  | Q153: 0 | R153: 0 | S153: 0 | T153: 0.56 | U153: 0 | V153: 2 | W153: 0 | X153: 0 | Z153: 0 | AA153: 3 | AB153: 3 | AG153: 0.03 | AL153: -0.5 | AN153: 1 | AQ153: 0.03 | AS153: 1 | AT153: 0.56 | AU153: -0.5 | AZ153: 0.03
B154: =IF(AND(ISNUMBER(B153),isvisible(B153)), B153+1,"") ->  | C154: =IF(AND(ISNUMBER(C153),isvisible(C153)), C153+1,"") ->  | Q154: 0 | R154: 0 | S154: 0 | T154: 0.56 | U154: 0 | V154: 2 | W154: 0 | X154: 0 | Z154: 0 | AA154: 3 | AB154: 3 | AG154: 0.03 | AL154: -0.5 | AN154: 1 | AQ154: 0.03 | AS154: 1 | AT154: 0.56 | AU154: -0.5 | AZ154: 0.03
B155: =IF(AND(ISNUMBER(B154),isvisible(B154)), B154+1,"") ->  | C155: =IF(AND(ISNUMBER(C154),isvisible(C154)), C154+1,"") ->  | Q155: 0 | R155: 0 | S155: 0 | T155: 0.56 | U155: 0 | V155: 2 | W155: 0 | X155: 0 | Z155: 0 | AA155: 3 | AB155: 3 | AG155: 0.03 | AL155: -0.5 | AN155: 1 | AQ155: 0.03 | AS155: 1 | AT155: 0.56 | AU155: -0.5 | AZ155: 0.03
B156: =IF(AND(ISNUMBER(B155),isvisible(B155)), B155+1,"") ->  | C156: =IF(AND(ISNUMBER(C155),isvisible(C155)), C155+1,"") ->  | Q156: 0 | R156: 0 | S156: 0 | T156: 0.56 | U156: 0 | V156: 2 | W156: 0 | X156: 0 | Z156: 0 | AA156: 3 | AB156: 3 | AG156: 0.03 | AL156: -0.5 | AN156: 1 | AQ156: 0.03 | AS156: 1 | AT156: 0.56 | AU156: -0.5 | AZ156: 0.03
B157: =IF(AND(ISNUMBER(B156),isvisible(B156)), B156+1,"") ->  | C157: =IF(AND(ISNUMBER(C156),isvisible(C156)), C156+1,"") ->  | Q157: 0 | R157: 0 | S157: 0 | T157: 0.56 | U157: 0 | V157: 2 | W157: 0 | X157: 0 | Z157: 0 | AA157: 3 | AB157: 3 | AG157: 0.03 | AL157: -0.5 | AN157: 1 | AQ157: 0.03 | AS157: 1 | AT157: 0.56 | AU157: -0.5 | AZ157: 0.03
B158: =IF(AND(ISNUMBER(B157),isvisible(B157)), B157+1,"") ->  | C158: =IF(AND(ISNUMBER(C157),isvisible(C157)), C157+1,"") ->  | Q158: 0 | R158: 0 | S158: 0 | T158: 0.56 | U158: 0 | V158: 2 | W158: 0 | X158: 0 | Z158: 0 | AA158: 3 | AB158: 3 | AG158: 0.03 | AL158: -0.5 | AN158: 1 | AQ158: 0.03 | AS158: 1 | AT158: 0.56 | AU158: -0.5 | AZ158: 0.03
B159: =IF(AND(ISNUMBER(B158),isvisible(B158)), B158+1,"") ->  | C159: =IF(AND(ISNUMBER(C158),isvisible(C158)), C158+1,"") ->  | Q159: 0 | R159: 0 | S159: 0 | T159: 0.56 | U159: 0 | V159: 2 | W159: 0 | X159: 0 | Z159: 0 | AA159: 3 | AB159: 3 | AG159: 0.03 | AL159: -0.5 | AN159: 1 | AQ159: 0.03 | AS159: 1 | AT159: 0.56 | AU159: -0.5 | AZ159: 0.03
B160: =IF(AND(ISNUMBER(B159),isvisible(B159)), B159+1,"") ->  | C160: =IF(AND(ISNUMBER(C159),isvisible(C159)), C159+1,"") ->  | Q160: 0 | R160: 0 | S160: 0 | T160: 0.56 | U160: 0 | V160: 2 | W160: 0 | X160: 0 | Z160: 0 | AA160: 3 | AB160: 3 | AG160: 0.03 | AL160: -0.5 | AN160: 1 | AQ160: 0.03 | AS160: 1 | AT160: 0.56 | AU160: -0.5 | AZ160: 0.03
B161: =IF(AND(ISNUMBER(B160),isvisible(B160)), B160+1,"") ->  | C161: =IF(AND(ISNUMBER(C160),isvisible(C160)), C160+1,"") ->  | Q161: 0 | R161: 0 | S161: 0 | T161: 0.56 | U161: 0 | V161: 2 | W161: 0 | X161: 0 | Z161: 0 | AA161: 3 | AB161: 3 | AG161: 0.03 | AL161: -0.5 | AN161: 1 | AQ161: 0.03 | AS161: 1 | AT161: 0.56 | AU161: -0.5 | AZ161: 0.03
B162: =IF(AND(ISNUMBER(B161),isvisible(B161)), B161+1,"") ->  | C162: =IF(AND(ISNUMBER(C161),isvisible(C161)), C161+1,"") ->  | Q162: 0 | R162: 0 | S162: 0 | T162: 0.56 | U162: 0 | V162: 2 | W162: 0 | X162: 0 | Z162: 0 | AA162: 3 | AB162: 3 | AG162: 0.03 | AL162: -0.5 | AN162: 1 | AQ162: 0.03 | AS162: 1 | AT162: 0.56 | AU162: -0.5 | AZ162: 0.03
B163: =IF(AND(ISNUMBER(B162),isvisible(B162)), B162+1,"") ->  | C163: =IF(AND(ISNUMBER(C162),isvisible(C162)), C162+1,"") ->  | Q163: 0 | R163: 0 | S163: 0 | T163: 0.56 | U163: 0 | V163: 2 | W163: 0 | X163: 0 | Z163: 0 | AA163: 3 | AB163: 3 | AG163: 0.03 | AL163: -0.5 | AN163: 1 | AQ163: 0.03 | AS163: 1 | AT163: 0.56 | AU163: -0.5 | AZ163: 0.03
B164: =IF(AND(ISNUMBER(B163),isvisible(B163)), B163+1,"") ->  | C164: =IF(AND(ISNUMBER(C163),isvisible(C163)), C163+1,"") ->  | Q164: 0 | R164: 0 | S164: 0 | T164: 0.56 | U164: 0 | V164: 2 | W164: 0 | X164: 0 | Z164: 0 | AA164: 3 | AB164: 3 | AG164: 0.03 | AL164: -0.5 | AN164: 1 | AQ164: 0.03 | AS164: 1 | AT164: 0.56 | AU164: -0.5 | AZ164: 0.03
B165: =IF(AND(ISNUMBER(B164),isvisible(B164)), B164+1,"") ->  | C165: =IF(AND(ISNUMBER(C164),isvisible(C164)), C164+1,"") ->  | Q165: 0 | R165: 0 | S165: 0 | T165: 0.56 | U165: 0 | V165: 2 | W165: 0 | X165: 0 | Z165: 0 | AA165: 3 | AB165: 3 | AG165: 0.03 | AL165: -0.5 | AN165: 1 | AQ165: 0.03 | AS165: 1 | AT165: 0.56 | AU165: -0.5 | AZ165: 0.03
B166: =IF(AND(ISNUMBER(B165),isvisible(B165)), B165+1,"") ->  | C166: =IF(AND(ISNUMBER(C165),isvisible(C165)), C165+1,"") ->  | Q166: 0 | R166: 0 | S166: 0 | T166: 0.56 | U166: 0 | V166: 2 | W166: 0 | X166: 0 | Z166: 0 | AA166: 3 | AB166: 3 | AG166: 0.03 | AL166: -0.5 | AN166: 1 | AQ166: 0.03 | AS166: 1 | AT166: 0.56 | AU166: -0.5 | AZ166: 0.03
B167: =IF(AND(ISNUMBER(B166),isvisible(B166)), B166+1,"") ->  | C167: =IF(AND(ISNUMBER(C166),isvisible(C166)), C166+1,"") ->  | Q167: 0 | R167: 0 | S167: 0 | T167: 0.56 | U167: 0 | V167: 2 | W167: 0 | X167: 0 | Z167: 0 | AA167: 3 | AB167: 3 | AG167: 0.03 | AL167: -0.5 | AN167: 1 | AQ167: 0.03 | AS167: 1 | AT167: 0.56 | AU167: -0.5 | AZ167: 0.03
B168: =IF(AND(ISNUMBER(B167),isvisible(B167)), B167+1,"") ->  | C168: =IF(AND(ISNUMBER(C167),isvisible(C167)), C167+1,"") ->  | Q168: 0 | R168: 0 | S168: 0 | T168: 0.56 | U168: 0 | V168: 2 | W168: 0 | X168: 0 | Z168: 0 | AA168: 3 | AB168: 3 | AG168: 0.03 | AL168: -0.5 | AN168: 1 | AQ168: 0.03 | AS168: 1 | AT168: 0.56 | AU168: -0.5 | AZ168: 0.03
B169: =IF(AND(ISNUMBER(B168),isvisible(B168)), B168+1,"") ->  | C169: =IF(AND(ISNUMBER(C168),isvisible(C168)), C168+1,"") ->  | Q169: 0 | R169: 0 | S169: 0 | T169: 0.56 | U169: 0 | V169: 2 | W169: 0 | X169: 0 | Z169: 0 | AA169: 3 | AB169: 3 | AG169: 0.03 | AL169: -0.5 | AN169: 1 | AQ169: 0.03 | AS169: 1 | AT169: 0.56 | AU169: -0.5 | AZ169: 0.03
B170: =IF(AND(ISNUMBER(B169),isvisible(B169)), B169+1,"") ->  | C170: =IF(AND(ISNUMBER(C169),isvisible(C169)), C169+1,"") ->  | Q170: 0 | R170: 0 | S170: 0 | T170: 0.56 | U170: 0 | V170: 2 | W170: 0 | X170: 0 | Z170: 0 | AA170: 3 | AB170: 3 | AG170: 0.03 | AL170: -0.5 | AN170: 1 | AQ170: 0.03 | AS170: 1 | AT170: 0.56 | AU170: -0.5 | AZ170: 0.03
B171: =IF(AND(ISNUMBER(B170),isvisible(B170)), B170+1,"") ->  | C171: =IF(AND(ISNUMBER(C170),isvisible(C170)), C170+1,"") ->  | Q171: 0 | R171: 0 | S171: 0 | T171: 0.56 | U171: 0 | V171: 2 | W171: 0 | X171: 0 | Z171: 0 | AA171: 3 | AB171: 3 | AG171: 0.03 | AL171: -0.5 | AN171: 1 | AQ171: 0.03 | AS171: 1 | AT171: 0.56 | AU171: -0.5 | AZ171: 0.03
B172: =IF(AND(ISNUMBER(B171),isvisible(B171)), B171+1,"") ->  | C172: =IF(AND(ISNUMBER(C171),isvisible(C171)), C171+1,"") ->  | Q172: 0 | R172: 0 | S172: 0 | T172: 0.56 | U172: 0 | V172: 2 | W172: 0 | X172: 0 | Z172: 0 | AA172: 3 | AB172: 3 | AG172: 0.03 | AL172: -0.5 | AN172: 1 | AQ172: 0.03 | AS172: 1 | AT172: 0.56 | AU172: -0.5 | AZ172: 0.03
B173: =IF(AND(ISNUMBER(B172),isvisible(B172)), B172+1,"") ->  | C173: =IF(AND(ISNUMBER(C172),isvisible(C172)), C172+1,"") ->  | Q173: 0 | R173: 0 | S173: 0 | T173: 0.56 | U173: 0 | V173: 2 | W173: 0 | X173: 0 | Z173: 0 | AA173: 3 | AB173: 3 | AG173: 0.03 | AL173: -0.5 | AN173: 1 | AQ173: 0.03 | AS173: 1 | AT173: 0.56 | AU173: -0.5 | AZ173: 0.03
B174: =IF(AND(ISNUMBER(B173),isvisible(B173)), B173+1,"") ->  | C174: =IF(AND(ISNUMBER(C173),isvisible(C173)), C173+1,"") ->  | Q174: 0 | R174: 0 | S174: 0 | T174: 0.56 | U174: 0 | V174: 2 | W174: 0 | X174: 0 | Z174: 0 | AA174: 3 | AB174: 3 | AG174: 0.03 | AL174: -0.5 | AN174: 1 | AQ174: 0.03 | AS174: 1 | AT174: 0.56 | AU174: -0.5 | AZ174: 0.03
B175: =IF(AND(ISNUMBER(B174),isvisible(B174)), B174+1,"") ->  | C175: =IF(AND(ISNUMBER(C174),isvisible(C174)), C174+1,"") ->  | Q175: 0 | R175: 0 | S175: 0 | T175: 0.56 | U175: 0 | V175: 2 | W175: 0 | X175: 0 | Z175: 0 | AA175: 3 | AB175: 3 | AG175: 0.03 | AL175: -0.5 | AN175: 1 | AQ175: 0.03 | AS175: 1 | AT175: 0.56 | AU175: -0.5 | AZ175: 0.03
B176: =IF(AND(ISNUMBER(B175),isvisible(B175)), B175+1,"") ->  | C176: =IF(AND(ISNUMBER(C175),isvisible(C175)), C175+1,"") ->  | Q176: 0 | R176: 0 | S176: 0 | T176: 0.56 | U176: 0 | V176: 2 | W176: 0 | X176: 0 | Z176: 0 | AA176: 3 | AB176: 3 | AG176: 0.03 | AL176: -0.5 | AN176: 1 | AQ176: 0.03 | AS176: 1 | AT176: 0.56 | AU176: -0.5 | AZ176: 0.03
B177: =IF(AND(ISNUMBER(B176),isvisible(B176)), B176+1,"") ->  | C177: =IF(AND(ISNUMBER(C176),isvisible(C176)), C176+1,"") ->  | Q177: 0 | R177: 0 | S177: 0 | T177: 0.56 | U177: 0 | V177: 2 | W177: 0 | X177: 0 | Z177: 0 | AA177: 3 | AB177: 3 | AG177: 0.03 | AL177: -0.5 | AN177: 1 | AQ177: 0.03 | AS177: 1 | AT177: 0.56 | AU177: -0.5 | AZ177: 0.03
B178: =IF(AND(ISNUMBER(B177),isvisible(B177)), B177+1,"") ->  | C178: =IF(AND(ISNUMBER(C177),isvisible(C177)), C177+1,"") ->  | Q178: 0 | R178: 0 | S178: 0 | T178: 0.56 | U178: 0 | V178: 2 | W178: 0 | X178: 0 | Z178: 0 | AA178: 3 | AB178: 3 | AG178: 0.03 | AL178: -0.5 | AN178: 1 | AQ178: 0.03 | AS178: 1 | AT178: 0.56 | AU178: -0.5 | AZ178: 0.03
B179: =IF(AND(ISNUMBER(B178),isvisible(B178)), B178+1,"") ->  | C179: =IF(AND(ISNUMBER(C178),isvisible(C178)), C178+1,"") ->  | Q179: 0 | R179: 0 | S179: 0 | T179: 0.56 | U179: 0 | V179: 2 | W179: 0 | X179: 0 | Z179: 0 | AA179: 3 | AB179: 3 | AG179: 0.03 | AL179: -0.5 | AN179: 1 | AQ179: 0.03 | AS179: 1 | AT179: 0.56 | AU179: -0.5 | AZ179: 0.03
B180: =IF(AND(ISNUMBER(B179),isvisible(B179)), B179+1,"") ->  | C180: =IF(AND(ISNUMBER(C179),isvisible(C179)), C179+1,"") ->  | Q180: 0 | R180: 0 | S180: 0 | T180: 0.56 | U180: 0 | V180: 2 | W180: 0 | X180: 0 | Z180: 0 | AA180: 3 | AB180: 3 | AG180: 0.03 | AL180: -0.5 | AN180: 1 | AQ180: 0.03 | AS180: 1 | AT180: 0.56 | AU180: -0.5 | AZ180: 0.03
B181: =IF(AND(ISNUMBER(B180),isvisible(B180)), B180+1,"") ->  | C181: =IF(AND(ISNUMBER(C180),isvisible(C180)), C180+1,"") ->  | Q181: 0 | R181: 0 | S181: 0 | T181: 0.56 | U181: 0 | V181: 2 | W181: 0 | X181: 0 | Z181: 0 | AA181: 3 | AB181: 3 | AG181: 0.03 | AL181: -0.5 | AN181: 1 | AQ181: 0.03 | AS181: 1 | AT181: 0.56 | AU181: -0.5 | AZ181: 0.03
B182: =IF(AND(ISNUMBER(B181),isvisible(B181)), B181+1,"") ->  | C182: =IF(AND(ISNUMBER(C181),isvisible(C181)), C181+1,"") ->  | Q182: 0 | R182: 0 | S182: 0 | T182: 0.56 | U182: 0 | V182: 2 | W182: 0 | X182: 0 | Z182: 0 | AA182: 3 | AB182: 3 | AG182: 0.03 | AL182: -0.5 | AN182: 1 | AQ182: 0.03 | AS182: 1 | AT182: 0.56 | AU182: -0.5 | AZ182: 0.03
B183: =IF(AND(ISNUMBER(B182),isvisible(B182)), B182+1,"") ->  | C183: =IF(AND(ISNUMBER(C182),isvisible(C182)), C182+1,"") ->  | Q183: 0 | R183: 0 | S183: 0 | T183: 0.56 | U183: 0 | V183: 2 | W183: 0 | X183: 0 | Z183: 0 | AA183: 3 | AB183: 3 | AG183: 0.03 | AL183: -0.5 | AN183: 1 | AQ183: 0.03 | AS183: 1 | AT183: 0.56 | AU183: -0.5 | AZ183: 0.03
B184: =IF(AND(ISNUMBER(B183),isvisible(B183)), B183+1,"") ->  | C184: =IF(AND(ISNUMBER(C183),isvisible(C183)), C183+1,"") ->  | Q184: 0 | R184: 0 | S184: 0 | T184: 0.56 | U184: 0 | V184: 2 | W184: 0 | X184: 0 | Z184: 0 | AA184: 3 | AB184: 3 | AG184: 0.03 | AL184: -0.5 | AN184: 1 | AQ184: 0.03 | AS184: 1 | AT184: 0.56 | AU184: -0.5 | AZ184: 0.03
B185: =IF(AND(ISNUMBER(B184),isvisible(B184)), B184+1,"") ->  | C185: =IF(AND(ISNUMBER(C184),isvisible(C184)), C184+1,"") ->  | Q185: 0 | R185: 0 | S185: 0 | T185: 0.56 | U185: 0 | V185: 2 | W185: 0 | X185: 0 | Z185: 0 | AA185: 3 | AB185: 3 | AG185: 0.03 | AL185: -0.5 | AN185: 1 | AQ185: 0.03 | AS185: 1 | AT185: 0.56 | AU185: -0.5 | AZ185: 0.03
B186: =IF(AND(ISNUMBER(B185),isvisible(B185)), B185+1,"") ->  | C186: =IF(AND(ISNUMBER(C185),isvisible(C185)), C185+1,"") ->  | Q186: 0 | R186: 0 | S186: 0 | T186: 0.56 | U186: 0 | V186: 2 | W186: 0 | X186: 0 | Z186: 0 | AA186: 3 | AB186: 3 | AG186: 0.03 | AL186: -0.5 | AN186: 1 | AQ186: 0.03 | AS186: 1 | AT186: 0.56 | AU186: -0.5 | AZ186: 0.03
B187: =IF(AND(ISNUMBER(B186),isvisible(B186)), B186+1,"") ->  | C187: =IF(AND(ISNUMBER(C186),isvisible(C186)), C186+1,"") ->  | Q187: 0 | R187: 0 | S187: 0 | T187: 0.56 | U187: 0 | V187: 2 | W187: 0 | X187: 0 | Z187: 0 | AA187: 3 | AB187: 3 | AG187: 0.03 | AL187: -0.5 | AN187: 1 | AQ187: 0.03 | AS187: 1 | AT187: 0.56 | AU187: -0.5 | AZ187: 0.03
B188: =IF(AND(ISNUMBER(B187),isvisible(B187)), B187+1,"") ->  | C188: =IF(AND(ISNUMBER(C187),isvisible(C187)), C187+1,"") ->  | Q188: 0 | R188: 0 | S188: 0 | T188: 0.56 | U188: 0 | V188: 2 | W188: 0 | X188: 0 | Z188: 0 | AA188: 3 | AB188: 3 | AG188: 0.03 | AL188: -0.5 | AN188: 1 | AQ188: 0.03 | AS188: 1 | AT188: 0.56 | AU188: -0.5 | AZ188: 0.03
B189: =IF(AND(ISNUMBER(B188),isvisible(B188)), B188+1,"") ->  | C189: =IF(AND(ISNUMBER(C188),isvisible(C188)), C188+1,"") ->  | Q189: 0 | R189: 0 | S189: 0 | T189: 0.56 | U189: 0 | V189: 2 | W189: 0 | X189: 0 | Z189: 0 | AA189: 3 | AB189: 3 | AG189: 0.03 | AL189: -0.5 | AN189: 1 | AQ189: 0.03 | AS189: 1 | AT189: 0.56 | AU189: -0.5 | AZ189: 0.03
B190: =IF(AND(ISNUMBER(B189),isvisible(B189)), B189+1,"") ->  | C190: =IF(AND(ISNUMBER(C189),isvisible(C189)), C189+1,"") ->  | Q190: 0 | R190: 0 | S190: 0 | T190: 0.56 | U190: 0 | V190: 2 | W190: 0 | X190: 0 | Z190: 0 | AA190: 3 | AB190: 3 | AG190: 0.03 | AL190: -0.5 | AN190: 1 | AQ190: 0.03 | AS190: 1 | AT190: 0.56 | AU190: -0.5 | AZ190: 0.03
B191: =IF(AND(ISNUMBER(B190),isvisible(B190)), B190+1,"") ->  | C191: =IF(AND(ISNUMBER(C190),isvisible(C190)), C190+1,"") ->  | Q191: 0 | R191: 0 | S191: 0 | T191: 0.56 | U191: 0 | V191: 2 | W191: 0 | X191: 0 | Z191: 0 | AA191: 3 | AB191: 3 | AG191: 0.03 | AL191: -0.5 | AN191: 1 | AQ191: 0.03 | AS191: 1 | AT191: 0.56 | AU191: -0.5 | AZ191: 0.03
B192: =IF(AND(ISNUMBER(B191),isvisible(B191)), B191+1,"") ->  | C192: =IF(AND(ISNUMBER(C191),isvisible(C191)), C191+1,"") ->  | Q192: 0 | R192: 0 | S192: 0 | T192: 0.56 | U192: 0 | V192: 2 | W192: 0 | X192: 0 | Z192: 0 | AA192: 3 | AB192: 3 | AG192: 0.03 | AL192: -0.5 | AN192: 1 | AQ192: 0.03 | AS192: 1 | AT192: 0.56 | AU192: -0.5 | AZ192: 0.03
B193: =IF(AND(ISNUMBER(B192),isvisible(B192)), B192+1,"") ->  | C193: =IF(AND(ISNUMBER(C192),isvisible(C192)), C192+1,"") ->  | Q193: 0 | R193: 0 | S193: 0 | T193: 0.56 | U193: 0 | V193: 2 | W193: 0 | X193: 0 | Z193: 0 | AA193: 3 | AB193: 3 | AG193: 0.03 | AL193: -0.5 | AN193: 1 | AQ193: 0.03 | AS193: 1 | AT193: 0.56 | AU193: -0.5 | AZ193: 0.03
B194: =IF(AND(ISNUMBER(B193),isvisible(B193)), B193+1,"") ->  | C194: =IF(AND(ISNUMBER(C193),isvisible(C193)), C193+1,"") ->  | Q194: 0 | R194: 0 | S194: 0 | T194: 0.56 | U194: 0 | V194: 2 | W194: 0 | X194: 0 | Z194: 0 | AA194: 3 | AB194: 3 | AG194: 0.03 | AL194: -0.5 | AN194: 1 | AQ194: 0.03 | AS194: 1 | AT194: 0.56 | AU194: -0.5 | AZ194: 0.03
B195: =IF(AND(ISNUMBER(B194),isvisible(B194)), B194+1,"") ->  | C195: =IF(AND(ISNUMBER(C194),isvisible(C194)), C194+1,"") ->  | Q195: 0 | R195: 0 | S195: 0 | T195: 0.56 | U195: 0 | V195: 2 | W195: 0 | X195: 0 | Z195: 0 | AA195: 3 | AB195: 3 | AG195: 0.03 | AL195: -0.5 | AN195: 1 | AQ195: 0.03 | AS195: 1 | AT195: 0.56 | AU195: -0.5 | AZ195: 0.03
B196: =IF(AND(ISNUMBER(B195),isvisible(B195)), B195+1,"") ->  | C196: =IF(AND(ISNUMBER(C195),isvisible(C195)), C195+1,"") ->  | Q196: 0 | R196: 0 | S196: 0 | T196: 0.56 | U196: 0 | V196: 2 | W196: 0 | X196: 0 | Z196: 0 | AA196: 3 | AB196: 3 | AG196: 0.03 | AL196: -0.5 | AN196: 1 | AQ196: 0.03 | AS196: 1 | AT196: 0.56 | AU196: -0.5 | AZ196: 0.03
B197: =IF(AND(ISNUMBER(B196),isvisible(B196)), B196+1,"") ->  | C197: =IF(AND(ISNUMBER(C196),isvisible(C196)), C196+1,"") ->  | Q197: 0 | R197: 0 | S197: 0 | T197: 0.56 | U197: 0 | V197: 2 | W197: 0 | X197: 0 | Z197: 0 | AA197: 3 | AB197: 3 | AG197: 0.03 | AL197: -0.5 | AN197: 1 | AQ197: 0.03 | AS197: 1 | AT197: 0.56 | AU197: -0.5 | AZ197: 0.03
B198: =IF(AND(ISNUMBER(B197),isvisible(B197)), B197+1,"") ->  | C198: =IF(AND(ISNUMBER(C197),isvisible(C197)), C197+1,"") ->  | Q198: 0 | R198: 0 | S198: 0 | T198: 0.56 | U198: 0 | V198: 2 | W198: 0 | X198: 0 | Z198: 0 | AA198: 3 | AB198: 3 | AG198: 0.03 | AL198: -0.5 | AN198: 1 | AQ198: 0.03 | AS198: 1 | AT198: 0.56 | AU198: -0.5 | AZ198: 0.03
B199: =IF(AND(ISNUMBER(B198),isvisible(B198)), B198+1,"") ->  | C199: =IF(AND(ISNUMBER(C198),isvisible(C198)), C198+1,"") ->  | Q199: 0 | R199: 0 | S199: 0 | T199: 0.56 | U199: 0 | V199: 2 | W199: 0 | X199: 0 | Z199: 0 | AA199: 3 | AB199: 3 | AG199: 0.03 | AL199: -0.5 | AN199: 1 | AQ199: 0.03 | AS199: 1 | AT199: 0.56 | AU199: -0.5 | AZ199: 0.03
B200: =IF(AND(ISNUMBER(B199),isvisible(B199)), B199+1,"") ->  | C200: =IF(AND(ISNUMBER(C199),isvisible(C199)), C199+1,"") ->  | Q200: 0 | R200: 0 | S200: 0 | T200: 0.56 | U200: 0 | V200: 2 | W200: 0 | X200: 0 | Z200: 0 | AA200: 3 | AB200: 3 | AG200: 0.03 | AL200: -0.5 | AN200: 1 | AQ200: 0.03 | AS200: 1 | AT200: 0.56 | AU200: -0.5 | AZ200: 0.03
B201: =IF(AND(ISNUMBER(B200),isvisible(B200)), B200+1,"") ->  | C201: =IF(AND(ISNUMBER(C200),isvisible(C200)), C200+1,"") ->  | Q201: 0 | R201: 0 | S201: 0 | T201: 0.56 | U201: 0 | V201: 2 | W201: 0 | X201: 0 | Z201: 0 | AA201: 3 | AB201: 3 | AG201: 0.03 | AL201: -0.5 | AN201: 1 | AQ201: 0.03 | AS201: 1 | AT201: 0.56 | AU201: -0.5 | AZ201: 0.03
B202: =IF(AND(ISNUMBER(B201),isvisible(B201)), B201+1,"") ->  | C202: =IF(AND(ISNUMBER(C201),isvisible(C201)), C201+1,"") ->  | Q202: 0 | R202: 0 | S202: 0 | T202: 0.56 | U202: 0 | V202: 2 | W202: 0 | X202: 0 | Z202: 0 | AA202: 3 | AB202: 3 | AG202: 0.03 | AL202: -0.5 | AN202: 1 | AQ202: 0.03 | AS202: 1 | AT202: 0.56 | AU202: -0.5 | AZ202: 0.03
B203: =IF(AND(ISNUMBER(B202),isvisible(B202)), B202+1,"") ->  | C203: =IF(AND(ISNUMBER(C202),isvisible(C202)), C202+1,"") ->  | Q203: 0 | R203: 0 | S203: 0 | T203: 0.56 | U203: 0 | V203: 2 | W203: 0 | X203: 0 | Z203: 0 | AA203: 3 | AB203: 3 | AG203: 0.03 | AL203: -0.5 | AN203: 1 | AQ203: 0.03 | AS203: 1 | AT203: 0.56 | AU203: -0.5 | AZ203: 0.03
B204: =IF(AND(ISNUMBER(B203),isvisible(B203)), B203+1,"") ->  | C204: =IF(AND(ISNUMBER(C203),isvisible(C203)), C203+1,"") ->  | H204: =IF(H203 = "","",H203) ->  | M204: =IFERROR(H204*I204*J204,"") ->  | Q204: =DEGREES(ATAN(E204/100)) -> 0 | R204: =(ATAN(E204/100)) -> 0 | S204: =(SIN(R204))/0.0896 -> 0 | T204: =(((SIN(R204))^0.8)*3)+ 0.56 -> 0.56 | U204: =+S204/T204 -> 0 | V204: 2 | W204: =+V204*U204 -> 0 | X204: =+W204/(W204+1) -> 0 | Z204: =F204*3.2808399 -> 0 | AA204: =IF(Z204>=3,Z204,3) -> 3 | AB204: =IF(AND(AA204>=15, E204<9),1,IF(AND(AA204>=15, E204>=9),2,IF(AND(AA204<15, E204<9),3,IF(AND(AA204<15, E204>=9),4,0)))) -> 3 | AD204: =(Z204/72.6)^X204 ->  | AG204: =((SIN(R204))*10.8) + 0.03 -> 0.03 | AI204: =(Z204/72.6)^X204 ->  | AL204: =((SIN(R204))*16.8) - 0.5 -> -0.5 | AN204: =(15/72.6)^X204 -> 1 | AQ204: =((SIN(R204))*10.8) + 0.03 -> 0.03 | AS204: =(15/72.6)^X204 -> 1 | AT204: =(((SIN(R204))^0.8)*3)+ 0.56 -> 0.56 | AU204: =((SIN(R204))*16.8) - 0.5 -> -0.5 | AX204: =AD204*AG204 ->  | AY204: =AI204*AL204 ->  | AZ204: =AN204*AQ204 -> 0.03 | BA204: =10^(LOG10(AS204*AT204)+(LOG10(AA204)-LOG10(3))*(LOG10(AS204*AU204)-LOG10(AS204*AT204))/0.699) -> 
... 300 more rows

Sheet Sheet2 (hidden)
A1: ESC1
A2: ESC2
A3: ESC3
A4: ESC4
A5: ESC5
A6: ESC6
A7: ESC7
A8: ESC8
A9: ESC9
A10: ESC10
